Workbook

Sheet Alert
A1: =Tags!B72 -> The ESPA Worksheet uses Macros. Please enable content or close and reopen with Macros Enabled

Sheet General Info
D2: =Tags!B4 -> Date | E2: 2016-09-08
D3: =Tags!B5 -> Language | E3: English
D4: =Tags!B6 -> Country
C9: EUROPEAN STANDARD PARKING AWARD
B11: =Tags!B7 -> Name of Car Park
B13: =Tags!B8 -> Address
B16: =Tags!B9 -> City
B18: =Tags!B11 -> Operator
B20: =Tags!B12 -> Contact Name
B22: =Tags!B13 -> e-Mail | D22: =Tags!B14 -> Phone
B24: =Tags!B15 -> Judged by
B27: =Tags!B79 -> Car Park Main Characteristics
B29: =Tags!B73 -> Year of Construction
B31: =Tags!B10 -> Number of Spaces
B33: =Tags!B78 -> Number of Floors
B35: =Tags!B77 -> Number of Lifts
B37: =Tags!B74 -> Structure
B39: =Tags!B75 -> Type
B41: =Tags!B76 -> Access Control System

Sheet Evaluation
A1: =Tags!B38 -> Global Evaluation | C1: ='General Info'!C11 -> 0 | L1: =Tags!B49 -> % Completion: | M1: =E22/D22 -> 0
A3: =Tags!B39 -> Category | C3: =Tags!B40 -> Number of Items | D3: =Tags!B41 -> Number of Oks | E3: =Tags!B42 -> Number of Fails | F3: =Tags!B43 -> To be Completed | M3: =M6 -> Status
A4: 1 | B4: ='1. Mandatory Conditions'!B1 -> Mandatory Minimum Conditions | C4: ='1. Mandatory Conditions'!C16+'1. Mandatory Conditions'!C17+'1. Mandatory Conditions'!C18 -> 11 | D4: ='1. Mandatory Conditions'!C16 -> 0 | E4: =C4-D4 -> 11 | F4: ='1. Mandatory Conditions'!C18 -> 11 | M4: =IF(E4>0,fail,IF(F4=0,pass,incomplete)) -> Fail
A6: =A3 -> Category | C6: =Tags!B30 -> Total Items | D6: =Tags!B31 -> Total Items + SubItems | E6: =Tags!B32 -> Itens Completed | F6: =Tags!B33 -> Not measured | G6: =Tags!B35 -> Maximum Score | H6: =Tags!B34 -> Score | I6: =Tags!B44 -> % Obtained | J6: =Tags!B45 -> Minimum | K6: =Tags!B46 -> Category Points | L6: =Tags!B47 -> Points Obtained | M6: =Tags!B48 -> Status
A7: ='2. Lighting'!$A$1 -> 2 | B7: ='2. Lighting'!$B$1 -> Lighting | C7: ='2. Lighting'!$C$3 -> 8 | D7: ='2. Lighting'!$C$4 -> 17 | E7: ='2. Lighting'!$C$5 -> 0 | F7: ='2. Lighting'!$C$6 -> 17 | G7: ='2. Lighting'!$F$4 -> 46 | H7: ='2. Lighting'!$F$3 -> 0 | I7: =+H7/G7 -> 0 | J7: 0.4 | K7: 16 | L7: =I7*K7 -> 0 | M7: =IF(I7>=J7,pass,IF(F7=0,fail,incomplete)) -> Incomplete
A8: ='3. Entry Exit'!$A$1 -> 3 | B8: ='3. Entry Exit'!$B$1 -> Car Entry / Car Exit | C8: ='3. Entry Exit'!$C$3 -> 11 | D8: ='3. Entry Exit'!$C$4 -> 23 | E8: ='3. Entry Exit'!$C$5 -> 0 | F8: ='3. Entry Exit'!$C$6 -> 23 | G8: ='3. Entry Exit'!$F$4 -> 29 | H8: ='3. Entry Exit'!$F$3 -> 0 | I8: =+H8/G8 -> 0 | J8: 0.4 | K8: 8 | L8: 0 | M8: Incomplete
A9: ='4. Parking Area'!$A$1 -> 4 | B9: ='4. Parking Area'!$B$1 -> Parking Area | C9: ='4. Parking Area'!$C$3 -> 10 | D9: ='4. Parking Area'!$C$4 -> 22 | E9: ='4. Parking Area'!$C$5 -> 0 | F9: ='4. Parking Area'!$C$6 -> 22 | G9: ='4. Parking Area'!$F$4 -> 43 | H9: ='4. Parking Area'!$F$3 -> 0 | I9: 0 | J9: 0.4 | K9: 20 | L9: 0 | M9: Incomplete
A10: ='5. Ramps'!$A$1 -> 5 | B10: ='5. Ramps'!$B$1 -> Vehicle Ramps | C10: ='5. Ramps'!$C$3 -> 7 | D10: ='5. Ramps'!$C$4 -> 7 | E10: ='5. Ramps'!$C$5 -> 0 | F10: ='5. Ramps'!$C$6 -> 7 | G10: ='5. Ramps'!$F$4 -> 13 | H10: ='5. Ramps'!$F$3 -> 0 | I10: 0 | J10: 0.4 | K10: 8 | L10: 0 | M10: Incomplete
A11: ='6. Pedestrian Access'!$A$1 -> 6 | B11: ='6. Pedestrian Access'!$B$1 -> Pedestrian Access | C11: ='6. Pedestrian Access'!$C$3 -> 13 | D11: ='6. Pedestrian Access'!$C$4 -> 23 | E11: ='6. Pedestrian Access'!$C$5 -> 0 | F11: ='6. Pedestrian Access'!$C$6 -> 23 | G11: ='6. Pedestrian Access'!$F$4 -> 43 | H11: ='6. Pedestrian Access'!$F$3 -> 0 | I11: 0 | J11: 0.4 | K11: 16 | L11: 0 | M11: Incomplete
A12: 7 | B12: ='7. Security equipment'!$B$1 -> Security Equipment | C12: ='7. Security equipment'!$C$3 -> 8 | D12: ='7. Security equipment'!$C$4 -> 16 | E12: ='7. Security equipment'!$C$5 -> 0 | F12: ='7. Security equipment'!$C$6 -> 16 | G12: ='7. Security equipment'!$F$4 -> 35 | H12: ='7. Security equipment'!$F$3 -> 0 | I12: 0 | J12: 0.4 | K12: 8 | L12: 0 | M12: Incomplete
A13: 8 | B13: ='8. Wayfinding'!$B$1 -> Wayfinding Inside and Outside | C13: ='8. Wayfinding'!$C$3 -> 11 | D13: ='8. Wayfinding'!$C$4 -> 18 | E13: ='8. Wayfinding'!$C$5 -> 0 | F13: ='8. Wayfinding'!$C$6 -> 18 | G13: ='8. Wayfinding'!$F$4 -> 31 | H13: ='8. Wayfinding'!$F$3 -> 0 | I13: 0 | J13: 0.4 | K13: 8 | L13: 0 | M13: Incomplete
A14: 9 | B14: ='9. Comfort'!$B$1 -> Comfort and Miscellaneous | C14: ='9. Comfort'!$C$3 -> 10 | D14: ='9. Comfort'!$C$4 -> 27 | E14: ='9. Comfort'!$C$5 -> 0 | F14: ='9. Comfort'!$C$6 -> 27 | G14: ='9. Comfort'!$F$4 -> 34 | H14: ='9. Comfort'!$F$3 -> 0 | I14: 0 | J14: 0.3 | K14: 8 | L14: 0 | M14: Incomplete
A15: 10 | B15: ='10. Energy Environment'!$B$1 -> Energy and Environment | C15: ='10. Energy Environment'!$C$3 -> 10 | D15: ='10. Energy Environment'!$C$4 -> 11 | E15: ='10. Energy Environment'!$C$5 -> 0 | F15: ='10. Energy Environment'!$C$6 -> 11 | G15: ='10. Energy Environment'!$F$4 -> 20 | H15: ='10. Energy Environment'!$F$3 -> 0 | I15: 0 | J15: 0.15 | K15: 8 | L15: 0 | M15: Incomplete
A16: =Tags!B50 -> Subtotals | C16: =SUM(C7:C15) -> 88 | D16: 164 | E16: 0 | F16: 164 | G16: 294 | H16: 0 | K16: =SUM(K7:K15) -> 100 | L16: =SUM(L7:L15) -> 0
A18: =Minus!$A$1 -> M | B18: =Minus!$B$1 -> Minus Points | C18: =Minus!$C$3 -> 8 | D18: =Minus!$C$4 -> 23 | E18: =Minus!$C$5 -> 0 | F18: =Minus!$C$6 -> 23 | G18: =Minus!F4 -> -60 | H18: =Minus!F3 -> 0 | I18: =H18/G18 -> 0 | K18: -15 | L18: =K18*I18 -> 0
A19: =Bonus!$A$1 -> B | B19: =Bonus!$B$1 -> Bonus Points | C19: =Bonus!$C$3 -> 7 | D19: =Bonus!$C$4 -> 16 | E19: =Bonus!$C$5 -> 0 | F19: =Bonus!$C$6 -> 16 | G19: =Bonus!F4 -> 33 | H19: =Bonus!F3 -> 0 | I19: =H19/G19 -> 0 | K19: 15 | L19: =I19*K19 -> 0
A20: =A16 -> Subtotals | C20: =SUM(C18:C19) -> 15 | D20: =SUM(D18:D19) -> 39 | E20: 0 | F20: 39 | G20: -27 | H20: 0 | K20: =SUM(K18:K19) -> 0 | L20: =SUM(L18:L19) -> 0
A22: =Tags!B51 -> Totals | C22: =C20+C16 -> 103 | D22: 203 | E22: 0 | F22: 203 | G22: 267 | H22: 0 | K22: =K16+K20 -> 100 | L22: =L16+L20 -> 0
A24: =UPPER(Tags!B52) -> MINIMUM REQUIREMENT FOR ESPA AWARD | E24: 0.5 | F24: =UPPER(B4) -> MANDATORY MINIMUM CONDITIONS | J24: =IF(M4=pass,"OK",IF(M4=fail,"KO","-")) -> KO | K24: =UPPER(Tags!B54) -> ESPA AWARD
A27: =UPPER(Tags!B44) -> % OBTAINED | E27: =L22/K22 -> 0 | F27: =UPPER(Tags!B53) -> CATEGORIES MINIMUM POINTS | J27: =IF(COUNTIF(M7:M15,pass)<9,"KO","OK") -> KO | K27: =UPPER(IF(AND(E27>=E24,J24="OK",J27="OK"),yes,IF(OR(E27<E24,J24="KO",J27="KO"),no,"NA"))) -> NO

Sheet 1. Mandatory Conditions
A1: 1 | B1: =Languages!B4 -> Mandatory Minimum Conditions | E1: =IF(C18>0,Tags!B21,Tags!B20) -> Incompleted
C3: =Tags!B22 -> Compliant | D3: =Tags!B23 -> Comments
A4: 1.1 | B4: =Languages!B5 -> Car park must be for public use
A5: 1.2 | B5: =Languages!B6 -> Minimum headroom = 1.90 m, generally in the public areas. Incidental lower obstacles must be clearly marked.
A6: 1.3 | B6: =Languages!B8 -> There must be at least one dedicated entry and exit lane although additional tidal flow lanes are allowed.
A7: 1.4 | B7: =Languages!B9 -> 70% of bays must be at least 2.30m wide. For renovated car parks, over ten years old, minimum bay width of 2.25m is allowed (in that case a penalty applies - check M8).
A8: 1.5 | B8: =Languages!B11 -> All straight ramps for unidirectional traffic must be minimum 2.7 metres wide. Bidirectional ramps must be at least 6m wide with lane markings. Ramp width is measured between walls or pillars
A9: 1.6 | B9: =Languages!B12 -> Curved ramps for single directional traffic must have an external radius of minimum 8.00 metres with lane width of minimum 3.5 metres. For bidirectional curved ramps this applies for the inner driving lane. The outside driving lane must be minimum 3.5 metres wide as well.
A10: 1.7 | B10: =Languages!B13 -> Ramp gradients must not exceed 20% , to be measured at the middle of driving lane. At bidirectional curved ramps this applies for the inner (steepest) driving lane.
A11: 1.8 | B11: =Languages!B14 -> If the car park has paid parking and access control by barriers or gates, staff must be contactable at the pay point/exit point and secured pedestrian entries.
A12: 1.9 | B12: =Languages!B15 -> Receipt for payment must be provided when requested.
A13: 1.10 | B13: =Languages!B16 -> All turning movements must be capable of being completed without reversing (moving in/out the parking bay and cul-de-sacs excluded)
A14: 1.11 | B14: =Languages!B17 -> Average light levels on parking area at floor is at minimum 20 Lux
B16: =Tags!B24 -> Number of Ok: | C16: =COUNTIF($C$4:$C$14,Options!B20) -> 0 | E16: =Evaluation!M4 -> Fail
B17: =Tags!B25 -> Number of Fails: | C17: =COUNTIF($C$4:$C$14,Options!B21) -> 0
B18: =Tags!B26 -> Not Evaluated: | C18: =COUNTA(A4:A14)-C17-C16 -> 11
A19: =Tags!B60 -> Notes

Sheet 2. Lighting
A1: 2 | B1: =Languages!B19 -> Lighting | E1: =IF(C6>0,Tags!B21,Tags!B20) -> Incompleted | F1: Points: | G1: =F5*F6 -> 0 | H1: =F5 -> 0
B3: =Tags!B30 -> Total Items | C3: 8 | E3: =Tags!B34 -> Score | F3: =E18 -> 0 | H3: =Evaluation!M7 -> Incomplete
B4: =Tags!B31 -> Total Items + SubItems | C4: 17 | E4: =Tags!B35 -> Maximum Score | F4: =D18 -> 46
B5: =Tags!B32 -> Itens Completed | C5: =COUNTIF(D22:E26,">=0")+COUNTIF(C9:C15,">=0") -> 0 | E5: =Tags!B36 -> Percentage | F5: =F3/F4 -> 0
B6: =Tags!B33 -> Not measured | C6: =C4-C5 -> 17 | E6: =Tags!B37 -> Category Value | F6: =VLOOKUP(A1,Evaluation!$A$7:$M$15,11) -> 16
A8: 2 | B8: =Languages!B20 -> Item List (values in Lux, see user manual for measurement) | C8: =Tags!B56 -> Measured value | D8: =E4 -> Maximum Score | E8: =E3 -> Score | F8: =Tags!D57 -> Maximum Contribuition for Final Score | G8: =Tags!D58 -> Contribuition for Final Score | H8: =Tags!D59 -> Remarks
A9: 2.1 | B9: =Languages!B21 -> Vehicular entry area; at floor level • Above 200 Lux = 5; • Between 75– 200 Lux: 0,04 pt per Lux over 75 • Below 75 Lux = 0 | D9: 5 | E9: =IF(C9>200,5,IF(C9<=75,0,(C9-75)*0.04)) -> 0 | F9: =D9/$F$4*$F$6 -> 1.739130435 | G9: =E9/$F$4*$F$6 -> 0
A10: 2.2 | B10: =Languages!B22 -> Entry; at 1 m height near ticket-machine • Above 200 Lux = 3; • Between100– 200 Lux: 0,03 pt per Lux over 100 • Below 100 Lux = 0 | D10: 3 | E10: =IF(C10>200,3,IF(C10<=100,0,(C10-100)*0.03)) -> 0 | F10: =D10/$D$18*$F$6 -> 1.043478261 | G10: 0
A11: 2.3 | B11: =Languages!B23 -> Exit; at 1 m height near barrier/ticket-machine • Above 200 Lux = 3; • Between100– 200 Lux: 0,03 pt per Lux over 100 • Below 100 Lux= 0 | D11: 3 | E11: =IF(C11>100,(IF(C11<200,(C11-100)*0.03,3)),0) -> 0 | F11: 1.043478261 | G11: 0
A12: 2.4 | B12: =Languages!B24 -> At pay-machine; at 1 m height • Above 200 Lux =4; • Between100– 200 Lux: 0,04 pt per Lux over 100 • Below 100 Lux= 0; • No Pay Machines : same as exit (enter zero if this is the case) | D12: 4 | E12: =IF(C12>100,(IF(C12<200,(C12-100)*0.04,4)),IF(AND(ISNUMBER(C12),C12=0),E11,0)) -> 0 | F12: 1.391304348 | G12: 0
A13: 2.5 | B13: =Languages!B25 -> At cashier; at counter height • Above 200 Lux =4; • Between100– 200 Lux: 0,04 pt per Lux over 100 • Below 100 Lux= 0; • No cashier = 3 (enter zero if this is the case) | D13: 4 | E13: =IF(C13>100,(IF(C13<200,(C13-100)*0.04,4)),IF(AND(ISNUMBER(C13),(C13=0)),3,0)) -> 0 | F13: 1.391304348 | G13: 0
A14: 2.6 | B14: =Languages!B26 -> In elevator; at floor level • Above 70 Lux = 4; • Between30– 70 Lux: 0,1 pt per Lux over 30 • Below 30 Lux = 0; • Single level without elevator = 3 (enter zero if this is the case) | D14: 4 | E14: =IF(C14>30,(IF(C14<70,(C14-30)*0.1,4)),IF(AND(ISNUMBER(C14),(C14=0)),3,0)) -> 0 | F14: 1.391304348 | G14: 0
A15: 2.7 | B15: =Languages!B27 -> In staircases and all other exclusive pedestrian routes; at floor level • Above 90 Lux = 3; • Between30– 90 Lux: 0,05 pt per Lux over 30 • Below 30 Lux = 0; | D15: 3 | E15: =IF(C15>30,(IF(C15<90,(C15-30)*0.05,3)),0) -> 0 | F15: 1.043478261 | G15: 0
A16: 2.8 | B16: =Languages!B28 -> Light levels on parking area at floor level: (plesase fill grid below) Average light level of grid: • Above 100 Lux= 10; • Between20– 100 Lux: 0,125 pt per Lux over 20 • Below 20 Lux= 0 | C16: =IF(ISERROR(AVERAGE(D22:E26)),0,AVERAGE(D22:E26)) -> 0 | D16: 20 | E16: =IF(C16>20,(IF(C16<100,(C16-20)*0.125,10)),0) -> 0 | F16: 6.956521739 | G16: 0
B17: =Languages!B29 -> Uniformity of light levels in grid as standard deviation • Under 25% of avg light level = 10; • Between25– 50%: 0,4 pt per % under 50% • Above 50% = 0 | C17: =IF(ISERROR(_xlfn.STDEV.S(D22:E26)/C16),0,_xlfn.STDEV.S(D22:E26)/C16) -> 0 | E17: =IF(ISERROR(_xlfn.STDEV.S(D22:E26)/C16),0,IF(C17>0.5,0,IF(C17<0.25,10,(0.5-C17)*40))) -> 0 | G17: =E17/$D$18*$F$6 -> 0
B18: =CONCATENATE(Tags!$B$50," ",$B$1) -> Subtotals Lighting | D18: =SUM(D9:D16) -> 46 | E18: =SUM(E9:E17) -> 0 | F18: =SUM(F9:F17) -> 16 | G18: =SUM(G9:G17) -> 0
B21: =Languages!B30 -> Auxiliary Grid for 2.8 | C21: =VLOOKUP(#REF!,Languages!$A$4:$B$9972,2) ->  | D21: =VLOOKUP(#REF!,Languages!$A$4:$B$9972,2) -> 
B22: =Languages!B31 -> end of parking space under/between light fitting
B23: =Languages!B32 -> halfway parking space under/between light fitting
B24: =Languages!B33 -> edge of driveway under/between light fitting
B25: =Languages!B34 -> center of driveway under/between light fitting
B26: =Languages!B35 -> other edge of driveway under/between light fitting
A29: =Tags!B60 -> Notes

Sheet 3. Entry Exit
A1: 3 | B1: =Languages!B36 -> Car Entry / Car Exit | E1: =IF(C6>0,Tags!B21,Tags!B20) -> Incompleted | F1: Points: | G1: =F5*F6 -> 0 | H1: =F5 -> 0
B3: =Tags!B30 -> Total Items | C3: 11 | E3: =Tags!B34 -> Score | F3: =E37 -> 0 | H3: =Evaluation!M8 -> Incomplete
B4: =Tags!B31 -> Total Items + SubItems | C4: 23 | E4: =Tags!B35 -> Maximum Score | F4: =D37 -> 29
B5: =Tags!B32 -> Itens Completed | C5: =COUNTA(C10:C14,C16:C19,C21:C22,C24:C27,C29:C36) -> 0 | E5: =Tags!B36 -> Percentage | F5: =F3/F4 -> 0
B6: =Tags!B33 -> Not measured | C6: =C4-C5 -> 23 | E6: =Tags!B37 -> Category Value | F6: =VLOOKUP(A1,Evaluation!$A$7:$M$15,11) -> 8
A8: 3 | B8: =Tags!B55 -> Item List | C8: =Tags!B56 -> Measured value | D8: =E4 -> Maximum Score | E8: =E3 -> Score | F8: =Tags!D57 -> Maximum Contribuition for Final Score | G8: =Tags!D58 -> Contribuition for Final Score | H8: =Tags!D59 -> Remarks
A9: 3.1 | B9: =Languages!B37 -> Car park headroom limit identified at entrance | D9: 3 | E9: =IF(ISERROR(E10+E11+E12),"NA",E10+E11+E12) -> NA | F9: =D9/$F$4*$F$6 -> 0.8275862069 | G9: =IF(ISNUMBER(E9),E9/$F$4*$F$6,0) -> 0
B10: =Languages!B38 -> Correct sign at entrance | E10: =IF(C10=Options!$B$23,1,IF(C10=Options!$B$24,0,"NA")) -> NA
B11: =Languages!B39 -> Height barrier | E11: =IF(C11=Options!$B$23,1,IF(C11=Options!$B$24,0,"NA")) -> NA
B12: =Languages!B40 -> Rubber lip to prevent damage | E12: =IF(C12=Options!$B$23,1,IF(C12=Options!$B$24,0,"NA")) -> NA
A13: 3.2 | B13: =Languages!B41 -> Height: (The car park should receive one point for each 10cm of height above 1.90m up to 2.20 m) | D13: 3 | E13: =IF(ISNUMBER(C13),IF(C13>1.9,(IF(C13<2.2,(C13-1.9)*10,3)),0),"NA") -> NA | F13: =D13/$F$4*$F$6 -> 0.8275862069 | G13: =IF(ISNUMBER(E13),E13/$F$4*$F$6,0) -> 0
A14: 3.3 | B14: =Languages!B42 -> Traffic signs to define limitations in use of facility. • Clear signing = 3 • Incomplete signing = 2 • No signing = 0) | D14: 3 | E14: =IF(C14=Options!B26,3,IF(C14=Options!B27,2,IF(C14=Options!B28,0,"NA"))) -> NA | F14: =D14/$F$4*$F$6 -> 0.8275862069 | G14: =IF(ISNUMBER(E14),E14/$F$4*$F$6,0) -> 0
A15: 3.4 | B15: =Languages!B43 -> Information on: | D15: 4 | E15: =IF(ISERROR(E16+E17+E18+E19),"NA",E16+E17+E18+E19) -> NA | F15: =D15/$F$4*$F$6 -> 1.103448276 | G15: =IF(ISNUMBER(E15),E15/$F$4*$F$6,0) -> 0
B16: =Languages!B44 -> Operators terms & conditions within the car park: | E16: =IF(C16=yes,1,IF(C16=no,0,"NA")) -> NA
B17: =Languages!B45 -> Daily opening hours: | E17: =IF(C17=yes,1,IF(C17=no,0,"NA")) -> NA
B18: =Languages!B46 -> Scale of tariffs: | E18: =IF(C18=yes,1,IF(C18=no,0,"NA")) -> NA
B19: =Languages!B47 -> Readibility of tariff system: | E19: =IF(C19=yes,1,IF(C19=no,0,"NA")) -> NA
A20: 3.5 | B20: =Languages!B48 -> Design entry/exit area | D20: 2 | E20: =IF(ISERROR(E21+E22),"NA",E21+E22) -> NA | F20: =D20/$F$4*$F$6 -> 0.5517241379 | G20: =IF(ISNUMBER(E20),E20/$F$4*$F$6,0) -> 0
B21: =Languages!B49 -> Entry ticket- machine easy to reach: | E21: =IF(C21=yes,1,IF(C21=no,0,"")) -> 
B22: =Languages!B50 -> Exit ticket- machine easy to reach: | E22: =IF(C22=yes,1,IF(C22=no,0,"")) -> 
A23: 3.6 | B23: =Languages!B51 -> Longitudinal slope at the ticket machines | D23: 2 | E23: =IF(ISERROR(E24+E25),"NA",E24+E25) -> NA | F23: =D23/$F$4*$F$6 -> 0.5517241379 | G23: =IF(ISNUMBER(E23),E23/$F$4*$F$6,0) -> 0
B24: =Languages!B52 -> Entry lane: • 0-2% (car doesn’t move without brake) = 1 • 2-5% = 0 • Above 5% = -1 | E24: =IF(C24=Options!B30,1,IF(C24=Options!B31,0,IF(C24=Options!B32,-1,"NA"))) -> NA
B25: =Languages!B53 -> Exit lane: • 0-2% (car doesn’t move without brake) = 1 • 2-5% = 0 • Above 5% = -1 | E25: =IF(C25=Options!B30,1,IF(C25=Options!B31,0,IF(C25=Options!B32,-1,"NA"))) -> NA
A26: 3.7 | B26: =Languages!B54 -> Kerb design to avoid damage to average vehicle’s wheels: (Yes = 2, No protection = 0, No kerbs in entry/exit area = 2) | D26: 2 | E26: =IF(C26=Options!B34,2,IF(Options!B35=C26,0,(IF(C26=Options!B36,2,"NA")))) -> NA | F26: =D26/$F$4*$F$6 -> 0.5517241379 | G26: =IF(ISNUMBER(E26),E26/$F$4*$F$6,0) -> 0
A27: 3.8 | B27: =Languages!B55 -> Anti slip surfaces access/egress ramps: (Anti slip = 1, Slippery when wet = 0) | D27: 1 | E27: =IF(C27=Options!B38,1,IF(C27=Options!B39,0,"NA")) -> NA | F27: =D27/$F$4*$F$6 -> 0.275862069 | G27: =IF(ISNUMBER(E27),E27/$F$4*$F$6,0) -> 0
A28: 3.9 | B28: =Languages!B56 -> Access security | D28: 6 | E28: =IF(ISERROR(E29+E30+E31+E32+E33+E34),"NA",SUM(E29:E34)) -> NA | F28: =D28/$F$4*$F$6 -> 1.655172414 | G28: =IF(ISNUMBER(E28),E28/$F$4*$F$6,0) -> 0
B29: =Languages!B57 -> Barrier | E29: =IF(C29=yes,1,IF(C29=no,0,"NA")) -> NA
B30: =Languages!B58 -> Intercom | E30: NA
B31: =Languages!B59 -> CCTV | E31: NA
B32: =Languages!B60 -> Licence Plate Recognition | E32: NA
B33: =Languages!B61 -> Full height fast closing gates | E33: NA
B34: =Languages!B62 -> Staffed access(Entry or exit) | E34: NA
A35: 3.10 | B35: =Languages!B63 -> Entry/Exit of the building: width between structure (per lane) (< 3 m =0, 3 – 3.3 m =1, > 3.3 m = 2) | D35: 2 | E35: =IF(C35=Options!B41,0,IF(C35=Options!B42,1,IF(C35=Options!B43,2,"NA"))) -> NA | F35: =D35/$F$4*$F$6 -> 0.5517241379 | G35: =IF(ISNUMBER(E35),E35/$F$4*$F$6,0) -> 0
A36: 3.11 | B36: =Languages!B64 -> Exit: exit slope ends at least 5 meters before crossing traffic (pedestrians/cyclists): | D36: 1 | E36: =IF(C36=yes,1,IF(C36=yes,0,"NA")) -> NA | F36: =D36/$F$4*$F$6 -> 0.275862069 | G36: =IF(ISNUMBER(E36),E36/$F$4*$F$6,0) -> 0
B37: =CONCATENATE(Tags!$B$50," ",$B$1) -> Subtotals Car Entry / Car Exit | D37: =SUM(D9:D36) -> 29 | E37: =SUM(E9,E13,E14,E15,E20,E23,E26,E27,E28,E35,E36) -> 0 | F37: =SUM(F9:F36) -> 8 | G37: =SUM(G9:G36) -> 0
A39: =Tags!B60 -> Notes

Sheet 4. Parking Area
A1: 4 | B1: =Languages!B66 -> Parking Area | E1: =IF(C6>0,Tags!B21,Tags!B20) -> Incompleted | F1: Points: | G1: =F6*F5 -> 0 | H1: =F5 -> 0
B3: =Tags!B30 -> Total Items | C3: 10 | E3: =Tags!B34 -> Score | F3: =E37 -> 0 | H3: =Evaluation!M9 -> Incomplete
B4: =Tags!B31 -> Total Items + SubItems | C4: 22 | E4: =Tags!B35 -> Maximum Score | F4: =F38+D37 -> 43
B5: =Tags!B32 -> Itens Completed | C5: =COUNTA(C9:C10,C12,C14:C16,C18:C20,C22:C23,C25:C27,C29:C36) -> 0 | E5: =Tags!B36 -> Percentage | F5: =F3/F4 -> 0
B6: =Tags!B33 -> Not measured | C6: =C4-C5 -> 22 | E6: =Tags!B37 -> Category Value | F6: =VLOOKUP(A1,Evaluation!$A$7:$M$15,11) -> 20
A8: 4 | B8: =Tags!B55 -> Item List | C8: =Tags!B56 -> Measured value | D8: =E4 -> Maximum Score | E8: =E3 -> Score | F8: =Tags!D57 -> Maximum Contribuition for Final Score | G8: =Tags!D58 -> Contribuition for Final Score | H8: =Tags!D59 -> Remarks
A9: 4.1 | B9: =Languages!B67 -> Pillar placement for at least 85% of bays: • does not intrude into the parking area = 8 • at beginning of stall = 0 • next to car door = 0 • at back of stall but intrudes into the parking area = 4 | D9: 8 | E9: =IF(C9=Options!B45,8,(IF(OR(C9=Options!B46,C9=Options!B47),0,IF(C9=Options!B48,4,"NA")))) -> NA | F9: =D9/$F$4*$F$6 -> 3.720930233 | G9: =IF(ISNUMBER(E9),E9/$F$4*$F$6,0) -> 0
A10: 4.2 | B10: =Languages!B68 -> Visibility (many/few dead corners, walls in the car park etc.) Good=4, Medium=2 or Bad=0 | D10: 4 | E10: =IF(C10=Options!B50,4,IF(C10=Options!B52,0,IF(C10=Options!B51,2,"NA"))) -> NA | F10: =D10/$F$4*$F$6 -> 1.860465116 | G10: =IF(ISNUMBER(E10),E10/$F$4*$F$6,0) -> 0
A11: 4.3 | B11: =Languages!B69 -> Signage for car driver: | D11: 7 | E11: =IF(ISERROR(E12+E14+E15+E16+E18+E19+E20),"NA",E12+SUM(E14:E16)+SUM(E18:E20)) -> NA | F11: =D11/$F$4*$F$6 -> 3.255813953 | G11: =IF(ISNUMBER(E11),E11/$F$4*$F$6,0) -> 0
B12: =Languages!B70 -> Do traffic signs conform to national road code? | E12: =IF(C12=yes,1,IF(C12=no,0,"NA")) -> NA
B13: =Languages!B71 -> Routing and turn signs: Is signage clear, complete and unambiguous?
B14: =Languages!B72 -> Complete ? | E14: =IF(C14=yes,1,IF(C14=no,0,"NA")) -> NA
B15: =Languages!B73 -> Easy to see ? | E15: =IF(C15=yes,1,IF(C15=no,0,"NA")) -> NA
B16: =Languages!B74 -> Unambiguous ? | E16: =IF(C16=yes,1,IF(C16=no,0,"NA")) -> NA
B17: =Languages!B75 -> Exit signs in the car park: Is signage clear, complete and unambiguous?
B18: =Languages!B76 -> Complete ? | E18: =IF(C18=yes,1,IF(C18=no,0,"NA")) -> NA
B19: =Languages!B77 -> Easy to see ? | E19: =IF(C19=yes,1,IF(C19=no,0,"NA")) -> NA
B20: =Languages!B78 -> Unambiguous ? | E20: =IF(C20=yes,1,IF(C20=no,0,"NA")) -> NA
A21: 4.4 | B21: =Languages!B79 -> Parking bay marks | D21: 2 | E21: =IF(ISERROR(E22+E23),"NA",SUM(E22:E23)) -> NA | F21: =D21/$F$4*$F$6 -> 0.9302325581 | G21: =IF(ISNUMBER(E21),E21/$F$4*$F$6,0) -> 0
B22: =Languages!B80 -> Parking bays are clearly marked ? | E22: =IF(C22=yes,1,IF(C22=no,0,"NA")) -> NA
B23: =Languages!B81 -> Bay markings extend up walls to assist driver ? | E23: =IF(C23=yes,1,IF(C23=no,0,"NA")) -> NA
A24: 4.5 | B24: =Languages!B82 -> Are Road Markings: | D24: 3 | E24: =IF(ISERROR(E25+E26+E27),"NA",SUM(E25:E27)) -> NA | F24: =D24/$F$4*$F$6 -> 1.395348837 | G24: =IF(ISNUMBER(E24),E24/$F$4*$F$6,0) -> 0
B25: =Languages!B83 -> Complete ? | E25: =IF(C25=yes,1,IF(C25=no,0,"NA")) -> NA
B26: =Languages!B84 -> Easy to see ? | E26: =IF(C26=yes,1,IF(C26=no,0,"NA")) -> NA
B27: =Languages!B85 -> Unambiguous ? | E27: =IF(C27=yes,1,IF(C27=no,0,"NA")) -> NA
A28: 4.6 | B28: =Languages!B86 -> Availability of spaces for disabled with wheelchair access anounced at the entrance the car park: | D28: 4 | E28: =IF(ISERROR(E29+E30+E31+E32),"NA",SUM(E29:E32)) -> NA | F28: =D28/$F$4*$F$6 -> 1.860465116 | G28: =IF(ISNUMBER(E28),E28/$F$4*$F$6,0) -> 0
B29: =Languages!B87 -> Accessible for wheelchair ? | E29: =IF(C29=yes,1,IF(C29=no,0,"NA")) -> NA
B30: =Languages!B88 -> Bays minimum 3.5 m wide ? | E30: =IF(C30=yes,1,IF(C30=no,0,"NA")) -> NA
B31: =Languages!B89 -> Close to pedestrian exit ? | E31: =IF(C31=yes,1,IF(C31=no,0,"NA")) -> NA
B32: =Languages!B90 -> Guidance to disabled spaces ? | E32: =IF(C32=yes,1,IF(C32=no,0,"NA")) -> NA
A33: 4.7 | B33: =Languages!B91 -> Parking angle at 85 % of bays: (Angle 76-90° = 0, Angle 45-75° = 2) | D33: 2 | E33: =IF(C33=Options!B54,0,IF(C33=Options!B55,2,"NA")) -> NA | F33: =D33/$F$4*$F$6 -> 0.9302325581 | G33: =IF(ISNUMBER(E33),E33/$F$4*$F$6,0) -> 0
A34: 4.8 | B34: =Languages!B92 -> Width of bays (85 % of bays), A or B: A: Parking angle 76 – 90 degrees (2.25m = -5, 2.30m = 0, 2.35m = 2, 2.40m = 4, 2.45m = 6, 2.50m = 8) B: Parking angle 45-75 degrees (2.25m = -5, 2.30m = 1, 2.35m = 3, 2.40m = 5, 2.45m = 8) Width of 2.25m only applies for renovated car parks, new car parks must be minimum 2.30m | D34: 8 | E34: =IF(ISERROR(VLOOKUP(option4_8,'4. Parking Area'!D63:G69,D60)),"NA",VLOOKUP(option4_8,'4. Parking Area'!D63:G69,D60)) -> NA | F34: =D34/$F$4*$F$6 -> 3.720930233 | G34: =IF(ISNUMBER(E34),E34/$F$4*$F$6,0) -> 0
A35: 4.9 | B35: =Languages!B93 -> Total unit measure of one way isle width and depth of two parking bays, depending on parking angle and bay width: Bay width: 2.50m / 2.45m / 2.40m / 2.35m / 2.30m 90° : 16.00 / 16.30 / 16.60 / 16.90 / 17.30 85° : 15.70 / 16.00 / 16.30 / 16.60 / 16.95 80° : 15.40 / 15.70 / 16.00 / 16.30 / 16.60 75° : 14.95 / 15.25 / 15.55 / 15.85 / 16.15 70° : 14.50 / 14.80 / 15.10 / 15.40 / 15.70 65° : 14.40 / 14.40 / 14.55 / 14.80 / 15.10 60° : 14.30 / 14.30 / 14.30 / 14.30 / 14.50 55° : 14.00 / 14.00 / 14.00 / 14.00 / 14.10 50° : 13.75 / 13.75 / 13.75 / 13.75 / 13.75 45° : 13.50 / 13.50 / 13.50 / 13.50 / 13.50 Total unit measure as above qualifies for 3 points. Up to 30 cm less qualifies for 2 points Up to 60 cm less qualifies for 1 point More than 60 cm less: no points given | D35: 3 | E35: =IF(C35=Options!B64,3,IF(C35=Options!B65,2,IF(C35=Options!B66,1,IF(C35=Options!B67,0,"NA")))) -> NA | F35: =D35/$F$4*$F$6 -> 1.395348837 | G35: =IF(ISNUMBER(E35),E35/$F$4*$F$6,0) -> 0
A36: 4.10 | B36: =Languages!B94 -> Kerb design to avoid damage to average vehicle’s wheels • Yes = 2, No protection = 0 | D36: 2 | E36: =IF(C36=Options!B34,2,IF(C36=Options!B35,0,"NA")) -> NA | F36: =D36/$F$4*$F$6 -> 0.9302325581 | G36: =IF(ISNUMBER(E36),E36/$F$4*$F$6,0) -> 0
B37: =CONCATENATE(Tags!$B$50," ",$B$1) -> Subtotals Parking Area | D37: =SUM(D9:D36) -> 43 | E37: =SUM(E36,E35,E34,E33,E28,E24,E21,E11,E10,E9) -> 0 | F37: =SUM(F9:F36) -> 20 | G37: =SUM(G9:G36) -> 0
A39: =Tags!B60 -> Notes
C60: Coluna | D60: =IF(opt_angle=D71,2,IF(opt_angle=D72,3,4)) -> 4 | F60: Option 4_8: | G60: =MATCH('4. Parking Area'!$C$34,$C$63:$C$68) -> 
D62: Opção | E62: 76-90 | F62: 45-75 | G62: Column2
C63: =Options!B57 -> 2.25 m - 2.30 m | D63: 1 | E63: -5 | F63: -5 | G63: NA
C64: =Options!B58 -> 2.30 m - 2.35 m | D64: 2 | E64: 0 | F64: 1 | G64: NA
C65: =Options!B59 -> 2.35 m - 2.40 m | D65: 3 | E65: 2 | F65: 3 | G65: NA
C66: =Options!B60 -> 2.40 m - 2.45 m | D66: 4 | E66: 4 | F66: 5 | G66: NA
C67: =Options!B61 -> 2.45 m - 2.50 m | D67: 5 | E67: 6 | F67: 8 | G67: NA
C68: =Options!B62 -> above 2.50 m | D68: 6 | E68: 8 | F68: 8 | G68: NA
E69: NA | F69: NA | G69: NA
C71: 4.7: | D71: =Options!B54 -> Angle 76°-90°
D72: =Options!B55 -> Angle 45°-75°

Sheet 5. Ramps
A1: 5 | B1: =Languages!B95 -> Vehicle Ramps | E1: =IF(C6>0,Tags!B21,Tags!B20) -> Incompleted | F1: Points: | G1: =F5*F6 -> 0 | H1: =F5 -> 0
B3: =Tags!B30 -> Total Items | C3: =IF(C9=yes,1,7) -> 7 | E3: =Tags!B34 -> Score | F3: =E18 -> 0 | H3: =Evaluation!M10 -> Incomplete
B4: =Tags!B31 -> Total Items + SubItems | C4: =IF(C9=yes,1,7) -> 7 | E4: =Tags!B35 -> Maximum Score | F4: =D18 -> 13
B5: =Tags!B32 -> Itens Completed | C5: =IF(C9=yes,1,COUNTA(C10:C11,C13:C17)) -> 0 | E5: =Tags!B36 -> Percentage | F5: =F3/F4 -> 0
B6: =Tags!B33 -> Not measured | C6: =C4-C5 -> 7 | E6: =Tags!B37 -> Category Value | F6: =VLOOKUP(A1,Evaluation!$A$7:$M$15,11) -> 8
A8: 5 | B8: =Tags!B55 -> Item List | C8: =Tags!B56 -> Measured value | D8: =E4 -> Maximum Score | E8: =E3 -> Score | F8: =Tags!D57 -> Maximum Contribuition for Final Score | G8: =Tags!D58 -> Contribuition for Final Score | H8: =Tags!D59 -> Remarks
A9: =Languages!B96 -> Is this a Single level car park without vehicular ramps or ramper floor? | B9: =VLOOKUP(#REF!,Language_Table,2) ->  | D9: 10 | E9: =IF(C9=yes,10,0) -> 0 | F9: =D9/$F$4*$F$6 -> 6.153846154 | G9: =IF(ISNUMBER(E9),E9/$F$4*$F$6,0) -> 0
A10: 5.1 | B10: =Languages!B97 -> Ramp surface between parking areas (Anti slip 1, Smooth 0, no ramps 1) | D10: 1 | E10: =IF(noramps<>yes,IF(C10=Options!B69,1,IF(C10=Options!B70,0,IF(C10=Options!B71,1,"NA"))),"SLP") -> NA | F10: =D10/$F$4*$F$6 -> 0.6153846154 | G10: =IF(ISNUMBER(E10),E10/$F$4*$F$6,0) -> 0
A11: 5.2 | B11: =Languages!B98 -> Ramp longitudinal gradient connecting ramps (not used for parking) • <10%=3, 10-15%=1, >15%=0, no ramps=3 | D11: 3 | E11: =IF(noramps=no,IF(C11=Options!B194,3,IF(C11=Options!B195,1,IF(C11=Options!B196,0,IF(C11=Options!B197,3,"NA")))),"SLP") -> SLP | F11: =D11/$F$4*$F$6 -> 1.846153846 | G11: =IF(ISNUMBER(E11),E11/$F$4*$F$6,0) -> 0
A12: 5.3 | B12: =Languages!B99 -> Ramp width (between kerbs) all ramps measured at narrowest point | D12: 2 | E12: =IF(noramps=no,IF(C14=A43,0,IF(C14=A44,1,IF(C14=A45,2,IF(C14=A46,2,"NA")))),"SLP") -> SLP | F12: 1.230769231 | G12: =IF(ISNUMBER(E12),E11/$F$4*$F$6,0) -> 0
B13: =Languages!B100 -> Curved ramps must be 1 m wider for same score. Are the ramps curbed?
B14: =Languages!B101 -> Please choose width. < 3m=0, 3-3.3m=1, >3.3m=2, no ramps=2
A15: 5.4 | B15: =Languages!B102 -> Ramp curvature (external radius) curved ramps • up to 9m=0, 9–10 m=1, >10m=2, no ramps=2 At dual way ramps this measure refers to the inner lane. | D15: 2 | E15: =IF(noramps<>yes,IF(C15=Options!B209,0,IF(C15=Options!B210,1,IF(C15=Options!B211,2,IF(C15=Options!B212,2,"NA")))),"SLP") -> NA | F15: 1.230769231 | G15: =IF(ISNUMBER(E15),E15/$F$4*$F$6,0) -> 0
A16: 5.5 | B16: =Languages!B103 -> Approach curve to straight ramps • <7.5m=0, 7.5–9m=1, >9m=2, no ramps=2 | D16: 2 | E16: =IF(noramps<>yes,IF(C16=Options!B214,0,IF(C16=Options!B215,1,IF(C16=Options!B216,2,IF(C16=Options!B217,2,"NA")))),"SLP") -> NA | F16: 1.230769231 | G16: =IF(ISNUMBER(E16),E16/$F$4*$F$6,0) -> 0
A17: 5.6 | B17: =Languages!B104 -> Ramped parking floor longitudinal gradient • <5%=3, 5-7 =1, >7%=0, no gradient=3 | D17: 3 | E17: =IF(noramps<>yes,IF(C17=Options!B219,3,IF(C17=Options!B220,1,IF(C17=Options!B221,0,IF(C17=Options!B222,3,"NA")))),"SLP") -> NA | F17: 1.846153846 | G17: =IF(ISNUMBER(E17),E17/$F$4*$F$6,0) -> 0
B18: =CONCATENATE(Tags!$B$50," ",$B$1) -> Subtotals Vehicle Ramps | D18: =SUM(D10:D17) -> 13 | E18: =SUM(E9:E17) -> 0 | F18: =SUM(F10:F17) -> 8 | G18: =SUM(G9:G17) -> 0
A20: =Tags!B60 -> Notes
A41: Auxiliar for 5.3
A43: =IF($C$13=no,Options!B199,Options!B204) -> < 4m
A44: =IF($C$13=no,Options!B200,Options!B205) -> 4m - 4.3m
A45: =IF($C$13=no,Options!B201,Options!B206) -> >4.3m
A46: =IF($C$13=no,Options!B202,Options!B207) -> no ramps

Sheet 6. Pedestrian Access
A1: 6 | B1: =Languages!B105 -> Pedestrian Access | E1: =IF(C6>0,Tags!B21,Tags!B20) -> Incompleted | F1: Points: | G1: =F5*F6 -> 0 | H1: =F5 -> 0
B3: =Tags!B30 -> Total Items | C3: 13 | E3: =Tags!B34 -> Score | F3: =E36 -> 0 | H3: =Evaluation!M11 -> Incomplete
B4: =Tags!B31 -> Total Items + SubItems | C4: =IF(slcp=yes,5,23-2*(essl=no)-7*(emvc=yes)) -> 23 | E4: =Tags!B35 -> Maximum Score | F4: =D36 -> 43
B5: =Tags!B32 -> Itens Completed | C5: =COUNTA(C12:C15,C9:C9)+COUNTA(C10:C11,C16:C35)*(slcp=no)-COUNTA(C16:C17)*(essl=no)-COUNTA(C28:C35)*(emvc=yes) -> 0 | E5: =Tags!B36 -> Percentage | F5: =F3/F4 -> 0
B6: =Tags!B33 -> Not measured | C6: =C4-C5 -> 23 | E6: =Tags!B37 -> Category Value | F6: =VLOOKUP(A1,Evaluation!$A$7:$M$15,11) -> 16
A8: 6 | B8: =Tags!B55 -> Item List | C8: =Tags!B56 -> Measured value | D8: =E4 -> Maximum Score | E8: =E3 -> Score | F8: =Tags!D57 -> Maximum Contribuition for Final Score | G8: =Tags!D58 -> Contribuition for Final Score | H8: =Tags!D59 -> Remarks
A9: =Languages!B115 -> Is this a Single level car park at ground floor, (not open surface) ? | B9: =VLOOKUP(#REF!,Language_Table,2) ->  | D9: 25 | E9: =IF(C9=yes,D9,0) -> 0 | F9: =D9/$F$4*$F$6 -> 9.302325581 | G9: =IF(ISNUMBER(E9),E9/$F$4*$F$6,0) -> 0
A10: =Languages!B116 -> Is there elevators serving street level? | B10: =VLOOKUP(#REF!,Language_Table,2) -> 
A11: =Languages!B128 -> Are elevators the main vertical connection? (stairs only secondary or escape) | B11: =VLOOKUP(#REF!,Language_Table,2) ->  | D11: 8 | E11: =IF(slcp=yes,0,IF(emvc=yes,8,0)) -> 0 | F11: =D11/$F$4*$F$6 -> 2.976744186 | G11: =IF(ISNUMBER(E11),E11/$F$4*$F$6,0) -> 0
A12: 6.1 | B12: =Languages!B107 -> Headroom for pedestrians - excluding doors • <2.00m = 0 • 2.00m – 2.10m = 1 • 2.10m – 2.20m = 2 • > 2.20m = 3 | D12: 3 | E12: =IF(ISERROR(IF(C12=Options!B73,0,IF(C12=Options!B74,1,IF(C12=Options!B75,2,IF(C12=Options!B76,3,"NA"))))),"NA",IF(C12=Options!B73,0,IF(C12=Options!B74,1,IF(C12=Options!B75,2,IF(C12=Options!B76,3,"NA"))))) -> NA | F12: =D12/$F$4*$F$6 -> 1.11627907 | G12: =IF(ISNUMBER(E12),E12/$F$4*$F$6,0) -> 0
A13: 6.2 | B13: =Languages!B108 -> Separate walking route (i.e. heightened; zebra stripes or colours) (yes = 2, no = 0) | D13: 2 | E13: =IF(C13=yes,2,IF(C13=no,0,"NA")) -> NA | F13: =D13/$F$4*$F$6 -> 0.7441860465 | G13: =IF(ISNUMBER(E13),E13/$F$4*$F$6,0) -> 0
A14: 6.3 | B14: =Languages!B109 -> Are pedestrian entrance doors easy to use? (Yes, automatic or open connection = 4, Easy to open = 2, No = 0) | D14: 4 | E14: =IF(C14=Options!B78,4,IF(C14=Options!B79,2,IF(C14=Options!B80,0,"NA"))) -> NA | F14: 1.488372093 | G14: 0
A15: 6.4 | B15: =Languages!B110 -> Pedestrian access controlled by ticket/pass card when car park open (Yes=1, No=0) | D15: 1 | E15: =IF(C15=yes,1,IF(C15=no,0,"NA")) -> NA | F15: 0.3720930233 | G15: 0
A16: 6.5 | B16: =Languages!B117 -> Number of Elevators at street level: (1 elevator = 1, 2 + elevators = 5) | D16: 5 | E16: =IF(slcp=no,IF(essl=yes,IF(C16=Options!B86,1,IF(C16=Options!B87,5,"NA")),"NA"),"NA") -> NA | F16: =D16/$F$4*$F$6 -> 1.860465116 | G16: =IF(ISNUMBER(E16),E16/$F$4*$F$6,0) -> 0
A17: 6.6 | B17: =Languages!B118 -> Size of elevators: (More Than 8 people = 3, 4-8 people = 1, less than 4 = 0) | D17: 3 | E17: =IF(slcp=no,IF(essl=yes,IF(C17=Options!B89,3,IF(C17=Options!B90,1,IF(C17=Options!B91,0,"NA"))),"NA"),"NA") -> NA | F17: 1.11627907 | G17: 0
A18: 6.7 | B18: =Languages!B119 -> Visibility from elevator inside to hall/parking area (no visibility from elevator = 0, glazed doors/walls = 3, no elevator = 0) | D18: 3 | E18: =IF(slcp=no,IF(C18=Options!B93,0,IF(C18=Options!B94,3,IF(C18=Options!B95,0,"NA"))),"NA") -> NA | F18: =D18/$F$4*$F$6 -> 1.11627907 | G18: =IF(ISNUMBER(E18),E18/$F$4*$F$6,0) -> 0
A19: 6.8 | B19: =Languages!B120 -> Level indication: | D19: 2 | E19: =IF(ISERROR(E20+E21),"NA",E20+E21) -> NA | F19: =D19/$F$4*$F$6 -> 0.7441860465 | G19: =IF(ISNUMBER(E19),E19/$F$4*$F$6,0) -> 0
B20: =Languages!B121 -> in elevator: | E20: =IF(slcp=no,IF(C20=yes,1,IF(C20=no,0,"NA")),"NA") -> NA
B21: =Languages!B122 -> in elevator foyer: | E21: =IF(slcp=no,IF(C21=yes,1,IF(C21=no,0,"NA")),"NA") -> NA
A22: 6.9 | B22: =Languages!B123 -> Elevator control buttons at wheelchair height • Yes = 1, Other = 0 | D22: 1 | E22: =IF(slcp=no,IF(C22=yes,1,IF(C22=no,0,"NA")),"NA") -> NA | F22: =D22/$F$4*$F$6 -> 0.3720930233 | G22: =IF(ISNUMBER(E22),E22/$F$4*$F$6,0) -> 0
A23: 6.10 | B23: =Languages!B124 -> Doors directly to parking area | D23: 7 | E23: =IF(ISERROR(E24+E25+E26),"NA",SUM(E24:E26)) -> NA | F23: =D23/$F$4*$F$6 -> 2.604651163 | G23: =IF(ISNUMBER(E23),E23/$F$4*$F$6,0) -> 0
B24: =Languages!B125 -> Width (<90 cm =0, >=90 cm = 2) | E24: =IF(slcp=no,IF(C24=Options!B100,0,IF(C24=Options!B101,2,"NA")),"NA") -> NA
B25: =Languages!B126 -> Emergency door, standard open (Yes=2, No= 0) | E25: =IF(slcp=no,IF(C25=yes,2,IF(C25=no,0,"NA")),"NA") -> NA
B26: =Languages!B127 -> Visibility (Glazed door/wall = 3, No Glass = 0) | E26: =IF(slcp=no,IF(C26=Options!B103,3,IF(C26=Options!B104,0,"NA")),"NA") -> NA
A27: 6.11 | B27: =Languages!B129 -> Stairwells (visibility and orientation) | D27: 2 | E27: =IF(ISERROR(E28+E29),"NA",E28+E29) -> NA | F27: =D27/$F$4*$F$6 -> 0.7441860465 | G27: =IF(ISNUMBER(E27),E27/$F$4*$F$6,0) -> 0
B28: =Languages!B130 -> Clear View (Yes = 1, No = 0, Irrelevant = 1) | E28: =IF(NOT(OR(slcp=yes,emvc=yes)),IF(C28=yes,1,IF(C28=no,0,IF(C28=Options!B25,1,"NA"))),"NA") -> NA
B29: =Languages!B131 -> Level Indication (Yes = 1, No = 0, Irrelevant = 1) | E29: =IF(NOT(OR(slcp=yes,emvc=yes)),IF(C29=yes,1,IF(C29=no,0,IF(C29=Options!B25,1,"NA"))),"NA") -> NA
A30: 6.12 | B30: =Languages!B132 -> Stairs (incl. heightened visibility of steps) | D30: 8 | E30: =IF(ISERROR(E31+E32+E33+E34),"NA",SUM(E31:E34)) -> NA | F30: =D30/$F$4*$F$6 -> 2.976744186 | G30: =IF(ISNUMBER(E30),E30/$F$4*$F$6,0) -> 0
B31: =Languages!B133 -> Width (< 1.5 m = 0, > 1.5m = 2) | E31: =IF(NOT(OR(slcp=yes,emvc=yes)),IF(C31=Options!B97,0,IF(C31=Options!B98,2,"NA")),"NA") -> NA
B32: =Languages!B134 -> Hand Rails (No hand rail =0, One Side = 1, Two sides=2) | E32: =IF(NOT(OR(slcp=yes,emvc=yes)),IF(C32=Options!B106,0,IF(C32=Options!B107,1,IF(C32=Options!B108,2,"NA"))),"NA") -> NA
B33: =Languages!B135 -> Heightened visibility of steps for people with poor eyesight (Yes = 2, No = 0) | E33: =IF(NOT(OR(slcp=yes,emvc=yes)),IF(C33=yes,2,IF(C33=no,0,"NA")),"NA") -> NA
B34: =Languages!B136 -> Anti-slip surfacing on stairs: (Yes = 2, No = 0) | E34: =IF(NOT(OR(slcp=yes,emvc=yes)),IF(C34=yes,2,IF(C34=no,0,"NA")),"NA") -> NA
A35: 6.13 | B35: =Languages!B137 -> External openings in stairwell (window/grilled to outside or car park =2, none =0) | D35: 2 | E35: =IF(NOT(OR(slcp=yes,emvc=yes)),IF(C35=Options!B110,2,IF(C35=Options!B111,0,"NA")),"NA") -> NA | F35: =D35/$F$4*$F$6 -> 0.7441860465 | G35: =IF(ISNUMBER(E35),E35/$F$4*$F$6,0) -> 0
B36: =CONCATENATE(Tags!$B$50," ",$B$1) -> Subtotals Pedestrian Access | D36: =SUM(D12:D35) -> 43 | E36: =SUM(E9,E11:E19,E22:E23,E27,E30,E35) -> 0 | F36: =SUM(F12:F15,F16:F26,F27:F35) -> 16 | G36: =SUM(G12:G35) -> 0
A38: =Tags!B60 -> Notes

Sheet 7. Security equipment
A1: 7 | B1: =Languages!B138 -> Security Equipment | E1: =IF(C6>0,Tags!B21,Tags!B20) -> Incompleted | F1: Points: | G1: =F5*F6 -> 0 | H1: =F5 -> 0
B3: =Tags!B30 -> Total Items | C3: 8 | E3: =Tags!B34 -> Score | F3: =E27 -> 0 | H3: =Evaluation!M12 -> Incomplete
B4: =Tags!B31 -> Total Items + SubItems | C4: 16 | E4: =Tags!B35 -> Maximum Score | F4: =D27 -> 35
B5: =Tags!B32 -> Itens Completed | C5: =COUNTA(C9:C10,C12:C19,C21:C26) -> 0 | E5: =Tags!B36 -> Percentage | F5: =F3/F4 -> 0
B6: =Tags!B33 -> Not measured | C6: =C4-C5 -> 16 | E6: =Tags!B37 -> Category Value | F6: =VLOOKUP(A1,Evaluation!$A$7:$M$15,11) -> 8
A8: 7 | B8: =Tags!B55 -> Item List | C8: =Tags!B56 -> Measured value | D8: =E4 -> Maximum Score | E8: =E3 -> Score | F8: =Tags!D57 -> Maximum Contribuition for Final Score | G8: =Tags!D58 -> Contribuition for Final Score | H8: =Tags!D59 -> Remarks
A9: 7.1 | B9: =Languages!B140 -> CCTV with notice at entrance = 3, No CCTV =0 | D9: 3 | E9: =IF(C9=yes,3,IF(C9=no,0,"NA")) -> NA | F9: =D9/$F$4*$F$6 -> 0.6857142857 | G9: =IF(ISNUMBER(E9),E9/$F$4*$F$6,0) -> 0
A10: 7.2 | B10: =Languages!B141 -> Staff surveillance (on-site or remote) • Yes = 5, No = 0 | D10: 5 | E10: =IF(C10=yes,5,IF(C10=no,0,"NA")) -> NA | F10: =D10/$F$4*$F$6 -> 1.142857143 | G10: =IF(ISNUMBER(E10),E10/$F$4*$F$6,0) -> 0
A11: 7.3 | B11: =Languages!B142 -> CCTV at: | D11: 10 | E11: =IF(ISERROR(E12+E13+E14+E15+E16+E17+E18+E19),"NA",SUM(E12:E19)) -> NA | F11: =D11/$F$4*$F$6 -> 2.285714286 | G11: =IF(ISNUMBER(E11),E11/$F$4*$F$6,0) -> 0
B12: =Languages!B143 -> Car Entry: Yes =1, No =0 | E12: =IF(C12=yes,1,IF(C12=no,0,"NA")) -> NA
B13: =Languages!B144 -> Car Exit: Yes =1, No =0 | E13: NA
B14: =Languages!B145 -> Pay Machine: Yes =1, No =0 | E14: NA
B15: =Languages!B146 -> Elevator Hall, every level: Yes =1, No =0 | E15: NA
B16: =Languages!B147 -> Stairwells, every level: Yes =1, No =0 | E16: NA
B17: =Languages!B148 -> Pedestrian Entrances: Yes =1, No =0 | E17: NA
B18: =Languages!B149 -> Most of Parking Area (65%):Yes =3, No =0 | E18: =IF(C18=yes,3,IF(C18=no,0,"NA")) -> NA
B19: =Languages!B150 -> Ramps: Yes = 1, No = 0 | E19: =IF(C19=yes,1,IF(C19=no,0,"NA")) -> NA
A20: 7.4 | B20: =Languages!B151 -> Staff contactable via: | D20: 6 | E20: =IF(ISERROR(E21+E22),"NA",SUM(E21:E22)) -> NA | F20: =D20/$F$4*$F$6 -> 1.371428571 | G20: =IF(ISNUMBER(E20),E20/$F$4*$F$6,0) -> 0
B21: =Languages!B152 -> Intercom at pay machine and/or controlled entries (24/7=3, All access hours if not 24/7= 2, Part time/not available = 0) | E21: =IF(C21=Options!B113,3,IF(C21=Options!B114,2,IF(C21=Options!B115,0,"NA"))) -> NA
B22: =Languages!B153 -> Emergency call system in parking area (24/7=3, All access hours if not 24/7= 2, Part time/not available = 0) | E22: =IF(C22=Options!B113,3,IF(C22=Options!B114,2,IF(C22=Options!B115,0,"NA"))) -> NA
A23: 7.5 | B23: =Languages!B154 -> Recognizable staff present and patrolling car park (24/7 = 3, During access Hours = 2, Less than access Hours = 1, No = 0) | D23: 3 | E23: =IF(C23=Options!B117,3,IF(C23=Options!B118,2,IF(C23=Options!B119,1,IF(C23=Options!B120,0,"NA")))) -> NA | F23: =D23/$F$4*$F$6 -> 0.6857142857 | G23: =IF(ISNUMBER(E23),E23/$F$4*$F$6,0) -> 0
A24: 7.6 | B24: =Languages!B155 -> Lockable vehicle exit/entry: (Closed gate/rolling shutter after access hours = 2, Secured: fast opening gate during day = 4, Secured: slow opening gate during day = 2, No provisions = 0) | D24: 4 | E24: =IF(C24=Options!B122,2,IF(C24=Options!B123,4,IF(Options!B124=C24,2,IF(C24=Options!B125,0,"NA")))) -> NA | F24: 0.9142857143 | G24: 0
A25: 7.7 | B25: =Languages!B156 -> Lockable pedestrian exit/entry (after opening hours). (Door/gate/rolling shutter <= 15cm maximum aperture = 2, over 15 cm = 0, no provisions = 0, Irrelevant (24 hours opening) = 2) | D25: 2 | E25: =IF(C25=Options!B127,2,IF(OR(C25=Options!B128,C25=Options!B129),0,IF(Options!B130=C25,2,"NA"))) -> NA | F25: 0.4571428571 | G25: 0
A26: 7.8 | B26: =Languages!B157 -> Grilles on external openings & security grilles (<= 15 cm = 2, > 15 cm or no protection= 0, Irrelevant (no external openings) = 2) | D26: 2 | E26: =IF(OR(C26=Options!B132,C26=Options!B134),2,IF(C26=Options!B133,0,"NA")) -> NA | F26: 0.4571428571 | G26: 0
B27: =CONCATENATE(Tags!$B$50," ",$B$1) -> Subtotals Security Equipment | D27: =SUM(D9:D26) -> 35 | E27: =SUM(E23:E26,E20,E9:E11) -> 0 | F27: =SUM(F9:F26) -> 8 | G27: =SUM(G9:G26) -> 0
A29: =Tags!B60 -> Notes

Sheet 8. Wayfinding
A1: 8 | B1: =Languages!B158 -> Wayfinding Inside and Outside | E1: =IF(C6>0,Tags!B21,Tags!B20) -> Incompleted | F1: Points: | G1: =F5*F6 -> 0 | H1: =F5 -> 0
B3: =Tags!B30 -> Total Items | C3: 11 | E3: =Tags!B34 -> Score | F3: =E32 -> 0 | H3: =Evaluation!M13 -> Incomplete
B4: =Tags!B31 -> Total Items + SubItems | C4: 18 | E4: =Tags!B35 -> Maximum Score | F4: =D32 -> 31
B5: =Tags!B32 -> Itens Completed | C5: =COUNTA(C10:C12,C14:C20,C22:C23,C25:C28,C30:C31) -> 0 | E5: =Tags!B36 -> Percentage | F5: =F3/F4 -> 0
B6: =Tags!B33 -> Not measured | C6: =C4-C5 -> 18 | E6: =Tags!B37 -> Category Value | F6: =VLOOKUP(A1,Evaluation!$A$7:$M$15,11) -> 8
A8: 8 | B8: =Tags!B55 -> Item List | C8: =Tags!B56 -> Measured value | D8: =E4 -> Maximum Score | E8: =E3 -> Score | F8: =Tags!D57 -> Maximum Contribuition for Final Score | G8: =Tags!D58 -> Contribuition for Final Score | H8: =Tags!D59 -> Remarks
A9: 8.1 | B9: =Languages!B160 -> Identification of vacant parking spaces | D9: 5 | E9: =IF(ISERROR(E10+E11+E12),"NA",SUM(E10:E12)) -> NA | F9: =D9/$F$4*$F$6 -> 1.290322581 | G9: =IF(ISNUMBER(E9),E9/$F$4*$F$6,0) -> 0
B10: =Languages!B161 -> Parking floor level (yes/good = 2, no/bad = 0) | E10: =IF(C10=Options!B136,2,IF(C10=Options!B137,0,"NA")) -> NA
B11: =Languages!B162 -> Parking row (yes/good = 1, no/bad = 0) | E11: =IF(C11=Options!B136,1,IF(C11=Options!B137,0,"NA")) -> NA
B12: =Languages!B163 -> Individual stall indication (yes/good = 2, no/bad = 0) | E12: =IF(C12=Options!B136,2,IF(C12=Options!B137,0,"NA")) -> NA
A13: 8.2 | B13: =Languages!B164 -> Way finding (vehicles) | D13: 6 | E13: =IF(ISERROR(E14+E15),"NA",SUM(E14:E15)) -> NA | F13: =D13/$F$4*$F$6 -> 1.548387097 | G13: =IF(ISNUMBER(E13),E13/$F$4*$F$6,0) -> 0
B14: =Languages!B165 -> Are floors clearly and separately identified for drivers? (Good =3, Adequate =2, Poor =1, No =0) | E14: =IF(C14=Options!B139,3,IF(C14=Options!B140,2,IF(C14=Options!B141,1,IF(C14=Options!B142,0,"NA")))) -> NA
B15: =Languages!B166 -> Are sub-areas of floors clearly identified for drivers? (Good =3, Adequate =2, Poor =1, No =0) | E15: =IF(C15=Options!B139,3,IF(C15=Options!B140,2,IF(C15=Options!B141,1,IF(C15=Options!B142,0,"NA")))) -> NA
A16: 8.3 | B16: =Languages!B167 -> Are fire escapes and escape routes clearly marked • Clear from all locations = 3 • most locations= 2 • some locations=1 • No marking of escape routes=0) | D16: 3 | E16: =IF(C16=Options!B144,3,IF(C16=Options!B145,2,IF(C16=Options!B146,1,IF(C16=Options!B147,0,"NA")))) -> NA | F16: =D16/$F$4*$F$6 -> 0.7741935484 | G16: =IF(ISNUMBER(E16),E16/$F$4*$F$6,0) -> 0
A17: 8.4 | B17: =Languages!B168 -> Are floor levels clearly marked? (good =3, adequate=2, poor=1, none =0. Single level car parks = 3) | D17: 3 | E17: =IF(C17=Options!B153,3,IF(C17=Options!B149,3,IF(C17=Options!B150,2,IF(C17=Options!B151,1,IF(C17=Options!B152,0,"NA"))))) -> NA | F17: =D17/$F$4*$F$6 -> 0.7741935484 | G17: 0
A18: 8.5 | B18: =Languages!B169 -> Is there additional signing or prompts to orient the pedestrian on the parking deck (good =2, some =1, none = 0) | D18: 2 | E18: =IF(C18=Options!B155,2,IF(C18=Options!B156,1,IF(C18=Options!B157,0,"NA"))) -> NA | F18: 0.5161290323 | G18: 0
A19: 8.6 | B19: =Languages!B170 -> Are parking spaces individually numbered (Numbered including floor identification =2, Just numbers =1, none =0) | D19: 2 | E19: =IF(C19=Options!B159,2,IF(C19=Options!B160,1,IF(C19=Options!B161,0,"NA"))) -> NA | F19: 0.5161290323 | G19: 0
A20: 8.7 | B20: =Languages!B171 -> Use of colours for way finding (Yes= 1, No= 0) | D20: 1 | E20: =IF(C20=yes,1,IF(C20=no,0,"NA")) -> NA | F20: 0.2580645161 | G20: 0
A21: 8.8 | B21: =Languages!B172 -> Guidance sign posting for cars on roads to car park | D21: 2 | E21: =IF(ISERROR(E22+E23),"NA",SUM(E22:E23)) -> NA | F21: =D21/$F$4*$F$6 -> 0.5161290323 | G21: 0
B22: =Languages!B173 -> Static sign system only (Yes = 1, No = 0) | E22: =IF(C22=yes,1,IF(C22=no,0,"NA")) -> NA
B23: =Languages!B174 -> Dynamic sign system additionally (Yes = 1, No = 0) | E23: =IF(C23=yes,1,IF(C23=no,0,"NA")) -> NA
A24: 8.9 | B24: =Languages!B175 -> Illuminated signage at car park entrance | D24: 3 | E24: =IF(ISERROR(E25+E26+E27),"NA",SUM(E25:E27)) -> NA | F24: =D24/$F$4*$F$6 -> 0.7741935484 | G24: =IF(ISNUMBER(E24),E24/$F$4*$F$6,0) -> 0
B25: =Languages!B176 -> Signal green arrow, red cross for direction (Yes = 1, No = 0) | E25: =IF(C25=yes,1,IF(C25=no,0,"NA")) -> NA
B26: =Languages!B177 -> Signal full/free (Yes = 1, No = 0) | E26: =IF(C26=yes,1,IF(C26=no,0,"NA")) -> NA
B27: =Languages!B178 -> Signage at pedestrian entrance (Yes = 1, No = 0) | E27: =IF(C27=yes,1,IF(C27=no,0,"NA")) -> NA
A28: 8.10 | B28: =Languages!B111 -> City plan a central location in car park: (On Every pedestrian exit = 2, One location = 1, No = 0) | D28: 2 | E28: =IF(C28=Options!B82,2,IF(C28=Options!B83,1,IF(C28=Options!B84,0,"NA"))) -> NA | F28: =D28/$F$4*$F$6 -> 0.5161290323 | G28: =IF(ISNUMBER(E28),E28/$F$4*$F$6,0) -> 0
A29: 8.11 | B29: =Languages!B112 -> Guidance: | D29: 2 | E29: =IF(ISERROR(E30+E31),"NA",SUM(E30:E31)) -> NA | F29: =D28/$F$4*$F$6 -> 0.5161290323 | G29: =IF(ISNUMBER(E29),E29/$F$4*$F$6,0) -> 0
B30: =Languages!B113 -> to key attractions around the car park at pedestrian exit (Yes=1, No=0): | E30: =IF(C30=yes,1,IF(C30=no,0,"NA")) -> NA
B31: =Languages!B114 -> around the car park to pedestrian entrances (Yes=1, No=0): | E31: =IF(C31=yes,1,IF(C31=no,0,"NA")) -> NA
B32: =CONCATENATE(Tags!$B$50," ",$B$1) -> Subtotals Wayfinding Inside and Outside | D32: =SUM(D9:D31) -> 31 | E32: =SUM(E24,E16:E21,E13,E9,E28,E29) -> 0 | F32: =SUM(F9:F31) -> 8 | G32: =SUM(G9:G31) -> 0
A34: =Tags!B60 -> Notes

Sheet 9. Comfort
A1: 9 | B1: =Languages!B179 -> Comfort and Miscellaneous | E1: =IF(C6>0,Tags!B21,Tags!B20) -> Incompleted | F1: Points: | G1: =F5*F6 -> 0 | H1: =F5 -> 0
B3: =Tags!B30 -> Total Items | C3: 10 | E3: =Tags!B34 -> Score | F3: =E43 -> 0 | H3: =Evaluation!M14 -> Incomplete
B4: =Tags!B31 -> Total Items + SubItems | C4: =27-IF(C27=no,3,0)-IF(C41=no,1,0) -> 27 | E4: =Tags!B35 -> Maximum Score | F4: =D43 -> 34
B5: =Tags!B32 -> Itens Completed | C5: =COUNTA(C10:C12,C14:C23,C32:C33,C35:C39)+IF(C23=yes,COUNTA(C25),COUNTA(C24))+IF(C27=yes,COUNTA(C27:C30),COUNTA(C27))+IF(C41=no,COUNTA(C41),COUNTA(C41:C42)) -> 0 | E5: =Tags!B36 -> Percentage | F5: =F3/F4 -> 0
B6: =Tags!B33 -> Not measured | C6: =C4-C5 -> 27 | E6: =Tags!B37 -> Category Value | F6: =VLOOKUP(A1,Evaluation!$A$7:$M$15,11) -> 8
A8: 9 | B8: =Tags!B55 -> Item List | C8: =Tags!B56 -> Measured value | D8: =E4 -> Maximum Score | E8: =E3 -> Score | F8: =Tags!D57 -> Maximum Contribuition for Final Score | G8: =Tags!D58 -> Contribuition for Final Score | H8: =Tags!D59 -> Remarks
A9: 9.1 | B9: =Languages!B180 -> Notice-board at pedestrian entrance/exit showing: | D9: 3 | E9: =IF(ISERROR(SUM(E10:E12)),"NA",SUM(E10:E12)) -> 0 | F9: =D9/$F$4*$F$6 -> 0.7058823529 | G9: =IF(ISNUMBER(E9),E9/$F$4*$F$6,0) -> 0
B10: =Languages!B181 -> Access hours normal/special (yes = 1, no = 0) | E10: =IF(C10=yes,1,IF(C10=no,0,"NA")) -> NA
B11: =Languages!B182 -> Readable & understandable tariff board (yes = 1, no = 0) | E11: =IF(C11=yes,1,IF(C11=no,0,"NA")) -> NA
B12: =Languages!B183 -> Operators terms and conditions (yes = 1, no = 0) | E12: =IF(C12=yes,1,IF(C12=no,0,"NA")) -> NA
A13: 9.2 | B13: =Languages!B184 -> Payment options (pay at exit/pay at pay station): | D13: 10 | E13: =IF(ISERROR(SUM(E14:E21)),"NA",SUM(E14:E21)) -> 0 | F13: =D13/$F$4*$F$6 -> 2.352941176 | G13: =IF(ISNUMBER(E13),E13/$F$4*$F$6,0) -> 0
B14: =Languages!B185 -> Accepts coins? (yes =1, no =0) | E14: =IF(C14=yes,1,IF(C14=no,0,"NA")) -> NA
B15: =Languages!B186 -> Change given? (yes =1, no =0) | E15: NA
B16: =Languages!B187 -> Accepts banknotes? (yes =1, no =0) | E16: NA
B17: =Languages!B188 -> Accepts bank cards? (yes =1, no =0) | E17: NA
B18: =Languages!B189 -> Payment by smart phone? (yes =1, no =0) | E18: NA
B19: =Languages!B190 -> Payment by card/phone at exit? (yes =1, no =0) | E19: NA
B20: =Languages!B191 -> ID & payment by LPR? (yes =1, no =0) | E20: NA
B21: =Languages!B192 -> Accepts other cards: How many? (1 point per additional option up to 3) | E21: =IF(C21=Options!B163,0,IF(C21=Options!B164,1,IF(C21=Options!B165,2,IF(C21=Options!B166,3,"NA")))) -> NA
A22: 9.3 | B22: =Languages!B193 -> Payment at staffed desk: (yes = 1, no = 0) | D22: 1 | E22: =IF(C22=yes,1,IF(C22=no,0,"NA")) -> NA | F22: =D22/$F$4*$F$6 -> 0.2352941176 | G22: =IF(ISNUMBER(E22),E22/$F$4*$F$6,0) -> 0
A23: 9.4 | B23: =Languages!B194 -> Is this a Pay and Display Car Park? | D23: 3 | E23: =IF(C23=yes,E25,E24) -> NA | F23: =D23/$F$4*$F$6 -> 0.7058823529 | G23: =IF(ISNUMBER(E23),E23/$F$4*$F$6,0) -> 0
B24: =Languages!B195 -> Number of Pay points for Barrier controlled car parks: (One pay station = 0, More than one =1, One at each pedestrian entrance, excluding fire escapes =2, More than one at each pedestrian entrance =3) | E24: =IF(C23<>yes,IF(C24=Options!B168,0,IF(C24=Options!B169,1,IF(C24=Options!B170,2,IF(Options!B171=C24,3,"NA")))),"NA") -> NA
B25: =Languages!B196 -> Number of Pay points for Pay and Display Car Parks (One =0, < 1 for every 50 spaces =2, >1 for every 50 spaces =3) | E25: =IF(C23=yes,IF(C25=Options!B173,0,IF(C25=Options!B174,1,IF(C25=Options!B175,3,"NA"))),"NA") -> NA
A26: 9.5 | B26: =Languages!B197 -> Customer toilets: | D26: 5 | E26: =IF(ISERROR(SUM(E27:E30)),"NA",SUM(E27:E30)) -> 0 | F26: =D26/$F$4*$F$6 -> 1.176470588 | G26: =IF(ISNUMBER(E26),E26/$F$4*$F$6,0) -> 0
B27: =Languages!B198 -> Exist? (yes= 2, no= 0) | E27: =IF(C27=yes,2,IF(C27=no,0,"NA")) -> NA
B28: =Languages!B199 -> Disabled toilet? (yes=1, no= 0) | E28: =IF(C27=yes,IF(C28=yes,1,IF(C28=no,0,"NA")),"NA") -> NA
B29: =Languages!B200 -> unisex = 0, male/female separated = 1 | E29: =IF(C27=yes,IF(C29=Options!B177,0,IF(C29=Options!B178,1,"NA")),"NA") -> NA
B30: =Languages!B201 -> attendant: yes=1, no= 0 | E30: =IF(C27=yes,IF(C30=yes,1,IF(C30=no,0,"NA")),"NA") -> NA
A31: 9.6 | B31: =Languages!B202 -> Use of colours/ embellishing works | D31: 2 | E31: =IF(ISERROR(SUM(E32:E33)),"NA",SUM(E32:E33)) -> 0 | F31: =D31/$F$4*$F$6 -> 0.4705882353 | G31: =IF(ISNUMBER(E31),E31/$F$4*$F$6,0) -> 0
B32: =Languages!B203 -> Coloured pillars =1, no/concrete grey = 0 | E32: =IF(C32=Options!B180,1,IF(C32=Options!B181,0,"NA")) -> NA
B33: =Languages!B204 -> Coloured walls =1, no/concrete grey = 0 | E33: =IF(C33=Options!B183,1,IF(C33=Options!B184,0,"NA")) -> NA
A34: 9.7 | B34: =Languages!B205 -> Extra embellishment | D34: 4 | E34: =IF(ISERROR(SUM(E35:E37)),"NA",SUM(E35:E37)) -> 0 | F34: =D34/$F$4*$F$6 -> 0.9411764706 | G34: =IF(ISNUMBER(E34),E34/$F$4*$F$6,0) -> 0
B35: =Languages!B206 -> Artwork: (Yes = 2, No = 0) | E35: =IF(C35=yes,2,IF(C35=no,0,"NA")) -> NA
B36: =Languages!B207 -> Planters: (Yes = 1, No = 0) | E36: =IF(C36=yes,1,IF(C36=no,0,"NA")) -> NA
B37: =Languages!B208 -> Other: (Yes = 1, No = 0) | E37: =IF(C37=yes,1,IF(C37=no,0,"NA")) -> NA
A38: 9.8 | B38: =Languages!B209 -> Mobile phone coverage (Yes = 2, No = 0) | D38: 2 | E38: =IF(C38=yes,2,IF(C38=no,0,"NA")) -> NA | F38: =D38/$F$4*$F$6 -> 0.4705882353 | G38: =IF(ISNUMBER(E38),E38/$F$4*$F$6,0) -> 0
A39: 9.9 | B39: =Languages!B210 -> Continuity of radio signals (Yes = 1, No = 0) | D39: 1 | E39: =IF(C39=yes,1,IF(C39=no,0,"NA")) -> NA | F39: 0.2352941176 | G39: =IF(ISNUMBER(E39),E39/$F$4*$F$6,0) -> 0
A40: 9.10 | B40: =Languages!B211 -> Music | D40: 3 | E40: =IF(ISERROR(SUM(E41:E42)),"NA",SUM(E41:E42)) -> 0 | F40: =D40/$F$4*$F$6 -> 0.7058823529 | G40: =IF(ISNUMBER(E40),E40/$F$4*$F$6,0) -> 0
B41: =Languages!B212 -> Background music: yes = 2, No = 0 | E41: =IF(C41=yes,2,IF(C41=no,0,"NA")) -> NA
B42: =Languages!B213 -> Differentiation for way finding : yes =1, No = 0 | E42: =IF(C41=yes,IF(C42=yes,1,0),"NA") -> NA
B43: =CONCATENATE(Tags!$B$50," ",$B$1) -> Subtotals Comfort and Miscellaneous | D43: =SUM(D9:D40) -> 34 | E43: =SUM(E38:E40,E34,E31,E26,E23,E22,E13,E9) -> 0 | F43: =SUM(F9:F42) -> 8 | G43: =SUM(G9:G42) -> 0
A45: =Tags!B60 -> Notes

Sheet 10. Energy Environment
A1: 10 | B1: =Languages!B214 -> Energy and Environment | E1: =IF(C6>0,Tags!B21,Tags!B20) -> Incompleted | F1: Points: | G1: =F5*F6 -> 0 | H1: =F5 -> 0
B3: =Tags!B30 -> Total Items | C3: 10 | E3: =Tags!B34 -> Score | F3: =E21 -> 0 | H3: =Evaluation!M15 -> Incomplete
B4: =Tags!B31 -> Total Items + SubItems | C4: 11 | E4: =Tags!B35 -> Maximum Score | F4: =D21 -> 20
B5: =Tags!B32 -> Itens Completed | C5: =COUNTA(C10:C20) -> 0 | E5: =Tags!B36 -> Percentage | F5: =F3/F4 -> 0
B6: =Tags!B33 -> Not measured | C6: =C4-C5 -> 11 | E6: =Tags!B37 -> Category Value | F6: =VLOOKUP(A1,Evaluation!$A$7:$M$15,11) -> 8
A8: 10 | B8: =Tags!B55 -> Item List | C8: =Tags!B56 -> Measured value | D8: =E4 -> Maximum Score | E8: =E3 -> Score | F8: =Tags!D57 -> Maximum Contribuition for Final Score | G8: =Tags!D58 -> Contribuition for Final Score | H8: =Tags!D59 -> Remarks
A9: 10.1 | B9: =Languages!B215 -> Energy Saving Lighting Systems | D9: 2 | E9: =IF(ISERROR(E10+E11),"NA",SUM(E10:E11)) -> NA | F9: =D9/$F$4*$F$6 -> 0.8 | G9: =IF(ISNUMBER(E9),E9/$F$4*$F$6,0) -> 0
B10: =Languages!B216 -> Power Factor Compensation (Yes=1, No=0) | E10: =IF(C10=yes,1,IF(C10=no,0,"NA")) -> NA
B11: =Languages!B217 -> Other Systems (Yes=1, No=0) | E11: =IF(C11=yes,1,IF(C11=no,0,"NA")) -> NA
A12: 10.2 | B12: =Languages!B218 -> Movement detection variable lights, remaining quality (yes= 2, no= 0) | D12: 2 | E12: =IF(C12=yes,2,IF(C12=no,0,"NA")) -> NA | F12: =D12/$F$4*$F$6 -> 0.8 | G12: =IF(ISNUMBER(E12),E12/$F$4*$F$6,0) -> 0
A13: 10.3 | B13: =Languages!B219 -> Adaptable lighting for daylight compensation at entrance area (yes= 2, no= 0) | D13: 2 | E13: =IF(C13=yes,2,IF(C13=no,0,"NA")) -> NA | F13: 0.8 | G13: 0
A14: 10.4 | B14: =Languages!B220 -> Adaptable lighting for ambient light conditions at parking floor from daylight (yes= 2, no= 0, Irrelevant (below ground) =2) | D14: 2 | E14: =IF(C14=yes,2,IF(C14=no,0,IF(C14=Options!B25,2,"NA"))) -> NA | F14: 0.8 | G14: 0
A15: 10.5 | B15: =Languages!B221 -> Solar panels on the roof or other green energy initiatives (yes= 2, no= 0) | D15: 2 | E15: =IF(C15=yes,2,IF(C15=no,0,"NA")) -> NA | F15: 0.8 | G15: 0
A16: 10.6 | B16: =Languages!B222 -> Special treatment of cleaning water: • yes= 2, no= 0 | D16: 2 | E16: =IF(C16=yes,2,IF(C16=no,0,"NA")) -> NA | F16: 0.8 | G16: 0
A17: 10.7 | B17: =Languages!B223 -> Grey water or re-use of rain water • yes= 2, no= 0 | D17: 2 | E17: =IF(C17=yes,2,IF(C17=no,0,"NA")) -> NA | F17: 0.8 | G17: 0
A18: 10.8 | B18: =Languages!B224 -> Electric Vehicles recharging points: (Yes, more than one= 2, One recharging point=1, None=0) | D18: 2 | E18: =IF(C18=Options!B186,2,IF(C18=Options!B187,1,IF(C18=Options!B188,0,"NA"))) -> NA | F18: 0.8 | G18: 0
A19: 10.9 | B19: =Languages!B225 -> Car sharing and similar initiatives • yes= 2, no= 0 | D19: 2 | E19: =IF(C19=yes,2,IF(C19=no,0,"NA")) -> NA | F19: 0.8 | G19: 0
A20: 10.10 | B20: =Languages!B226 -> Other environmental or zero emission initiatives • yes= 2, no= 0 | D20: 2 | E20: =IF(C20=yes,2,IF(C20=no,0,"NA")) -> NA | F20: 0.8 | G20: 0
B21: =CONCATENATE(Tags!$B$50," ",$B$1) -> Subtotals Energy and Environment | D21: =SUM(D9:D20) -> 20 | E21: =SUM(E12:E20,E9) -> 0 | F21: =SUM(F9:F20) -> 8 | G21: =SUM(G9:G20) -> 0
A23: =Tags!B60 -> Notes

Sheet Minus
A1: M | B1: =Languages!B227 -> Minus Points | E1: =IF(C6>0,Tags!B21,Tags!B20) -> Incompleted | F1: Points: | G1: =F5*F6 -> 0 | H1: =F5 -> 0
B3: =Tags!B30 -> Total Items | C3: 8 | E3: =Tags!B34 -> Score | F3: =E37 -> 0
B4: =Tags!B31 -> Total Items + SubItems | C4: 23 | E4: =Tags!B35 -> Maximum Score | F4: =D37 -> -60
B5: =Tags!B32 -> Itens Completed | C5: =COUNTA(C10:C14,C16:C20,C22:C25,C27:C29,C31:C36) -> 0 | E5: =Tags!B36 -> Percentage | F5: =F3/F4 -> 0
B6: =Tags!B33 -> Not measured | C6: =C4-C5 -> 23 | E6: =Tags!B37 -> Category Value | F6: =Evaluation!K18 -> -15
A8: M | B8: =Tags!B55 -> Item List | C8: =Tags!B56 -> Measured value | D8: =E4 -> Maximum Score | E8: =E3 -> Score | F8: =Tags!D57 -> Maximum Contribuition for Final Score | G8: =Tags!D58 -> Contribuition for Final Score | H8: =Tags!D59 -> Remarks
A9: M.1 | B9: =Languages!B228 -> Presence of Graffiti | D9: -10 | E9: =IF(ISERROR(E10+E11+E12+E13+E14),"NA",SUM(E10:E14)) -> NA | F9: =D9/$F$4*$F$6 -> -2.5 | G9: =IF(ISNUMBER(E9),E9/$F$4*$F$6,0) -> 0
B10: =Languages!B229 -> Stairwells (Yes= -2, No= 0) | E10: =IF(C10=yes,-2,IF(C10=no,0,"NA")) -> NA
B11: =Languages!B230 -> Elevator (Yes= -2, No= 0) | E11: =IF(C11=yes,-2,IF(C11=no,0,"NA")) -> NA
B12: =Languages!B231 -> Toilets (Yes= -2, No= 0) | E12: =IF(C12=yes,-2,IF(C12=no,0,"NA")) -> NA
B13: =Languages!B232 -> Parking area (Yes= -2, No= 0) | E13: =IF(C13=yes,-2,IF(C13=no,0,"NA")) -> NA
B14: =Languages!B233 -> Outside walls (Yes= -2, No= 0) | E14: =IF(C14=yes,-2,IF(C14=no,0,"NA")) -> NA
A15: M.2 | B15: =Languages!B234 -> Presence of dirt | D15: -10 | E15: =IF(ISERROR(E16+E17+E18+E19+E20),"NA",SUM(E16:E20)) -> NA | F15: =D15/$F$4*$F$6 -> -2.5 | G15: =IF(ISNUMBER(E15),E15/$F$4*$F$6,0) -> 0
B16: =Languages!B235 -> Stairwells (Yes= -2, No= 0) | E16: =IF(C16=yes,-2,IF(C16=no,0,"NA")) -> NA
B17: =Languages!B236 -> Elevator (Yes= -2, No= 0) | E17: =IF(C17=yes,-2,IF(C17=no,0,"NA")) -> NA
B18: =Languages!B237 -> Toilets (Yes= -2, No= 0) | E18: =IF(C18=yes,-2,IF(C18=no,0,"NA")) -> NA
B19: =Languages!B238 -> Parking area (Yes= -2, No= 0) | E19: =IF(C19=yes,-2,IF(C19=no,0,"NA")) -> NA
B20: =Languages!B239 -> Outside of entrance for pedestrians + cars (Yes= -2, No= 0) | E20: =IF(C20=yes,-2,IF(C20=no,0,"NA")) -> NA
A21: M.3 | B21: =Languages!B240 -> Poor quality of paint work | D21: -8 | E21: =IF(ISERROR(E22+E23+E24+E25),"NA",SUM(E22:E25)) -> NA | F21: =D21/$F$4*$F$6 -> -2 | G21: =IF(ISNUMBER(E21),E21/$F$4*$F$6,0) -> 0
B22: =Languages!B241 -> Stairwells (Yes= -2, No= 0) | E22: =IF(C22=yes,-2,IF(C22=no,0,"NA")) -> NA
B23: =Languages!B242 -> Elevator (Yes= -2, No= 0) | E23: =IF(C23=yes,-2,IF(C23=no,0,"NA")) -> NA
B24: =Languages!B243 -> Parking area (Yes= -2, No= 0) | E24: =IF(C24=yes,-2,IF(C24=no,0,"NA")) -> NA
B25: =Languages!B244 -> Poor quality horizontal markings (Yes= -2, No= 0) | E25: =IF(C25=yes,-2,IF(C25=no,0,"NA")) -> NA
A26: M.4 | B26: =Languages!B245 -> Poor quality/lack of maintenance (pot holes ,damages) | D26: -6 | E26: =IF(ISERROR(E27+E28+E29),"NA",SUM(E27:E29)) -> NA | F26: =D26/$F$4*$F$6 -> -1.5 | G26: =IF(ISNUMBER(E26),E26/$F$4*$F$6,0) -> 0
B27: =Languages!B246 -> Floors (Yes= -2, No= 0) | E27: =IF(C27=yes,-2,IF(C27=no,0,"NA")) -> NA
B28: =Languages!B247 -> Walls (Yes= -2, No= 0) | E28: =IF(C28=yes,-2,IF(C28=no,0,"NA")) -> NA
B29: =Languages!B248 -> Evidence of standing water (Yes= -2, No= 0) | E29: =IF(C29=yes,-2,IF(C29=no,0,"NA")) -> NA
A30: M.5 | B30: =Languages!B249 -> Evidence of bad smells | D30: -6 | E30: =IF(ISERROR(E31+E32+E33),"NA",SUM(E31:E33)) -> NA | F30: =D30/$F$4*$F$6 -> -1.5 | G30: =IF(ISNUMBER(E30),E30/$F$4*$F$6,0) -> 0
B31: =Languages!B250 -> Elevators (Yes= -2, No= 0) | E31: =IF(C31=yes,-2,IF(C31=no,0,"NA")) -> NA
B32: =Languages!B251 -> Stairwells (Yes= -2, No= 0) | E32: =IF(C32=yes,-2,IF(C32=no,0,"NA")) -> NA
B33: =Languages!B252 -> Parking deck (Yes= -2, No= 0) | E33: =IF(C33=yes,-2,IF(C33=no,0,"NA")) -> NA
A34: M.6 | B34: =Languages!B253 -> Over 15% of parking spaces in cul-de-sac without occupancy indication. (Yes= -5, No=0) | D34: -5 | E34: =IF(C34=yes,-5,IF(C34=no,0,"NA")) -> NA | F34: =D34/$F$4*$F$6 -> -1.25 | G34: =IF(ISNUMBER(E34),E34/$F$4*$F$6,0) -> 0
A35: M.7 | B35: =Languages!B254 -> Various points of criticism (to explain!) [E.g. hollow sound, squeaking tyres, unintended visitors, etc.] up to -10 | D35: -10 | E35: =IF(ISNUMBER(C35),C35,"NA") -> NA | F35: =D35/$F$4*$F$6 -> -2.5 | G35: =IF(ISNUMBER(E35),E35/$F$4*$F$6,0) -> 0
A36: M.8 | B36: =Languages!B255 -> Penalty for Mandatory Condition 1.4 Applies | D36: -5 | E36: =IF(C36=yes,-5,IF(C36=no,0,"NA")) -> NA | F36: =D36/$F$4*$F$6 -> -1.25 | G36: =IF(ISNUMBER(E36),E36/$F$4*$F$6,0) -> 0
B37: =CONCATENATE(Tags!$B$50," ",$B$1) -> Subtotals Minus Points | D37: =SUM(D9:D36) -> -60 | E37: =SUM(E34:E35,E30,E26,E21,E15,E9) -> 0 | F37: =SUM(F9:F35) -> -13.75 | G37: =SUM(G9:G35) -> 0
A39: =Tags!B60 -> Notes

Sheet Bonus
A1: B | B1: Bonus Points | E1: =IF(C6>0,Tags!B21,Tags!B20) -> Incompleted | F1: Points: | G1: =F5*F6 -> 0 | H1: =F5 -> 0
B3: =Tags!B30 -> Total Items | C3: 7 | E3: =Tags!B34 -> Score | F3: =E26 -> 0
B4: =Tags!B31 -> Total Items + SubItems | C4: 16 | E4: =Tags!B35 -> Maximum Score | F4: =D26 -> 33
B5: =Tags!B32 -> Itens Completed | C5: =COUNTA(C10:C25) -> 0 | E5: =Tags!B36 -> Percentage | F5: =F3/F4 -> 0
B6: =Tags!B33 -> Not measured | C6: =C4-C5 -> 16 | E6: =Tags!B37 -> Category Value | F6: =Evaluation!K19 -> 15
A8: B | B8: =Tags!B55 -> Item List | C8: =Tags!B56 -> Measured value | D8: =E4 -> Maximum Score | E8: =E3 -> Score | F8: =Tags!D57 -> Maximum Contribuition for Final Score | G8: =Tags!D58 -> Contribuition for Final Score | H8: =Tags!D59 -> Remarks
A9: B.1 | B9: =Languages!B257 -> Extra provisions in car park | D9: 10 | E9: =IF(ISERROR(E10+E11+E12+E13+E14+E15+E16+E17+E18+E19),"NA",SUM(E10:E19)) -> NA | F9: =D9/$F$4*$F$6 -> 4.545454545 | G9: =IF(ISNUMBER(E9),E9/$F$4*$F$6,0) -> 0
B10: =Languages!B258 -> Special motorcycle area (Yes= 1, No= 0) | E10: =IF(C10=yes,1,IF(C10=no,0,"NA")) -> NA
B11: =Languages!B259 -> Lockers for customers’ use (Yes= 1, No= 0) | E11: NA
B12: =Languages!B260 -> Other aids (Yes= 1, No= 0) | E12: NA
B13: =Languages!B261 -> Bicycle rent (Yes= 1, No= 0) | E13: NA
B14: =Languages!B262 -> Other Driver Assistance (Yes= 1, No= 0) | E14: NA
B15: =Languages!B263 -> Vending Machines (Yes= 1, No= 0) | E15: NA
B16: =Languages!B264 -> Heart Defibrillator (Yes= 1, No= 0) | E16: NA
B17: =Languages!B265 -> First aid trained staff (Yes= 1, No= 0) | E17: NA
B18: =Languages!B266 -> Real time traffic data (Yes= 1, No= 0) | E18: NA
B19: =Languages!B267 -> Other real time accessible information (e.g. local events) (Yes= 1, No= 0) | E19: NA
A20: B.2 | B20: =Languages!B268 -> Measures to avoid traffic queues at peak hours (i.e. tidal lane at car entry/exit) - (Yes= 3, No= 0) | D20: 3 | E20: =IF(C20=yes,3,IF(C20=yes,0,"NA")) -> NA | F20: =D20/$F$4*$F$6 -> 1.363636364 | G20: =IF(ISNUMBER(E20),E20/$F$4*$F$6,0) -> 0
A21: B.3 | B21: =Languages!B269 -> Turn around possibility for cars before height barrier or full sign to prevent reversing (Yes= 3, No= 0) | D21: 3 | E21: =IF(C21=yes,3,IF(C21=yes,0,"NA")) -> NA | F21: =D21/$F$4*$F$6 -> 1.363636364 | G21: =IF(ISNUMBER(E21),E21/$F$4*$F$6,0) -> 0
A22: B.4 | B22: =Languages!B270 -> Customer service desk (Yes= 1, No= 0) | D22: 1 | E22: =IF(C22=yes,1,IF(C22=yes,0,"NA")) -> NA | F22: 0.4545454545 | G22: 0
A23: B.5 | B23: =Languages!B271 -> Escalators and/or travellators (To/from all levels =5, To/from some levels =3, No Escalators or Travellators = 0) | D23: 5 | E23: =IF(C23=Options!B190,5,IF(C23=Options!B191,3,IF(C23=Options!B192,0,"NA"))) -> NA | F23: 2.272727273 | G23: 0
A24: B.6 | B24: =Languages!B272 -> Localisation of parked cars by ticket or license plate (Yes= 1, No= 0) | D24: 1 | E24: =IF(C24=yes,1,IF(C24=yes,0,"NA")) -> NA | F24: 0.4545454545 | G24: 0
A25: B.7 | B25: =Languages!B273 -> Other positive points e.g. extra services, friendly staff, tiled walls/floors, good fit of the car park in cityscape etc up to ten additional bonus points. To be explicitly identified. | D25: 10 | E25: =IF(ISNUMBER(C25),C25,"NA") -> NA | F25: 4.545454545 | G25: 0
B26: =CONCATENATE(Tags!$B$50," ",$B$1) -> Subtotals Bonus Points | D26: =SUM(D9:D25) -> 33 | E26: =SUM(E20:E25,E9) -> 0 | F26: =SUM(F9:F25) -> 15 | G26: =SUM(G9:G25) -> 0
A28: =Tags!B60 -> Notes

Sheet Gold Award
A1: =Tags!B71 -> Global Evaluation - Gold Award | F1: =Tags!B49 -> % Completion: | G1: =C9/3 -> 0
A3: =Tags!B69 -> Mandatory Conditions for Golden Award | C3: ='1. Mandatory Conditions'!C3 -> Compliant | D3: =Tags!B23 -> Comments
A4: 1.2 | B4: =Languages!B7 -> Minimum headroom = 2,00 m, generally in the public areas. Incidental lower obstacles must be clearly marked.
A5: 1.4 | B5: =Languages!B10 -> 70% of bays must be at least 2.40m wide.
A6: 1.11 | B6: =Languages!B18 -> Average light levels on parking area at floor is at minimum 50 Lux
A8: =Tags!B39 -> Category | C8: Number of Oks | D8: Number of Fails | G8: =G11 -> Status
A9: 1 | B9: ='1. Mandatory Conditions'!B1 -> Mandatory Minimum Conditions | C9: =COUNTIF($C$4:$C$6,Options!B20) -> 0 | D9: =COUNTIF($C$4:$C$6,Options!B21) -> 0 | G9: =IF(Evaluation!M4=pass,IF(D9>0,fail,IF(C9=3,pass,incomplete)),Evaluation!M4) -> Fail
A11: =A8 -> Category | C11: =Tags!B44 -> % Obtained | D11: =Tags!B45 -> Minimum | E11: =Tags!B46 -> Category Points | F11: =Tags!B47 -> Points Obtained | G11: =Tags!B48 -> Status
A12: ='2. Lighting'!$A$1 -> 2 | B12: ='2. Lighting'!$B$1 -> Lighting | C12: =Evaluation!I7 -> 0 | D12: 0.5 | E12: 16 | F12: =C12*E12 -> 0 | G12: =IF(C12>D12,pass,fail) -> Fail
A13: ='3. Entry Exit'!$A$1 -> 3 | B13: ='3. Entry Exit'!$B$1 -> Car Entry / Car Exit | C13: =Evaluation!I8 -> 0 | D13: 0.5 | E13: 8 | F13: =C13*E13 -> 0 | G13: Fail
A14: ='4. Parking Area'!$A$1 -> 4 | B14: ='4. Parking Area'!$B$1 -> Parking Area | C14: =Evaluation!I9 -> 0 | D14: 0.5 | E14: 20 | F14: 0 | G14: Fail
A15: ='5. Ramps'!$A$1 -> 5 | B15: ='5. Ramps'!$B$1 -> Vehicle Ramps | C15: =Evaluation!I10 -> 0 | D15: 0.5 | E15: 8 | F15: 0 | G15: Fail
A16: ='6. Pedestrian Access'!$A$1 -> 6 | B16: ='6. Pedestrian Access'!$B$1 -> Pedestrian Access | C16: =Evaluation!I11 -> 0 | D16: 0.5 | E16: 16 | F16: 0 | G16: Fail
A17: 7 | B17: ='7. Security equipment'!$B$1 -> Security Equipment | C17: =Evaluation!I12 -> 0 | D17: 0.5 | E17: 8 | F17: 0 | G17: Fail
A18: 8 | B18: ='8. Wayfinding'!$B$1 -> Wayfinding Inside and Outside | C18: =Evaluation!I13 -> 0 | D18: 0.5 | E18: 8 | F18: 0 | G18: Fail
A19: 9 | B19: ='9. Comfort'!$B$1 -> Comfort and Miscellaneous | C19: =Evaluation!I14 -> 0 | D19: 0.4 | E19: 8 | F19: 0 | G19: Fail
A20: 10 | B20: ='10. Energy Environment'!$B$1 -> Energy and Environment | C20: =Evaluation!I15 -> 0 | D20: 0.25 | E20: 8 | F20: 0 | G20: Fail
A21: =Tags!B50 -> Subtotals | E21: =SUM(E12:E20) -> 100 | F21: =SUM(F12:F20) -> 0
A23: =Minus!$A$1 -> M | B23: =Minus!$B$1 -> Minus Points | C23: =Evaluation!I18 -> 0 | E23: -15 | F23: =E23*C23 -> 0
A24: =Bonus!$A$1 -> B | B24: =Bonus!$B$1 -> Bonus Points | C24: =Evaluation!I19 -> 0 | E24: 15 | F24: =C24*E24 -> 0
A25: =A21 -> Subtotals | E25: =SUM(E23:E24) -> 0 | F25: =SUM(F23:F24) -> 0
A27: =Tags!B51 -> Totals | E27: =E21+E25 -> 100 | F27: =F21+F25 -> 0
A29: =UPPER(Tags!B52) -> MINIMUM REQUIREMENT FOR ESPA AWARD | C29: 0.65 | D29: =Tags!B70 -> ESPA Gold Award
A32: =UPPER(Tags!B44) -> % OBTAINED | C32: =F27/E27 -> 0
A35: =Evaluation!F24 -> MANDATORY MINIMUM CONDITIONS | C35: =IF(G9=pass,"OK",IF(G9=fail,"KO","-")) -> KO | D35: =UPPER(IF(AND(C32>=C29,C35="OK",C38="OK"),yes,IF(OR(C32<C29,C35="KO",C38="KO"),no,"NA"))) -> NO
A38: =Evaluation!F27 -> CATEGORIES MINIMUM POINTS | C38: =IF(COUNTIF(G12:G20,fail)>0,"KO","OK") -> KO

Sheet Languages (hidden)
A1: ='Languages Available'!B1 -> 1 | B1: Language Selected: | D1: ='General Info'!E3 -> English
D2: 1 | E2: 2 | F2: 3 | G2: 4 | H2: 5 | I2: 6
B3: Active Language | D3: =VLOOKUP(D2,'Languages Available'!$A$3:$B$23,2) -> English | E3: =VLOOKUP(E2,'Languages Available'!$A$3:$B$23,2) -> Dutch | F3: =VLOOKUP(F2,'Languages Available'!$A$3:$B$23,2) -> Français | G3: =VLOOKUP(G2,'Languages Available'!$A$3:$B$23,2) -> Deutsch | H3: =VLOOKUP(H2,'Languages Available'!$A$3:$B$23,2) -> Spanish | I3: =VLOOKUP(I2,'Languages Available'!$A$3:$B$23,2) -> Portuguese
A4: =C4 -> 1 | B4: =IF(ISBLANK(VLOOKUP(A4,$C$4:$V$9989,1+$A$1)),D4,VLOOKUP(A4,$C$4:$V$9989,1+$A$1)) -> Mandatory Minimum Conditions | C4: 1 | D4: Mandatory Minimum Conditions | E4: Verplichte minimum eisen | F4: Conditions minimales obligatoires | G4: Mindestbedingungen | H4: Condiciones mínimas obligatorias | I4: Condições Mínimas Necessárias
A5: 2 | B5: Car park must be for public use | C5: =C4+1 -> 2 | D5: Car park must be for public use | E5: Garage moet publiek toegankelijk zijn | F5: Le parking doit être à usage public | G5: Das Parkhaus muss öffentlich sein | H5: El aparcamiento debe ser de uso público | I5: Parque de estacionamento para uso público
A6: 3 | B6: Minimum headroom = 1.90 m, generally in the public areas. Incidental lower obstacles must be clearly marked. | C6: =C5+1 -> 3 | D6: Minimum headroom = 1.90 m, generally in the public areas. Incidental lower obstacles must be clearly marked. | E6: Minimale inrijhoogte 1,90 m. Incidentele plaatsen met lagere hoogte moeten duidelijk gemarkeerd zijn. | F6: Hauteur minimale au plafond=1.90m dans la majorité des espaces dédiés au public. Les quelques éventuels passages plus bas doivent être clairement signalés . | G6: Mindestdurchfahrtshöhe = 1.90 m im allgemein zugänglichen Bereich. Einzelne niedrigere Hindernisse müssen deutlich gekennzeichnet sein. | H6: Gálibo mínimo = 1.90 m, por regla general en las zonas públicas. Cualquier obstáculo eventual deberá estar claramente señalizado. | I6: Pé-direito mínimo = 1,90 m, geralmente nas áreas públicas. Eventuais obstáculos a menor altura devem estar claramente identificados.
A7: 4 | B7: Minimum headroom = 2,00 m, generally in the public areas. Incidental lower obstacles must be clearly marked. | C7: 4 | D7: Minimum headroom = 2,00 m, generally in the public areas. Incidental lower obstacles must be clearly marked. | E7: Minimale inrijhoogte 2,00 m. Incidentele plaatsen met lagere hoogte moeten duidelijk gemarkeerd zijn. | F7: Hauteur minimale au plafond=2,00m dans la majorité des espaces dédiés au public. Les quelques éventuels passages plus bas doivent être clairement signalés . | G7: Mindestdurchfahrtshöhe = 2,00 m im allgemein zugänglichen Bereich. Einzelne niedrigere Hindernisse müssen deutlich gekennzeichnet sein. | H7: Gálibo mínimo = 2.00 m, por regla general en las zonas públicas. Cualquier obstáculo eventual deberá estar claramente señalizado. | I7: Pé-direito mínimo = 2,00 m, geralmente nas áreas públicas. Eventuais obstáculos a menor altura devem estar claramente identificados.
A8: 5 | B8: There must be at least one dedicated entry and exit lane although additional tidal flow lanes are allowed. | C8: 5 | D8: There must be at least one dedicated entry and exit lane although additional tidal flow lanes are allowed. | E8: Er moet ten minste één gescheiden inrit en uitrit zijn, extra wisselstroken zijn toegestaan. | F8: Il doit y avoir minimum une voie d’entrée et une voie de sortie, une troisième voie bidirectionnelle est autorisée. | G8: Es müssen getrennte Ein- und Ausfahrtsspuren vorhanden sein. Tageszeitlich in wechselnder Fahrtrichtung genutzte Wechselspuren sind zulässig. | H8: Deberá haber al menos un carril exclusivo de entrada y otro de salida, si bien se permitirán carriles reversibles adicionales | I8: Deve existir pelo menos um acesso exclusivo para entradas e um acesso exclusivo para saídas, apesar de poderem existir vias de fluxo bidirecional adicionais.
A9: 6 | B9: 70% of bays must be at least 2.30m wide. For renovated car parks, over ten years old, minimum bay width of 2.25m is allowed (in that case a penalty applies - check M8). | C9: 6 | D9: 70% of bays must be at least 2.30m wide. For renovated car parks, over ten years old, minimum bay width of 2.25m is allowed (in that case a penalty applies - check M8). | E9: 70% van de parkeervakken moet minstens 2.30m breed zijn. Voor gerenoveerde garages, ouder dan tien jaar is een minimum breedte van 2.25m toegestaan. In dergelijke gevallen worden vijf punten in mindering gebracht, die elders gecompenseerd moeten worden | F9: 70% des emplacements doivent faire au moins 2.30m de large. Pour des parkings rénovés de plus de 10 ans, une largeur minimum de 2.25m est tolérée. Cependant, dans ce cas, une pénalité de 5 points est appliquée, à compenser ailleurs. | G9: 70% der Stellplätze müssen mindestens 2,30 m breit sein. Für renovierte Parkhäuser, die älter als 10 Jahre sind, wird ausnahmsweise eine Stellplatzbreite von 2,25 m toleriert. In diesem Fall kommt ein Pauschalabzug zur Anwendung (siehe M8). | H9: El 70% de las plazas debe tener un ancho mínimo de 2.30m. Para aparcamientos renovados, de más de 10 años de antigüedad, se permite un ancho mínimo de 2.25m (en ese caso se aplica una penalización - ver M8) | I9: 70% dos lugares de estacionamento devem ter no mínimo 2.30m de largura. Para parques de estacionamento renovados, com mais de dez anos de idade, a largura mínima do lugar permitida é de 2.25m (neste caso aplica-se uma penalidade - ver M8).
A10: 7 | B10: 70% of bays must be at least 2.40m wide. | C10: 7 | D10: 70% of bays must be at least 2.40m wide. | E10: 70% van de parkeervakken moet minstens 2.40m breed zijn. | F10: 70% des emplacements doivent faire au moins 2.40m de large. | G10: 70% der Stellplätze müssen mindestens 2,40 m breit sein. | H10: El 70% de las plazas debe tener un ancho mínimo de 2.40m | I10: 70% dos lugares de estacionamento devem ter no mínimo de 2.40m de largura.
A11: 8 | B11: All straight ramps for unidirectional traffic must be minimum 2.7 metres wide. Bidirectional ramps must be at least 6m wide with lane markings. Ramp width is measured between walls or pillars | C11: 8 | D11: All straight ramps for unidirectional traffic must be minimum 2.7 metres wide. Bidirectional ramps must be at least 6m wide with lane markings. Ramp width is measured between walls or pillars | E11: Alle hellingbanen voor auto's voor één richting moeten minstens 2,7 meter breed zijn; bij tweerichtingsverkeer minstens 6 meter breed met midden markering. De breedte wordt gemeten tussen wanden of kolommen. | F11: Toutes les rampes droites à trafic unidirectionnel doivent faire minimum 2.70m de large. En cas de rampes bidirectionnelles, celles-ci doivent faire minimum 6m de large avec marquage des voies. La largeur des rampes est mesurée entre les murs ou piliers. | G11: Gerade Rampen mit Einrichtungsverkehr müssen mindestens 2,70 m breit sein. Gerade Gegenverkehrsrampen müssen mindestens 6 m breit sein und eine Fahrbahnmarkierung aufweisen. Die Breite der Rampen wird zwischen Wänden oder Stützen gemessen. | H11: Las rampas rectas para tráfico unidireccional deben tener un ancho mínimo de 2.7m. Las rampas de doble sentido tendrán un ancho mínimo de 6m, con marcas viales de separación. El ancho de la rampa se mide entre paredes o pilares. | I11: Todas as rampas retas com tráfego unidirecional devem ter no mínimo 2.7 metros de largura. Rampas bidirecionais devem ter no mínimo 6m de largura, com marcações das faixas. A largura da rampa é medida entre paredes ou pilares
A12: 9 | B12: Curved ramps for single directional traffic must have an external radius of minimum 8.00 metres with lane width of minimum 3.5 metres. For bidirectional curved ramps this applies for the inner driving lane. The outside driving lane must be minimum 3.5 metres wide as well. | C12: 9 | D12: Curved ramps for single directional traffic must have an external radius of minimum 8.00 metres with lane width of minimum 3.5 metres. For bidirectional curved ramps this applies for the inner driving lane. The outside driving lane must be minimum 3.5 metres wide as well. | E12: De buitenkant van een gebogen helling met eenrichtingsverkeer moet een straal van minstens 8 meter hebben met een rijstrook van minstens 3,5 meter breed. Bij hellingen met twee richtingsverkeer geldt dit voor de binnenste rijstrook.De buitenste rijstrook moet ook minstens 3,5 meter breed zijn. | F12: Les rampes courbes pour un trafic unidirectionnel doivent présenter un radius externe de minimum 8m avec des voies de minimum 3.50m de large. Pour des rampes courbes bidirectionnelles, les mesures sont d’application pour la voie intérieure de la courbe.La voie extérieure doit être de minimum 3.50m de large. | G12: Gekrümmte Rampen mit Einrichtungsverkehr müssen einen Außenradius von mindestens 8,00 m aufweisen und die Fahrbahn muss mindestens 3,50 m breit sein. Bei gekrümmten Rampen mit Gegenverkehr gilt dasselbe für die innere Spur. Die äußere Spur muss ebenfalls mindestens 3,50 m breit sein. | H12: Las rampas curvas para tráfico unidreccional deben tener un radio exterior de al menos 8.00m con un ancho mínimo de carril de 3.5m. Para rampas curvas de doble sentido, lo anterior aplica al carril interior. El carril exterior debe tener también un ancho mínimo de 3.5m. | I12: Rampas curvas para tráfego direcional único devem ter um raio externo mínimo de 8.00 m, com largura de faixa mínima de 3.50 m. (Para rampas curvas bidirecionais, aplica-se para a faixa de rodagem interior. A faixa de rodagem exterior também deve ter largura mínima de 3.50 m)
A13: 10 | B13: Ramp gradients must not exceed 20% , to be measured at the middle of driving lane. At bidirectional curved ramps this applies for the inner (steepest) driving lane. | C13: 10 | D13: Ramp gradients must not exceed 20% , to be measured at the middle of driving lane. At bidirectional curved ramps this applies for the inner (steepest) driving lane. | E13: Hellingbanen mogen niet steiler zijn dan 20%, gemeten in het midden van de rijbaan. Bij gebogen hellingen voor twee richtingsverkeer geldt dit voor de binnenste rijstrook. | F13: L’inclinaison de la rampe ne peut excéder 20%.Il doit être mesurée au centre de la voie de circulation. Pour les rampes courbes bidirectionnelles, ceci s’applique à la voie intérieure la plus abrupte. | G13: Das Gefälle von Rampen darf 20 % nicht überschreiten. Es wird in der Fahrbahnachse gemessen. Bei mehrspurigen Rampen gilt dies jeweils für die innere (steilere) Spur. | H13: Las pendientes de las rampas no pueden superar el 20%, medidas sobre el eje del carril. En las rampas curvas de doble sentido, lo anterior aplica al carril interior (el de mayor pendiente). | I13: A inclinação das rampas não deve exceder 20%, medido no centro da faixa de rodagem. Em rampas curvas bidirecionais, aplica-se para a rampa interior (mais inclinada).
A14: 11 | B14: If the car park has paid parking and access control by barriers or gates, staff must be contactable at the pay point/exit point and secured pedestrian entries. | C14: 11 | D14: If the car park has paid parking and access control by barriers or gates, staff must be contactable at the pay point/exit point and secured pedestrian entries. | E14: Als de garage is uitgerust met slagbomen of afsluitpoorten voor betaald parkeren, moeten bij de betaalautomaten, uitritten en beveiligde toegangen voor voetgangers een intercom aanwezig zijn. | F14: Si le parking est payant et dispose d’un contrôle d’accès par barrières ou portails, un personnel de service doit pouvoir être contacté aux bornes de paiement, aux bornes de sorties et aux entrées piétons sécurisées. | G14: Bei bewirtschafteten Parkhäusern mit Zugangskontrolle durch Schranken oder Tore muss das Personal an allen Bezahlstationen, Ausfahrten sowie gesicherten Fußgängerzugängen z.B. kontaktierbar sein. | H14: Si el aparcamiento es de pago y dispone de control de acceso a través de barreras y puertas, deberá ser posible contactar con el personal en el punto de pago/punto de salida y en los accesos peatonales | I14: Se o parque de estacionamento tem estacionamento pago e controlo de acessos por barreiras ou portões, funcionários devem estar contactáveis a partir dos locais de pagamento, das saídas e de entradas pedonais com porta fechada.
A15: 12 | B15: Receipt for payment must be provided when requested. | C15: 12 | D15: Receipt for payment must be provided when requested. | E15: Op verzoek moet een kwitantie voor de betaling worden verstrekt. | F15: Un reçu de paiement doit pouvoir être délivré en cas de demande. | G15: Ein Zahlungsnachweis muss auf Verlangen herausgegeben werden. | H15: Se proporcionará recibo en caso de ser solicitado por el usuario | I15: Recibo de pagamento deve ser fornecido quando solicitado.
A16: 13 | B16: All turning movements must be capable of being completed without reversing (moving in/out the parking bay and cul-de-sacs excluded) | C16: 13 | D16: All turning movements must be capable of being completed without reversing (moving in/out the parking bay and cul-de-sacs excluded) | E16: Alle voertuigbewegingen in de garage moeten zonder achteruitsteken uitgevoerd kunnen worden. (uitgezonderd in- en uitdraaien van een parkeervak en doodlopende rijstroken). | F16: Tous les mouvements de véhicule doivent pouvoir être effectués sans devoir effectuer une marche arrière (exception faite pour se garer ou sortir d’un emplacement ainsi que les culs-de-sac). | G16: Alle Kurvenfahrten müssen ohne Zurückstoßen möglich sein (Parkierungsvorgänge und Sackgassen sind hiervon ausgenommen). | H16: Todos los giros se podrán realizar sin necesidad de dar marcha atrás (se excluyen las maniobras de estacionamiento y la circulación en calles sin salida) | I16: Todos os movimentos de viragem devem poder ser concluídos necessidsde de inversão de marcha (manobras de estacionamento e becos sem saída estão excluídos).
A17: 14 | B17: Average light levels on parking area at floor is at minimum 20 Lux | C17: 14 | D17: Average light levels on parking area at floor is at minimum 20 Lux | E17: gemiddeld lichtniveau op vloerhoogte is minimaal 20 Lux | G17: Die durchschnittliche Beleuchtungsstärke am Boden beträgt mindestens 20 Lux. | H17: Los niveles lumínicos medios en la plaza de estacionamiento a nivel del suelo serán de cómo mínimo 20 Lux | I17: Níveis de luz médios na área de estacionamento, medidos ao nível do piso, são no mínimo de 20 Lux
A18: 15 | B18: Average light levels on parking area at floor is at minimum 50 Lux | C18: 15 | D18: Average light levels on parking area at floor is at minimum 50 Lux | E18: gemiddeld lichtniveau op vloerhoogte is minimaal 50 Lux | G18: Die durchschnittliche Beleuchtungsstärke am Boden beträgt mindestens 50 Lux. | H18: Los niveles lumínicos medios en la plaza de estacionamiento a nivel del suelo serán de cómo mínimo 50 Lux | I18: Níveis de luz médios na área de estacionamento, medidos ao nível do piso, são no mínimo de 50 Lux
A19: 16 | B19: Lighting | C19: 16 | D19: Lighting | E19: Verlichting | F19: Eclairage | G19: Beleuchtung | H19: Iluminación | I19: Iluminação
A20: 17 | B20: Item List (values in Lux, see user manual for measurement) | C20: 17 | D20: Item List (values in Lux, see user manual for measurement) | E20: Omschrijving (waardes in Lux) | F20: Liste des mesures à effectuer ( valeurs en Lux, se référer au manuel des mesures). | G20: Positionsliste (Werte in Lux, bezüglich der Messungen siehe Benutzungsanleitung) | H20: Lista de elementos (valores en Lux, ver manual de usuario para criterios de medida) | I20: Lista de Itens (valores em Lux, consulte o manual do utilizador para a medição)
A21: 18 | B21: Vehicular entry area; at floor level • Above 200 Lux = 5; • Between 75– 200 Lux: 0,04 pt per Lux over 75 • Below 75 Lux = 0 | C21: 18 | D21: Vehicular entry area; at floor level • Above 200 Lux = 5; • Between 75– 200 Lux: 0,04 pt per Lux over 75 • Below 75 Lux = 0 | E21: Ingangspartij; op vloerhoogte: • > 200 Lux = 5; • 75– 200 Lux = 0,04punt per Lux boven 75; • < 75 Lux = 0 | F21: Aire d’entrée des véhicules, mesures effectuées au niveau du sol. • Plus de 200 Lux = 5; • Entre 75– 200 Lux: 0,04 pt par Lux au-delà de 75 • Moins de 75 Lux = 0 | G21: Einfahrtsbereich, auf dem Boden • über 200 Lux = 5; • zwischen 75 - 200 Lux: 0,04 pt pro Lux über 75 • weniger als 75 Lux = 0 | H21: Zona de acceso de vehículos; a nivel del suelo • Más de 200 Lux = 5; • Entre 75– 200 Lux: 0,04 pts por Lux por encima de 75 • Menos de 75 Lux = 0 | I21: Zona de entrada de veículos, ao nível do chão • Acima de 200 Lux = 5; • Entre 75 e 200 Lux: 0,04 pt por cada Lux acima de 75; • Abaixo de 75 Lux = 0;
A22: 19 | B22: Entry; at 1 m height near ticket-machine • Above 200 Lux = 3; • Between100– 200 Lux: 0,03 pt per Lux over 100 • Below 100 Lux = 0 | C22: 19 | D22: Entry; at 1 m height near ticket-machine • Above 200 Lux = 3; • Between100– 200 Lux: 0,03 pt per Lux over 100 • Below 100 Lux = 0 | E22: Inrit kaartgever; op 1 m hoogte • > 200 Lux = 3; • 100-200 Lux = 0,03punt per Lux boven 100; • • < 100 Lux = 0 | F22: Entrée ; à 1m de hauteur près de la borne d’entrée (tickets) • Plus de 200 Lux = 3; • Entre 100– 200 Lux: 0,03 pt par Lux au-delà de 100 • Moins de 100 Lux = 0 | G22: Einfahrt ; in 1 m Höhe beim Ticketgeber • über 200 Lux = 3; • zwischen 100 - 200 Lux: 0,03 pt pro Lux über 100 • weniger als 100 Lux = 0 | H22: Acceso; a 1 m de altura junto a la máquina expendedora de tickets • Más de 200 Lux = 3; • Entre 100– 200 Lux: 0,03 pts por Lux por encima de 100 • Menos de 100 Lux = 0 | I22: Zona de entrada de veículos, a 1 m de altura, perto da máquina de bilhetes • Acima de 200 Lux = 3; • Entre 100 e 200 Lux: 0,03 pt por cada Lux acima de 100; • Abaixo de 100 Lux = 0
A23: 20 | B23: Exit; at 1 m height near barrier/ticket-machine • Above 200 Lux = 3; • Between100– 200 Lux: 0,03 pt per Lux over 100 • Below 100 Lux= 0 | C23: 20 | D23: Exit; at 1 m height near barrier/ticket-machine • Above 200 Lux = 3; • Between100– 200 Lux: 0,03 pt per Lux over 100 • Below 100 Lux= 0 | E23: Uitrit kaartlezer; op 1 m hoogte • > 200 Lux = 3; • 100-200 Lux =0,03punt per Lux boven 100; • < 100 Lux = 0 | F23: Sortie ; à 1 m de hauteur près de la borne de sortie (tickets) • Plus de 200 Lux = 3; • Entre 100– 200 Lux: 0,03 pt par Lux au-delà de 100 • Moins de 100 Lux= 0 | G23: Ausfahrt ; in 1 m Höhe beim Ausfahrtskontrollgerät • über 200 Lux = 3; • zwischen 100 - 200 Lux: 0,03 pt pro Lux über 100 • weniger als 100 Lux= 0 | H23: Salida; a 1 m de altura junto a la barrera/máquina de tickets • Más de 200 Lux = 3; • Entre 100– 200 Lux: 0,03 pts por Lux por encima de 100 • Menos de 100 Lux = 0 | I23: Zona de saída de veículos, a 1 m de altura perto da máquina de leitura de bilhetes: • Acima de 200 Lux = 3; • Entre 100 e 200 Lux: 0,03 pt por cada Lux acima de 100; • Abaixo de 100 Lux= 0;
A24: 21 | B24: At pay-machine; at 1 m height • Above 200 Lux =4; • Between100– 200 Lux: 0,04 pt per Lux over 100 • Below 100 Lux= 0; • No Pay Machines : same as exit (enter zero if this is the case) | C24: 21 | D24: At pay-machine; at 1 m height • Above 200 Lux =4; • Between100– 200 Lux: 0,04 pt per Lux over 100 • Below 100 Lux= 0; • No Pay Machines : same as exit (enter zero if this is the case) | E24: Bij betaalautomaat; op 1 m hoogte • > 200 Lux =4; • 100-200 Lux = 0,04punt per Lux boven 100; • < 100 Lux= 0; • Indien geen betaalautomaten: als bij uitrit (0 invullen) | F24: Au niveau des bornes de paiement , à 1m de hauteur • Plus de 200 Lux =4; • Entre 100– 200 Lux: 0,04 pt par Lux au-delà de 100 • Moins de 100 Lux= 0; • Si pas de bornes de paiement, identique qu’à la sortie | G24: Kassenautomat, in 1 m Höhe (in diesem Fall bitte Null eingeben) • über 200 Lux = 4; • zwischen 100 - 200 Lux: 0,04 pt pro Lux über 100 • weniger als 100 Lux = 0; • Kein Kassenautomat: wie bei Ausfahrt | H24: En la máquina de pago; a 1 m de altura • Más de 200 Lux = 4; • Entre 100– 200 Lux: 0,04 pts por Lux por encima de 100 • Menos de 100 Lux = 0; • Si no hay máquinas de pago: igual que en salida (poner "cero" si es el caso) | I24: Junto às Máquinas de Pagamento, a 1 m de altura: • Acima de 200 Lux = 4; • Entre 100 e 200 Lux: 0,04 pt por cada Lux acima de 100; • Abaixo de 100 Lux= 0; • Se não houver máquinas de pagamento, pontuação semelhamte à da saída. (introduza zero se for este o caso)
A25: 22 | B25: At cashier; at counter height • Above 200 Lux =4; • Between100– 200 Lux: 0,04 pt per Lux over 100 • Below 100 Lux= 0; • No cashier = 3 (enter zero if this is the case) | C25: 22 | D25: At cashier; at counter height • Above 200 Lux =4; • Between100– 200 Lux: 0,04 pt per Lux over 100 • Below 100 Lux= 0; • No cashier = 3 (enter zero if this is the case) | E25: Bij de kassier; op toonbankhoogte • > 200 Lux =4; • 100-200 Lux = 0,04punt per Lux boven 100; • < 100 Lux= 0; • Geen kassier = 3 | F25: Auprès du caissier, à hauteur du comptoir • Plus de 200 Lux =4; • Entre 100– 200 Lux: 0,04 pt par Lux au-delà de 100 • Moins de 100 Lux= 0; • Pas de caissier = 3 | G25: An der Kasse, auf Höhe des Tresens • über 200 Lux = 4; • zwischen 100 - 200 Lux: 0,04 pt pro Lux über 100 • weniger als 100 Lux = 0; • Keine Kasse = 3 (in diesem Fall bitte Null eingeben) | H25: Pago manual; a la altura del mostrador • Más de 200 Lux = 4; • Entre 100 – 200 Lux: 0,04 pts por Lux por encima de 100 • Menos de 100 Lux = 0; • Si no hay pago manual = 3 (poner "cero" si es el caso) | I25: Junto à Caixa Manual, à altura do balcão • Acima de 200 Lux = 4; • Entre 100 e 200 Lux: 0,04 pt por cada Lux acima de 100 • Abaixo de 100 Lux = 0; • Se não houver caixa manual = 3 (introduza zero se for este o caso);
A26: 23 | B26: In elevator; at floor level • Above 70 Lux = 4; • Between30– 70 Lux: 0,1 pt per Lux over 30 • Below 30 Lux = 0; • Single level without elevator = 3 (enter zero if this is the case) | C26: 23 | D26: In elevator; at floor level • Above 70 Lux = 4; • Between30– 70 Lux: 0,1 pt per Lux over 30 • Below 30 Lux = 0; • Single level without elevator = 3 (enter zero if this is the case) | E26: In lift; op vloerhoogte • > 70 Lux = 4; • 30-70 Lux = 0,1punt per Lux boven 30; • < 30 Lux = 0; • Eénlaags garage zonder lift = 3 (0 invullen) | F26: Dans les ascenseurs, au niveau du sol • Plus de 70 Lux = 4; • Entre 30– 70 Lux: 0,1 pt par Lux au-delà de 30 • Moins de 30 Lux = 0; • Pas d’ascenseur, parking sur un niveau = 3 | G26: In Aufzügen, auf dem Boden • über 70 Lux = 4; • zwischen 30 - 70 Lux: 0,1 pt pro Lux über 30 • weiniger als 30 Lux = 0; • eingeschossiges Parkhaus ohne Aufzug = 3 (in diesem Fall bitte Null eingeben) | H26: En ascensor; a nivel del suelo • Más de 70 Lux = 4; • Entre 30 – 70 Lux: 0,1 pts por Lux por encima de 30 • Menos de de 30 Lux = 0; • Planta única sin ascensor = 3 (poner "cero" si es el caso) | I26: No elevador, ao nível do chão: • Acima de 70 Lux = 4; • Entre 30 e 70 Lux: 0,1 pt por cada Lux acima de 30; • Abaixo de 30 Lux = 0; • Parque sem elevador = 3 (introduza zero se for este o caso)
A27: 24 | B27: In staircases and all other exclusive pedestrian routes; at floor level • Above 90 Lux = 3; • Between30– 90 Lux: 0,05 pt per Lux over 30 • Below 30 Lux = 0; | C27: 24 | D27: In staircases and all other exclusive pedestrian routes; at floor level • Above 90 Lux = 3; • Between30– 90 Lux: 0,05 pt per Lux over 30 • Below 30 Lux = 0; | E27: Trappenhuizen en andere voetgangersruimten; op vloerhoogte • > 90 Lux = 3; • 30-90 Lux = 0,05punt per Lux boven 30; • < 30 Lux = 0; | F27: Dans les cages d’escaliers et tout autre accès exclusivement réservé aux piétons, au niveau du sol • Plus de 90 Lux = 3; • Entre 30– 90 Lux: 0,05 pt par Lux au-delà de 30 • Moins de 30 Lux = 0; | G27: In Treppenhäusern und anderen ausgewiesenen Fußgängerbereichen • über 90 Lux = 3; • zwischen 30 - 90 Lux: 0,05 pt pro Lux über 30 • weniger als 30 Lux = 0; | H27: En escaleras y otros accesos peatonales; a nivel del suelo • Más de 90 Lux = 3; • Entre 30 – 90 Lux: 0,05 pts por Lux por encima de 30 • Menos de 30 Lux = 0; | I27: Escadarias e todas os outros acessos pedonais exclusivos, ao nível do chão: • Acima de 90 Lux = 3; • Entre 30 e 90 Lux: 0,05 pt por cada Lux acima de 30; • Abaixo de 30 Lux = 0;
A28: 25 | B28: Light levels on parking area at floor level: (plesase fill grid below) Average light level of grid: • Above 100 Lux= 10; • Between20– 100 Lux: 0,125 pt per Lux over 20 • Below 20 Lux= 0 | C28: 25 | D28: Light levels on parking area at floor level: (plesase fill grid below) Average light level of grid: • Above 100 Lux= 10; • Between20– 100 Lux: 0,125 pt per Lux over 20 • Below 20 Lux= 0 | E28: Lichtiniveau op vloerhoogte, gemiddelde van de metingen volgens stramien (zie onder) • > 100 Lux= 10; • 20-100 Lux = 0,125punt per Lux boven 20; • < 20 Lux= 0 | F28: Eclairages des aires de stationnement, à mesurer au niveau du sol: (remplissez la grille ci-dessous svp) Moyenne des mesures reprises dans la grille: • Plus de 100 Lux= 10; • Entre 20– 100 Lux: 0,125 pt par Lux au-delà de 20 • Moins de 20 Lux= 0 | G28: Beleuchtung der Parkebenen auf dem Boden: (bitte Raster unten eintragen) mittlere Beleuchtungsstärke innerhalb des Rasters: • über 100 Lux = 10; • zwischen 20 - 100 Lux: 0,125 pt pro Lux über 20 • weniger als 20 Lux= 0 | H28: Niveles lumínicos en la zona de estacionamiento a nivel de suelo: (rellenar tabla más abajo) Nivel lumínico medio de la tabla: • Más de 100 Lux = 10; • Entre 20 – 100 Lux: 0,125 pts por Lux por encima de 20 • Menos de 20 Lux = 0 | I28: Níveis de luminosidade na área de estacionamento ao nível do piso: (por favor preencha grelha abaixo) Nível de luz média da grelha: • Acima 100 Lux = 10; • Entre 20 e 100 Lux: 0,125 pt por cada Lux acima de 20; • Abaixo de 20 Lux = 0;
A29: 26 | B29: Uniformity of light levels in grid as standard deviation • Under 25% of avg light level = 10; • Between25– 50%: 0,4 pt per % under 50% • Above 50% = 0 | C29: 26 | D29: Uniformity of light levels in grid as standard deviation • Under 25% of avg light level = 10; • Between25– 50%: 0,4 pt per % under 50% • Above 50% = 0 | E29: Gelijkmatigheid van verlichtingsniveau in stramien als berekende standaard deviatie: • < 25% van het gemiddelde = 10; • 25%-50% = 0,4 punt per % onder 50%; • > 50% = 0; | F29: Uniformité de l’éclairage selon les mesures rapportées sur la grille (calcul par écart-type) • Moins de 25% de la moyenne d’éclairage = 10; • Entre 25– 50%: 0,4 pt par % en dessous de 50% • Plus de 50% = 0 | G29: Gleichmäßigkeit der Beleuchtung (Standardabweichung) • weniger als 25% der mittleren Beleuchtungsstärke = 10; • zwischen 25 - 50%: 0,4 pt pro % unter 50% • über 50% = 0 | H29: Uniformidad de los niveles lumínicos de la tabla, desviación estándar • Menos de 25% del nivel lumínico medio = 10; • Entre 25– 50%: 0,4 pts por % por debajo de 50% • Más de 50% = 0 | I29: Uniformidade da luminosidade na grelha, (desvio padrão) • Inferior a 25% dos níveis médios de luminosidade = 10; • Entre 25% e 50% dos níveis médios de luminosidsde: 0,4 pt por cada ponto percentual abaixo de 50%; • Abaixo de 50% = 0
A30: 27 | B30: Auxiliary Grid for 2.8 | C30: 27 | D30: Auxiliary Grid for 2.8 | E30: Aanvullend stramien voor 2.8 | F30: Grille annexe au point 2.8 | G30: Hilfsraster 2.8 | H30: Tabla auxiliar para 2.8 | I30: Grelha Auxiliar para 2.8
A31: 28 | B31: end of parking space under/between light fitting | C31: 28 | D31: end of parking space under/between light fitting | E31: Einde parkeervak, onder/tussen verlichtlingsarmatuur | F31: Fond aire de stationnement sous/entre points lumineux | G31: Ende des Parkplatzes unter/zwischen Beleuchtungspunkten | H31: Fondo de plaza bajo/entre luminarias | I31: fim do espaço de estacionamento em/entre pontos de iluminação
A32: 29 | B32: halfway parking space under/between light fitting | C32: 29 | D32: halfway parking space under/between light fitting | E32: Halverwege parkeervak, onder/tussen verlichtlingsarmatuur | F32: Milieu aire de stationnement sous/entre points lumineux | G32: Mitte des Parkplatzes unter/zwischen Beleuchtungspunkten | H32: Centro de plaza bajo/entre luminarias | I32: espaço de estacionamento no meio do caminho em/entre pontos de iluminação
A33: 30 | B33: edge of driveway under/between light fitting | C33: 30 | D33: edge of driveway under/between light fitting | E33: Begin parkeervak/rand rijbaan, onder/tussen verlichtlingsarmatuur | F33: Début aire de stationnement sous/entre points lumineux | G33: Fahrbahnrand unter/zwischen Beleuchtungspunkten | H33: Límite entre inicio de plaza y vial de circulación bajo/entre luminarias | I33: linha entre lugar de estacionamento e via de circulação, sob/entre pontos de iluminação
A34: 31 | B34: center of driveway under/between light fitting | C34: 31 | D34: center of driveway under/between light fitting | E34: Midden rijbaan, onder/tussen verlichtlingsarmatuur | F34: Centre de la voie de circulation sous/entre points lumineux. | G34: Fahrbahnmitte unter/zwischen Beleuchtungspunkten | H34: Centro de vial de circulación bajo/entre luminarias | I34: centro de via de circulação sob/entre pontos de iluminação
A35: 32 | B35: other edge of driveway under/between light fitting | C35: 32 | D35: other edge of driveway under/between light fitting | E35: Rand rijbaan/begin parkeervak overzijde, onder/tussen verlichtlingsarmatuur | F35: Voie de circulation côté opposé à l’aire de stationnement sous/entre points lumineux | G35: Anderer Fahrbahnrand unter/zwischen Beleuchtungspunkten | H35: Vial de circulación en el lado opuesto a la zona estacionamiento bajo/entre luminarias | I35: outra extremidade da calçada sob/entre pontos de iluminação
A36: 33 | B36: Car Entry / Car Exit | C36: 33 | D36: Car Entry / Car Exit | E36: In- en uitrit | F36: Entrée / Sortie des voitures | G36: Einfahrt / Ausfahrt | H36: Acceso y salida de vehículos | I36: Entradas e Saídas de Veículos
A37: 34 | B37: Car park headroom limit identified at entrance | C37: 34 | D37: Car park headroom limit identified at entrance | E37: Inrijhoogte aangegeven bij de inrit | F37: Limite d’hauteur de plafond annoncée à l’entrée du parking | G37: An der Einfahrt angezeigte Durchfahrtshöhe | H37: Gálibo máximo indicado a la entrada | I37: Limite de altura do parque de estacionamento identificado na entrada
A38: 35 | B38: Correct sign at entrance | C38: 35 | D38: Correct sign at entrance | E38: Bord overeenkomstig RVV | F38: Signalisation correcte à l’entrée | G38: Ordnungsgemäßes Zeichen an der Einfahrt | H38: Señal correcta a la entrada | I38: Sinal correto na entrada
A39: 36 | B39: Height barrier | C39: 36 | D39: Height barrier | E39: Hoogtebalk | F39: Barre d’hauteur | G39: Höhenbegrenzungsbalken | H39: Delimitador de altura | I39: Barreira de altura
A40: 37 | B40: Rubber lip to prevent damage | C40: 37 | D40: Rubber lip to prevent damage | E40: Rubber strip onderzijde hoogtebalk | F40: Rebord caoutchouc sur barre pour prévenir dommages aux toits | G40: Gummilippe am Höhenbegrenzungsbalken | H40: Borde de goma para prevenir daños | I40: Lip de borracha para evitar danos
A41: 38 | B41: Height: (The car park should receive one point for each 10cm of height above 1.90m up to 2.20 m) | C41: 38 | D41: Height: (The car park should receive one point for each 10cm of height above 1.90m up to 2.20 m) | E41: Inrijhoogte: de garage krijgt één punt voor elke 10cm inrijhoogte boven 1.9m tot 2.2 m | F41: Hauteur (Le parking reçoit 1 point par tranche de 10cm au-delà de 1.90m jusqu’à 2.20m) | G41: Durchfahrtshöhe: (Das Parkhaus erhält 1 Punkt pro 10 cm Durchfahrtshöhe über 1,90 m und 2,20 m) | H41: Altura: (Se asigna al aparcamiento 1 punto por cada 10cm de altura por encima de 1.90m hasta 2.20m) | I41: Altura: (Parque de estacionamento deve receber um ponto por cada 10 cm de altura acima de 1.90m, até um máximo de 2.20m)
A42: 39 | B42: Traffic signs to define limitations in use of facility. • Clear signing = 3 • Incomplete signing = 2 • No signing = 0) | C42: 39 | D42: Traffic signs to define limitations in use of facility. • Clear signing = 3 • Incomplete signing = 2 • No signing = 0) | E42: Verkeersborden voor beperkingen in de garage. • Duidelijk en compleet conform RVV = 3 • Gedeeltelijk complete bebording = 2 • Geen bebording = 0 | F42: Panneaux de signalisation stipulant les limites concernant le parking. (Signalisation claire = 3, Signalisation incomplète = 2, Pas de signalisation = 0) | G42: Verkehrszeichen für Nutzungsbegrenzungen (vollständige und eindeutige Beschilderung = 3, Beschilderung unvollständig = 2, keine Beschilderung = 0) | H42: Señales de tráfico para definir limitaciones en el uso de la instalación. • Señalización clara = 3 • Señalización incompleta = 2 • Sin señalización = 0 | I42: Sinais de trânsito para definir o uso limitado das instalações. • Sinalização evidente = 3 • Sinalização incompleta = 2 • Sem sinalização = 0
A43: 40 | B43: Information on: | C43: 40 | D43: Information on: | E43: Informatie bij de inrit: | F43: Information concernant: | G43: Information bezüglich: | H43: Información sobre: | I43: Informações sobre:
A44: 41 | B44: Operators terms & conditions within the car park: | C44: 41 | D44: Operators terms & conditions within the car park: | E44: Informatie algemene voorwaarden | F44: Règlement intérieur du parking | G44: Einstellbedingungen des Betreibers innerhalb des Parkhauses | H44: Términos y condiciones en el interior del aparcamiento | I44: Regras de utilização do parque de estacionamento:
A45: 42 | B45: Daily opening hours: | C45: 42 | D45: Daily opening hours: | E45: Dagelijkse opening- en sluitingstijd | F45: Heures d’ouverture | G45: Öffnungszeiten | H45: Horario de apertura: | I45: Horário de funcionamento:
A46: 43 | B46: Scale of tariffs: | C46: 43 | D46: Scale of tariffs: | E46: Tarieftabel | F46: Grille tarifaire | G46: Parktarife | H46: Tarifas: | I46: Tarifário:
A47: 44 | B47: Readibility of tariff system: | C47: 44 | D47: Readibility of tariff system: | E47: Duidelijkheid van het tariefsysteem | F47: Lisibilité de la grille tarifaire | G47: Verständlichkeit der Parktarife | H47: Facilidad de lectura del sistema de tarifas | I47: Legibilidade do sistema tarifário:
A48: 45 | B48: Design entry/exit area | C48: 45 | D48: Design entry/exit area | E48: Ontwerp van de in- en uitrit | F48: Conception des zones d’entrée et de sortie | G48: Bauliche Ausbildung der Ein-/Ausfahrt | H48: Diseño de la zona de acceso/salida | I48: Área da Entrada/saída
A49: 46 | B49: Entry ticket- machine easy to reach: | C49: 46 | D49: Entry ticket- machine easy to reach: | E49: Inrijzuil gemakkelijk bereikbaar | F49: Entrée: borne de tickets facilement atteignable | G49: Einfahrt: Ticketgeber gut zu erreichen | H49: Facilidad de acceso a la máquina de tickets de entrada | I49: Bilhete na máquina de entrada fácil de alcançar
A50: 47 | B50: Exit ticket- machine easy to reach: | C50: 47 | D50: Exit ticket- machine easy to reach: | E50: Uitrijzuil gemakkelijk bereikbaar | F50: Sortie: borne de tickets facilement atteignable | G50: Ausfahrt: Ausfahrtskontrollgerät gut zu erreichen | H50: Facilidad de acceso a la máquina de tickets de salida | I50: Validador de bilhete na máquina de saída fácil de alcançar
A51: 48 | B51: Longitudinal slope at the ticket machines | C51: 48 | D51: Longitudinal slope at the ticket machines | E51: Is er een helling naar de kaartgever/lezer? | F51: Pente longitudinale de la voie près des bornes de tickets | G51: Längsgefälle im Bereich der Ticketgeber und Ausfahrtskontrollgeräte | H51: Pendiente longitudinal en zona de máquinas de tickets | I51: Inclinação longitudinal nas máquinas de bilhetes
A52: 49 | B52: Entry lane: • 0-2% (car doesn’t move without brake) = 1 • 2-5% = 0 • Above 5% = -1 | C52: 49 | D52: Entry lane: • 0-2% (car doesn’t move without brake) = 1 • 2-5% = 0 • Above 5% = -1 | E52: Inrit: • < 2% (auto beweegt niet uit zichzelf) = 1 • 2-5% = 0 • > 5% = -1 | F52: Entrée: (0-2% (le véhicule ne bouge pas sans poser le pied sur le frein) = 1, 2-5% = 0, Plus de 5% = -1) | G52: Einfart: (0-2% (das Fahrzeug bleibt auch ohne Bremse stehen) = 1, 2-5% = 0, über 5% = -1) | H52: Carril de entrada: • 0-2% (vehículo no se muede sin presionar el freno) = 1 • 2-5% = 0 • Más de 5% = -1 | I52: Via de entrada: • 0-2% (carro não se move sem travão) = 1 • 2-5% = 0 • Acima de 5% = -1
A53: 50 | B53: Exit lane: • 0-2% (car doesn’t move without brake) = 1 • 2-5% = 0 • Above 5% = -1 | C53: 50 | D53: Exit lane: • 0-2% (car doesn’t move without brake) = 1 • 2-5% = 0 • Above 5% = -1 | E53: Uitrit: • < 2% (auto beweegt niet uit zichzelf) = 1 • 2-5% = 0 • > 5% = -1 | F53: Sortie: (0-2% (le véhicule ne bouge pas sans poser le pied sur le frein) = 1, 2-5% = 0, Plus de 5% = -1) | G53: Ausfahrt: (0-2% (das Fahrzeug bleibt auch ohne Bremse stehen) = 1, 2-5% = 0, über 5% = -1) | H53: Carril de salida: • 0-2% (vehículo no se muede sin presionar el freno) = 1 • 2-5% = 0 • Más de 5% = -1 | I53: Via de saída: • 0-2% (carro não se move sem travão) = 1 • 2-5% = 0 • Acima de 5% = -1
A54: 51 | B54: Kerb design to avoid damage to average vehicle’s wheels: (Yes = 2, No protection = 0, No kerbs in entry/exit area = 2) | C54: 51 | D54: Kerb design to avoid damage to average vehicle’s wheels: (Yes = 2, No protection = 0, No kerbs in entry/exit area = 2) | E54: Stoeprand van eilanden met schuine kant ter bescherming van banden en velgen | F54: Forme spécifique des bordures pour éviter tout dommage aux jantes : (Oui = 2, Pas de protection = 0, Pas de bordures dans la zone d’entrée /de sortie = 2) | G54: Schrammbordausbildung zum Schutz vor Beschädigung der Reifen und Felgen: (ja = 2, kein Schutz = 0, keine Schrammborde im Ein-Ausfahrtsbereich = 2) | H54: Diseño de bordillos para evitar daños en las ruedas de un vehículo estándar: (Sí = 2, Sin protección = 0, Sin bordillos en zonas de entrada/salida = 2) | I54: Proteção para evitar danos na rodas os veículos: (Sim = 2, Sem proteção = 0, Sem proteção na área de entrada/saída = 2)
A55: 52 | B55: Anti slip surfaces access/egress ramps: (Anti slip = 1, Slippery when wet = 0) | C55: 52 | D55: Anti slip surfaces access/egress ramps: (Anti slip = 1, Slippery when wet = 0) | E55: Ruw oppervlak op in- en uitrit helling Ruw = 1, Glad = 0, geen helling = 1 | F55: Surface anti-dérapante dans les rampes d’entrée/de sortie: (Anti-dérapant = 1, Glissant si mouillé = 0) | G55: Rutschfeste Oberfläche im Ein-/Ausfahrtsbereich: (rutschfest = 1, rutschig wenn nass = 0) | H55: Superficies antideslizantes en zonas de entrada y salida de rampas: (Antideslizante = 1, Deslizante con piso húmedo = 0) | I55: Superfíce antiderrapante nas rampas de acesso/saída: (Anti derrapante = 1, Escorregadio quando molhado = 0)
A56: =C56 -> 53 | B56: Access security | C56: 53 | D56: Access security | E56: Toegangsbeveiliging | F56: Sécurité des accès | G56: Zugangskontrolle | H56: Seguridad en accesos | I56: Segurança dos Acessos
A57: 54 | B57: Barrier | C57: 54 | D57: Barrier | E57: Slagboom | F57: Barrières | G57: Schranke | H57: Barreras | I57: Barreira
A58: 55 | B58: Intercom | C58: 55 | D58: Intercom | E58: Parkeerhoek 76º-90º | F58: Interphonie | G58: Sprechstelle | H58: Interfonía | I58: Intercomunicador
A59: 56 | B59: CCTV | C59: 56 | D59: CCTV | E59: Parkeerhoek 45º-75º | F59: Vidéosurveillance | G59: Videoüberwachung | H59: CCTV | I59: CCTV
A60: 57 | B60: Licence Plate Recognition | C60: 57 | D60: Licence Plate Recognition | E60: Kentekenherkenning | F60: Reconnaissance plaques d’immatriculation | G60: Kennzeichenerkennung | H60: Lector de matrículas | I60: Leitor de Matrícula
A61: 58 | B61: Full height fast closing gates | C61: 58 | D61: Full height fast closing gates | E61: Snel sluitende hekken | F61: Grilles de fermeture sur la hauteur totale | G61: Schnelllauftore über die ganze Höhe | H61: Portones de cierre rápido | I61: Portões de Abertura Rápida
A62: 59 | B62: Staffed access(Entry or exit) | C62: 59 | D62: Staffed access(Entry or exit) | E62: Personeel (evt in de loge) bij de inrit/uitrit | F62: Personnel présent (en entrée ou en sortie) | G62: Bemannte Einfahrt/Ausfahrt | H62: Acceso para personal (entrada o salida) | I62: Presença de Staff (Entrada ou saída)
A63: 60 | B63: Entry/Exit of the building: width between structure (per lane) (< 3 m =0, 3 – 3.3 m =1, > 3.3 m = 2) | C63: 60 | D63: Entry/Exit of the building: width between structure (per lane) (< 3 m =0, 3 – 3.3 m =1, > 3.3 m = 2) | E63: Breedte in/uitrit tussen de constructie op spiegelhoogte, kolom, kozijn, poortconstructie o.i.d. (per strook) • < 3 m =0, 3 – 3.3 m =1, > 3.3 m = 2 | F63: Largeur des entrées/sorties du bâtiment entre les structures (par voie) (< 3 m =0, 3 – 3.3 m =1, > 3.3 m = 2) | G63: Durchfahrtsbreite zwischen Bauteilen im Bereich der Einfahrt/Ausfahrt (< 3 m =0, 3 – 3.3 m =1, > 3.3 m = 2) | H63: Entrada/salida del edificio: ancho entre elemetnos estructurales (por carril) (< 3 m = 0, 3 – 3.3 m =1, > 3.3 m = 2) | I63: Entrada/saída do edifício: largura entre elementos da estrutura (por faixa) (< 3 m =0, 3 – 3.3 m =1, > 3.3 m = 2)
A64: 61 | B64: Exit: exit slope ends at least 5 meters before crossing traffic (pedestrians/cyclists): | C64: 61 | D64: Exit: exit slope ends at least 5 meters before crossing traffic (pedestrians/cyclists): | E64: Uitrithelling eindigt minstens vijf meter voor kruisend verkeer (fietsers, voetgangers): | F64: Sortie: la pente de sortie s’arrête au plus tard 5m avant le croisement avec le trafic (piétons/cyclistes). | G64: Ausfahrt: die Gefällestrecke endet mindestens 5 m vor dem kreuzenden Verkehr (Fußgänger/Radfahrer). | H64: Salida: la pendiente de la rampa de salida finaliza al menos 5 metros de la incorporación al tráfico (peatones/ciclistas): | I64: Saída: zona inclinação da rampa de saída termina pelo menos 5 metros antes de zona com tráfego (pedonal/ciclistas):
A65: 62 | B65: subtotal car entry/exit | C65: 62 | D65: subtotal car entry/exit | E65: Subtotaal in- en uitrit | F65: Sous-total – Entrée / Sortie des voitures | G65: Zwischensumme Einfahrt/Ausfahrt | H65: subtotal acceso y salida de vehículos | I65: subtotal Entrada Carros/ Saída de Carros
A66: 63 | B66: Parking Area | C66: 63 | D66: Parking Area | E66: Parkeervloer | F66: Aires de stationnement | G66: Parkebenen | H66: Zonas de estacionamiento | I66: Área do Estacionamento
A67: 64 | B67: Pillar placement for at least 85% of bays: • does not intrude into the parking area = 8 • at beginning of stall = 0 • next to car door = 0 • at back of stall but intrudes into the parking area = 4 | C67: 64 | D67: Pillar placement for at least 85% of bays: • does not intrude into the parking area = 8 • at beginning of stall = 0 • next to car door = 0 • at back of stall but intrudes into the parking area = 4 | E67: Kolomopstelling min 85% van de parkeervakken: • Kolommen compleet buiten de parkeervakken = 8 • Kolom aan het begin van het vak= 0 • Kolom naast het autoportier = 0 • Kolom achter in het vak maar binnen het vak = 4 | F67: Présence de piliers pour au moins 85% des emplacements: (ne déborde pas sur l’aire de stationnement = 8, au début de l’aire de stationnement= 0, près de la portière de voiture = 0, au fond de l’emplacement mais déborde sur celui-ci = 4) | G67: Stützen im Bereich von mindestens 85 % der Stellplätze: (keine Beeinträchtigung des Stellplätze = 8, am Beginn der Stellplätze = 0, nahe der Fahrzeugtür = 0, am Ende aber mit Beeinträchtigung des Stellplatzes = 4) | H67: Posición de pilares para al menos el 85% de las plazas: • No invade la zona de estacionamiento = 8 • al principio de la plaza = 0 • junto a la puerta del vehículo = 0 • en el fondo de plaza pero invade la zona de estacionamiento = 4 | I67: Localização dos Pilares em, pelo menos, 85% dos lugares: • não invadem a área de estacionamento = 8 • no início do lugar = 0 • ao lado da porta do veículo = 0 • recuados, mas na área de estacionamento = 4
A68: 65 | B68: =IF(ISBLANK(VLOOKUP(A68,$C$4:$V$9989,1+$A$1)),D68,VLOOKUP(A68,$C$4:$V$9989,1+$A$1)) -> Visibility (many/few dead corners, walls in the car park etc.) Good=4, Medium=2 or Bad=0 | C68: 65 | D68: Visibility (many/few dead corners, walls in the car park etc.) Good=4, Medium=2 or Bad=0 | E68: Overzichtelijkheid (dode hoeken, wanden in de garage etc ) • Geen = 4, Hier en daar = 2, Veel = 0 | F68: Visibilité (beaucoup/peu d’angles morts, de murs dans le parking,etc.) Bien=4, Moyen=2 ou Mauvais=0 | G68: Übersichtlichkeit (viele/wenige tote Winkel, Wände in der Parkebene,etc.) gut=4, mittel=2, schlecht=0 | H68: Visibilidad (muchos/pocos ángulos muertos, paredes en el aparcamiento, etc.) Buena = 4, Media = 2 o Mala = 0 | I68: Visibilidade (muitos/poucos cantos mortos, paredes no parque de estacionamento, etc.) Bom=4, Médio=2 ou Mau=0
A69: 66 | B69: Signage for car driver: | C69: 66 | D69: Signage for car driver: | E69: Bebording voor autoverkeer: | F69: Signalisation pour le conducteur | G69: Beschilderung für den Fahrverkehr | H69: Señalización para el conductor: | I69: Sinalização rodoviária:
A70: 67 | B70: Do traffic signs conform to national road code? | C70: 67 | D70: Do traffic signs conform to national road code? | E70: Officiele verkeersborden overeenkomstig RVV? | F70: Les panneaux de signalisation sont-ils conformes au code de la route du pays? | G70: Sind die Verkehrszeichen konform mit den nationalen Vorschriften? | H70: Las señales concuerdan con el código de carreteras del país? | I70: Os sinais de rânsito estão conforme o código da estrada?
A71: 68 | B71: Routing and turn signs: Is signage clear, complete and unambiguous? | C71: 68 | D71: Routing and turn signs: Is signage clear, complete and unambiguous? | E71: Is bebording voor routing en bochten: | F71: Signalisation directionnelle: est-elle claire, complète, non équivoque. | G71: Wegweisung: Ist die Beschilderung leicht sichtbar, vollständig und unmissverständlich? | H71: La señalización direccional: es clara, completa e inequívoca? | I71: Sinalização de circulação: A sinalização é clara, completa e inequívoca?
A72: 69 | B72: Complete ? | C72: 69 | D72: Complete ? | E72: Compleet? | F72: Complète? | G72: Vollständig? | H72: Completa? | I72: Completa ?
A73: 70 | B73: Easy to see ? | C73: =C72+1 -> 70 | D73: Easy to see ? | E73: Goed zichtbaar? | F73: Facile à voir? | G73: Leicht zu sehen? | H73: Fácil de ver? | I73: Fácil de ver ?
A74: 71 | B74: Unambiguous ? | C74: 71 | D74: Unambiguous ? | E74: Eenduidig? | F74: Sans equivoque? | G74: Unmissverständlich? | H74: Inequívoca? | I74: Inequívoca ?
A75: 72 | B75: Exit signs in the car park: Is signage clear, complete and unambiguous? | C75: 72 | D75: Exit signs in the car park: Is signage clear, complete and unambiguous? | E75: Bebording naar de uitrit: | F75: Les panneaux indiquant la sortie du parking: la signalisation est-elle claire, complète, sans équivoque? | G75: Ausfahrtsbeschilderung: Ist die Beschilderung leicht sichtbar, vollständig und unmissverständlich? | H75: La señalización indicando la salida del aparcamiento: es clara, completa e inequívoca? | I75: Sinalização de saída do parque de estacionamento: A sinalização é clara, completa e inequívoca?
A76: 73 | B76: Complete ? | C76: 73 | D76: Complete ? | E76: Compleet? | F76: Complète? | G76: Vollständig? | H76: Completa? | I76: Completa ?
A77: 74 | B77: Easy to see ? | C77: 74 | D77: Easy to see ? | E77: Goed zichtbaar? | F77: Facile à voir? | G77: Leicht zu sehen? | H77: Fácil de ver? | I77: Fácil de ver ?
A78: 75 | B78: Unambiguous ? | C78: 75 | D78: Unambiguous ? | E78: Eenduidig? | F78: Sans équivoque? | G78: Unmissverständlich? | H78: Inequívoca? | I78: Inequívoca ?
A79: 76 | B79: Parking bay marks | C79: 76 | D79: Parking bay marks | E79: Markering van de parkeervakken | F79: Marquage des emplacements | G79: Stellplatzmarkierung | H79: Marcaje vial de plazas? | I79: Marcação dos lugares de estacionamento
A80: 77 | B80: Parking bays are clearly marked ? | C80: 77 | D80: Parking bays are clearly marked ? | E80: Parkeervakken duidelijk herkenbaar? | F80: Les emplacements sont-ils clairement marqués? | G80: Sind die Stellplätze deutlich markiert? | H80: Las plazas están claramente marcadas? | I80: Lugares de estacionamento estão claramente marcados?
A81: 78 | B81: Bay markings extend up walls to assist driver ? | C81: 78 | D81: Bay markings extend up walls to assist driver ? | E81: Markering van parkeervakken doorgetrokken op de wand om orientatie te verbeteren? | F81: Le marquage des emplacements est-il prolongé sur les murs pour assister le conducteur? | G81: Sind die Markierungen bis auf die Wand verlängert um das Einparken zu erleichtern? | H81: El marcaje se extiende sobre los paramentos verticales para facilitar la maniobra al conductor? | I81: As marcações estendem-se até às paredes para ajudar os condutrores?
A82: 79 | B82: Are Road Markings: | C82: 79 | D82: Are Road Markings: | E82: Rijstrookmarkeringen | F82: Le marquage routier au sol est-il : | G82: Sind die Fahrbahnmarkierungen: | H82: La señalización horizontal del aparcamiento es: | I82: As marcações no pavimento são:
A83: 80 | B83: Complete ? | C83: 80 | D83: Complete ? | E83: Compleet? | F83: Complet? | G83: Vollständig? | H83: Completa? | I83: Completas ?
A84: 81 | B84: Easy to see ? | C84: 81 | D84: Easy to see ? | E84: Goed zichtbaar? | F84: Facile à voir? | G84: Leicht zu sehen? | H84: Fácil de ver? | I84: Fáceis de ver ?
A85: 82 | B85: Unambiguous ? | C85: 82 | D85: Unambiguous ? | E85: Eenduidig? | F85: Sans équivoque? | G85: Unmissverständlich? | H85: Inequívoca? | I85: Inequívocas ?
A86: 83 | B86: Availability of spaces for disabled with wheelchair access anounced at the entrance the car park: | C86: 83 | D86: Availability of spaces for disabled with wheelchair access anounced at the entrance the car park: | E86: Invalidenplaatsen in de garage aangekondigd bij de inrit? | F86: La présence et l’emplacement des places pour handicapés en chaise roulante sont-ils annoncés à l’entrée du parking? | G86: Wird die Verfügbarkeit von Stellplätzen für Rollstuhlfahrer an der Einfahrt angezeigt? | H86: Disponibilidad de plazas reservadas para personas de movilidad reducida anunciada a la entrada del aparcamiento: | I86: Disponibilidade de lugares para pessoas com mobilidade condicionada anunciada na entrada do parque de estacionamento:
A87: 84 | B87: Accessible for wheelchair ? | C87: 84 | D87: Accessible for wheelchair ? | E87: Bereikbaar voor rolstoel? | F87: Accessibilité pour chaises roulantes? | G87: Zugänglich für Rollstühle? | H87: Accesibilidad para silla de ruedas? | I87: Acessibilidade para pessoas com mobilidade condicionada?
A88: 85 | B88: Bays minimum 3.5 m wide ? | C88: 85 | D88: Bays minimum 3.5 m wide ? | E88: Vakken minimal 3,5 m breed? | F88: Largeur minimum des emplacements de 3.50m ? | G88: Sind die Plätze mindestens 3.50 m breit? | H88: Anchura mínima de plazas de 3.5m? | I88: Lugares com mínimo de 3.5 m de largura ?
A89: 86 | B89: Close to pedestrian exit ? | C89: 86 | D89: Close to pedestrian exit ? | E89: Dichtbij de voetgangersuitgang? | F89: Près des sorties piétons? | G89: Sind sie Nahe am Ausgang? | H89: Cerca de las salidas peatonales? | I89: Perto da saída pedonal ?
A90: 87 | B90: Guidance to disabled spaces ? | C90: 87 | D90: Guidance to disabled spaces ? | E90: Geleiding naar de invalidenplaatsen? | F90: Guidage vers les emplacements handicapés? | G90: Gibt es eine Hinweisbeschilderung zu den Stellplätzen für Behinderte? | H90: Guiado hacia las plazas reservadas? | I90: Sinalização para pessoas com mobilidade condicionada?
A91: 88 | B91: Parking angle at 85 % of bays: (Angle 76-90° = 0, Angle 45-75° = 2) | C91: 88 | D91: Parking angle at 85 % of bays: (Angle 76-90° = 0, Angle 45-75° = 2) | E91: Parkeerhoek bij 85 % van de vakken: 76-90° = 0, 45-75° = 2 | F91: Angle pour 85% des emplacements de parkings (Angle 76-90° = 0, Angle 45-75° = 2) | G91: Aufstellwinkel für 85% der Stellplätze (Winkel 76-90° = 0, Winkel 45-75° = 2) | H91: Ángulo de aparcamiento para al menos el 85% de las plazas: (Ángulo 76-90° = 0, Ángulo 45-75° = 2) | I91: Ângulo de estacionamento em 85% dos lugares: (Ângulo 76-90° = 0, Ângulo 45-75° = 2)
A92: 89 | B92: Width of bays (85 % of bays), A or B: A: Parking angle 76 – 90 degrees (2.25m = -5, 2.30m = 0, 2.35m = 2, 2.40m = 4, 2.45m = 6, 2.50m = 8) B: Parking angle 45-75 degrees (2.25m = -5, 2.30m = 1, 2.35m = 3, 2.40m = 5, 2.45m = 8) Width of 2.25m only applies for renovated car parks, new car parks must be minimum 2.30m | C92: 89 | D92: Width of bays (85 % of bays), A or B: A: Parking angle 76 – 90 degrees (2.25m = -5, 2.30m = 0, 2.35m = 2, 2.40m = 4, 2.45m = 6, 2.50m = 8) B: Parking angle 45-75 degrees (2.25m = -5, 2.30m = 1, 2.35m = 3, 2.40m = 5, 2.45m = 8) Width of 2.25m only applies for renovated car parks, new car parks must be minimum 2.30m | E92: Vakbreedte (85 % van de vakken) A: Parkeerhoek 76 – 90 graden • breedte 2.25m = -5, 2.30m = 0, 2.35m = 2, 2.40m = 4, 2.45m = 6, 2.50m = 8. B: Parkeerhoek 45-75 graden • breedte 2.25m = -5, 2.30m = 1, 2.35m = 3, 2.40m = 5, 2.45m = 8 Breedte 2.25m alleen toelaatbaar bij gerenoveerde garages, bij nieuwe garages geldt de minimum vakbreedte 2.30m | F92: Largeur des emplacements (85 % des emplacements ), A ou B: A: Angle de parking entre 76 – 90 degrés (2.25m = -5, 2.30m = 0, 2.35m = 2, 2.40m = 4, 2.45m = 6, 2.50m = 8) B: Angle de parking entre 45-75 degrés (2.25m = -5, 2.30m = 1, 2.35m = 3, 2.40m = 5, 2.45m = 8) La largeur de 2.25m est uniquement applicable pour d’anciens parkings rénovés, les nouveaux parkings doivent presenter une largeur minimum de 2.30m | G92: Stellplatzbreite (85 % der Stellplätze), A oder B: A: Aufstellwinkel zwischen 76 – 90 Grad (2.25m = -5, 2.30m = 0, 2.35m = 2, 2.40m = 4, 2.45m = 6, 2.50m = 8) B: Aufstellwinkel zwischen 45-75 degrés (2.25m = -5, 2.30m = 1, 2.35m = 3, 2.40m = 5, 2.45m = 8) Die Breite von 2.25m ist nur bei über 10 Jahre alten renovierten Parkhäusern zulässig. Neue Parkhäuser müssen eine Stellplatzbreite von mindestens 2.30m aufweisen. | H92: Ancho de plazas (85 % de las plazas), A o B: A: Ángulo 76 – 90 grados (2.25m = -5, 2.30m = 0, 2.35m = 2, 2.40m = 4, 2.45m = 6, 2.50m = 8) B: Ángulo 45-75 grados (2.25m = -5, 2.30m = 1, 2.35m = 3, 2.40m = 5, 2.45m = 8) El ancho de 2.25m únicamente es aplicable a aparcamientos renovados, los aparcamientos nuevos deben tener un ancho mínimo de 2.30m | I92: Largura dos lugares (85% dos lugares), A ou B: A: Ângulo Estacionamento 76 - 90 graus (2.25m = -5, 2.30m = 0, 2.35m = 2, 2.40m = 4, 2.45m = 6, 2.50m = 8) B: Ângulo Estacionamento 45-75 graus (2.25m = -5, 2.30m = 1, 2.35m = 3, 2.40m = 5, 2.45m = 8) A largura de 2,25m aplica-se apenas para os parques de estacionamento renovados, novos parques de estacionamento devem ter no mínimo 2,30m
A93: 90 | B93: Total unit measure of one way isle width and depth of two parking bays, depending on parking angle and bay width: Bay width: 2.50m / 2.45m / 2.40m / 2.35m / 2.30m 90° : 16.00 / 16.30 / 16.60 / 16.90 / 17.30 85° : 15.70 / 16.00 / 16.30 / 16.60 / 16.95 80° : 15.40 / 15.70 / 16.00 / 16.30 / 16.60 75° : 14.95 / 15.25 / 15.55 / 15.85 / 16.15 70° : 14.50 / 14.80 / 15.10 / 15.40 / 15.70 65° : 14.40 / 14.40 / 14.55 / 14.80 / 15.10 60° : 14.30 / 14.30 / 14.30 / 14.30 / 14.50 55° : 14.00 / 14.00 / 14.00 / 14.00 / 14.10 50° : 13.75 / 13.75 / 13.75 / 13.75 / 13.75 45° : 13.50 / 13.50 / 13.50 / 13.50 / 13.50 Total unit measure as above qualifies for 3 points. Up to 30 cm less qualifies for 2 points Up to 60 cm less qualifies for 1 point More than 60 cm less: no points given | C93: 90 | D93: Total unit measure of one way isle width and depth of two parking bays, depending on parking angle and bay width: Bay width: 2.50m / 2.45m / 2.40m / 2.35m / 2.30m 90° : 16.00 / 16.30 / 16.60 / 16.90 / 17.30 85° : 15.70 / 16.00 / 16.30 / 16.60 / 16.95 80° : 15.40 / 15.70 / 16.00 / 16.30 / 16.60 75° : 14.95 / 15.25 / 15.55 / 15.85 / 16.15 70° : 14.50 / 14.80 / 15.10 / 15.40 / 15.70 65° : 14.40 / 14.40 / 14.55 / 14.80 / 15.10 60° : 14.30 / 14.30 / 14.30 / 14.30 / 14.50 55° : 14.00 / 14.00 / 14.00 / 14.00 / 14.10 50° : 13.75 / 13.75 / 13.75 / 13.75 / 13.75 45° : 13.50 / 13.50 / 13.50 / 13.50 / 13.50 Total unit measure as above qualifies for 3 points. Up to 30 cm less qualifies for 2 points Up to 60 cm less qualifies for 1 point More than 60 cm less: no points given | E93: Totale maat van rijstrook voor éénrichtingsverkeer plus twee vakdieptes, afhankelijk van parkeerhoek en vakbreedte: Vakbreedte2.50m / 2.45m / 2.40m / 2.35m / 2.30m 90° : 16.00 / 16.30 / 16.60 / 16.90 / 17.30 85° : 15.70 / 16.00 / 16.30 / 16.60 / 16.95 80° : 15.40 / 15.70 / 16.00 / 16.30 / 16.60 75° : 14.95 / 15.25 / 15.55 / 15.85 / 16.15 70° : 14.50 / 14.80 / 15.10 / 15.40 / 15.70 65° : 14.40 / 14.40 / 14.55 / 14.80 / 15.10 60° : 14.30 / 14.30 / 14.30 / 14.30 / 14.50 55° : 14.00 / 14.00 / 14.00 / 14.00 / 14.10 50° : 13.75 / 13.75 / 13.75 / 13.75 / 13.75 45° : 13.50 / 13.50 / 13.50 / 13.50 / 13.50 Bovenstaande maat geeft 3 punten. Tot 30 cm minder geeft 2 punten Tot 60 cm minder geeft 1 punt Meer dan 60cm minder: geen punten | F93: Métrage total d’une surface constituée de un emplacement, une voie de circulation et un emplacement (en fonction de la largeur et de la profondeur des emplacements) : Largeur des emplacements: 2.50m / 2.45m / 2.40m / 2.35m / 2.30m 90° : 16.00 / 16.30 / 16.60 / 16.90 / 17.30 85° : 15.70 / 16.00 / 16.30 / 16.60 / 16.95 80° : 15.40 / 15.70 / 16.00 / 16.30 / 16.60 75° : 14.95 / 15.25 / 15.55 / 15.85 / 16.15 70° : 14.50 / 14.80 / 15.10 / 15.40 / 15.70 65° : 14.40 / 14.40 / 14.55 / 14.80 / 15.10 60° : 14.30 / 14.30 / 14.30 / 14.30 / 14.50 55° : 14.00 / 14.00 / 14.00 / 14.00 / 14.10 50° : 13.75 / 13.75 / 13.75 / 13.75 / 13.75 45° : 13.50 / 13.50 / 13.50 / 13.50 / 13.50 Un métrage total supérieur aux cotes ci-dessus donne droit à 3 points. Jusqu’à 30 cm de moins donne droit à 2 points Jusqu’à 60 cm de moins donne droit à 1 point Plus de 60 cm en moins: pas de points attribués | G93: Parkgassenbreite (Fahrbahn plus 2 Stellplätze) in Abhängigkeit der Stellplatzbreite und des Aufstellwinkels: Stellplatzbreite: 2.50m / 2.45m / 2.40m / 2.35m / 2.30m 90° : 16.00 / 16.30 / 16.60 / 16.90 / 17.30 85° : 15.70 / 16.00 / 16.30 / 16.60 / 16.95 80° : 15.40 / 15.70 / 16.00 / 16.30 / 16.60 75° : 14.95 / 15.25 / 15.55 / 15.85 / 16.15 70° : 14.50 / 14.80 / 15.10 / 15.40 / 15.70 65° : 14.40 / 14.40 / 14.55 / 14.80 / 15.10 60° : 14.30 / 14.30 / 14.30 / 14.30 / 14.50 55° : 14.00 / 14.00 / 14.00 / 14.00 / 14.10 50° : 13.75 / 13.75 / 13.75 / 13.75 / 13.75 45° : 13.50 / 13.50 / 13.50 / 13.50 / 13.50 Breiten wie oben aufgeführt erhalten 3 Punkte. Breiten bis zu 30 cm weniger erhalten 2 Punkte Breiten bis zu 60 cm weniger erhalten 1 Punkte Über 60 cm weniger: 0 Punkte | H93: Anchura total de un aparcamiento de sentido único con estacionamiento a ambos lados, en función del ángulo y el ancho de plaza Ancho plaza: 2.50m / 2.45m / 2.40m / 2.35m / 2.30m 90° : 16.00 / 16.30 / 16.60 / 16.90 / 17.30 85° : 15.70 / 16.00 / 16.30 / 16.60 / 16.95 80° : 15.40 / 15.70 / 16.00 / 16.30 / 16.60 75° : 14.95 / 15.25 / 15.55 / 15.85 / 16.15 70° : 14.50 / 14.80 / 15.10 / 15.40 / 15.70 65° : 14.40 / 14.40 / 14.55 / 14.80 / 15.10 60° : 14.30 / 14.30 / 14.30 / 14.30 / 14.50 55° : 14.00 / 14.00 / 14.00 / 14.00 / 14.10 50° : 13.75 / 13.75 / 13.75 / 13.75 / 13.75 45° : 13.50 / 13.50 / 13.50 / 13.50 / 13.50 Anchura total igual o superior al valor de arriba obtiene 3 puntos. Hasta 30 cm menos obtiene 2 puntos Hasta 60 cm menos obtiene 1 punto Más de 60 cm menos: 0 puntos | I93: Medida total de uma ilha com um lugar de largura e dois lugares de profundidade de dois lugares, dependendo do ângulo de estacionamento e largura do lugar: Largura do lugar: 2.50m / 2.45m / 2.40m / 2.35m / 2.30m 90° : 16.00 / 16.30 / 16.60 / 16.90 / 17.30 85° : 15.70 / 16.00 / 16.30 / 16.60 / 16.95 80° : 15.40 / 15.70 / 16.00 / 16.30 / 16.60 75° : 14.95 / 15.25 / 15.55 / 15.85 / 16.15 70° : 14.50 / 14.80 / 15.10 / 15.40 / 15.70 65° : 14.40 / 14.40 / 14.55 / 14.80 / 15.10 60° : 14.30 / 14.30 / 14.30 / 14.30 / 14.50 55° : 14.00 / 14.00 / 14.00 / 14.00 / 14.10 50° : 13.75 / 13.75 / 13.75 / 13.75 / 13.75 45° : 13.50 / 13.50 / 13.50 / 13.50 / 13.50 Se igual ou superior ao valor da tabela acima, 3 pontos. Até 30 cm menos, 2 pontos Até 60 cm menos, 1 ponto Mais de 60 cm a menos: 0 pontos.
A94: 91 | B94: Kerb design to avoid damage to average vehicle’s wheels • Yes = 2, No protection = 0 | C94: 91 | D94: Kerb design to avoid damage to average vehicle’s wheels • Yes = 2, No protection = 0 | E94: Stoeprand met schuine kant ter bescherming van banden en velgen • Ja = 2, Nee = 0 | F94: Bordures conçues pour éviter des dommages aux jantes • Oui = 2, Pas de protection = 0 | G94: Bauliche Ausbildung der Schrammborde zum Schutz vor Beschädigungen der Reifen und Felgen: • Ja = 2, kein Schutz = 0 | H94: Diseño de bordillos para evitar daños en las ruedas de un vehículo estándar • Sí = 2, Sin protección = 1 | I94: Guias para evitar danos às rodas dos veículos • Sim = 2, Sem proteção = 0
A95: 92 | B95: Vehicle Ramps | C95: 92 | D95: Vehicle Ramps | E95: Hellingbanen | F95: Rampes pour véhicules | G95: Fahrzeugrampen | H95: Rampas para vehículos | I95: Rampas de Veículos
A96: 93 | B96: Is this a Single level car park without vehicular ramps or ramper floor? | C96: 93 | D96: Is this a Single level car park without vehicular ramps or ramper floor? | E96: Een garage met één parkeerlaag zonder hellingbanen of hellende parkeervloer krijgt standaard 10 punten. Is dit het geval? | F96: S’agit-il d’un parking d’un seul niveau sans rampe pour voitures ou de surface en pente? | G96: Handelt es sich um ein 1-geschossiges Parkhaus ohne Rampen oder geneigte Parkebenen? | H96: Se trata de un aparcamiento de una única planta sin rampas para vehículos o un aparcamiento en superficie? | I96: É um parque de estacionamento de um único piso, sem rampas ou níveis de estacionamento inclinados?
A97: 94 | B97: Ramp surface between parking areas (Anti slip 1, Smooth 0, no ramps 1) | C97: 94 | D97: Ramp surface between parking areas (Anti slip 1, Smooth 0, no ramps 1) | E97: Hellingbanen tussen parkeervloeren • Ruw = 1, Glad = 0, N.v.t. = 1 | F97: Surface des rampes entre les étages de stationnement ( Anti dérapant 1; Lisse 0, Pas de rampes 1) | G97: Oberflächenausbildung der Rampe zwischen den Parkebenen (rutschhemmend 1; glatt 0, keine Rampen 1) | H97: Superficie de las rampas entre plantas del aparcamiento (Antideslizante 1, Lisa 0, sin rampas 1) | I97: Superfície da rampa entre áreas de estacionamento (Antiderrapante 1, Liso 0, sem rampas 1)
A98: 95 | B98: Ramp longitudinal gradient connecting ramps (not used for parking) • <10%=3, 10-15%=1, >15%=0, no ramps=3 | C98: 95 | D98: Ramp longitudinal gradient connecting ramps (not used for parking) • <10%=3, 10-15%=1, >15%=0, no ramps=3 | E98: Hellingbanen tussen parkeervloeren (waarop niet wordt geparkeerd) • <10% =3, 10 -15% =1, > 15% =0, geen = 3 | F98: L’inclinaison longitudinale des rampes est-elle de (pour rampes non utilisées pour le stationnement) • <10%=3, 10-15%=1, >15%=0, pas de rampes=3 | G98: Gefälle der Geschoßverbindungsrampen (keine Parkrampen) • <10%=3, 10-15%=1, >15%=0, keine Rampen=3 | H98: Pendiente longitudinal en rampas (no usadas para aparcamiento) • <10%=3, 10-15%=1, >15%=0, sin rampas=4 | I98: A inclinação longitudinal das rampas é (não utilizado para estacionamento) • <10%=3, 10-15%=1, >15%=0, sem rampas=3
A99: 96 | B99: Ramp width (between kerbs) all ramps measured at narrowest point | C99: 96 | D99: Ramp width (between kerbs) all ramps measured at narrowest point | E99: Breedte van rechte hellingbanen (tussen stoepranden) op het smalste punt | F99: Largeur des rampes ( entre les bordures), toutes les rampes étant mesurées aux points les plus étroits | G99: Rampenbreite (zwischen Schrammborden), gemessen am engsten Punkt der Rampen | H99: Anchura de rampas (entre bordillos), medida en el punto más estrecho | I99: Largura da rampa, entre guias. Todas as rampas medidas no ponto mais estreito.
A100: 97 | B100: Curved ramps must be 1 m wider for same score. Are the ramps curbed? | C100: 97 | D100: Curved ramps must be 1 m wider for same score. Are the ramps curbed? | E100: Hellingbanen in een bocht? • moeten 1 m breder zijn voor dezelfde score. | F100: Les rampes courbes doivent être 1m plus larges pour obtenir le même score. Les rampes sont-elles courbes ? | G100: Gekrümmte Rampen müssen für dieselbe Punktzahl um 1m breiter sein? Sind die Rampen gekrümmt? | H100: Las rampas curvas deben ser 1 m más anchas para obtener la misma puntuación. Las rampas son curvas? | I100: As rampas curvas devem ser 1m de largura adicional para conseguir a mesma pontuação. As rampas são curvas?
A101: 98 | B101: Please choose width. < 3m=0, 3-3.3m=1, >3.3m=2, no ramps=2 | C101: 98 | D101: =CONCATENATE("Please choose width. ",IF(rampsCurved=yes,"< 4m=0, 4-4.3m=1, >4.3m=2, no ramps=2","< 3m=0, 3-3.3m=1, >3.3m=2, no ramps=2")) -> Please choose width. < 3m=0, 3-3.3m=1, >3.3m=2, no ramps=2 | E101: Kies breedte van de hellingbaan: < 3m=0, 3-3.3m=1, >3.3m=2 | F101: =CONCATENATE("Largeur ",IF(rampsCurved=yes,"< 4m=0, 4-4.3m=1, >4.3m=2, pas de rampe=2","< 3m=0, 3-3.3m=1, >3.3m=2, pas de rampe=2")) -> Largeur < 3m=0, 3-3.3m=1, >3.3m=2, pas de rampe=2 | G101: Breite < 3m=0, 3-3.3m=1, >3.3m=2, keine Rampen=2 | H101: =CONCATENATE("Elegir el ancho ",IF(rampsCurved=yes,"< 4m=0, 4-4.3m=1, >4.3m=2, sin rampas=2","< 3m=0, 3-3.3m=1, >3.3m=2, sin rampas=2")) -> Elegir el ancho < 3m=0, 3-3.3m=1, >3.3m=2, sin rampas=2 | I101: =CONCATENATE("Selecionar a Largura ",IF(rampsCurved=yes,"< 4m=0, 4-4.3m=1, >4.3m=2, sem rampas=2","< 3m=0, 3-3.3m=1, >3.3m=2, sem rampas=2")) -> Selecionar a Largura < 3m=0, 3-3.3m=1, >3.3m=2, sem rampas=2
A102: 99 | B102: Ramp curvature (external radius) curved ramps • up to 9m=0, 9–10 m=1, >10m=2, no ramps=2 At dual way ramps this measure refers to the inner lane. | C102: 99 | D102: Ramp curvature (external radius) curved ramps • up to 9m=0, 9–10 m=1, >10m=2, no ramps=2 At dual way ramps this measure refers to the inner lane. | E102: Straal buitenkant van gebogen hellingbanen: • < 9m =0, 9 – 10 m =1, > 10m = 2, Bij hellingbanen voor twee richtingen geldt deze maat voor de binnenste rijstrook. | F102: Rayon de courbure des rampes courbes ( radius externe) • jusqu’à 9m=0, 9–10 m=1, >10m=2, pas de rampes=2 Pour une rampe à double sens, cette mesure se réfère à la voie intérieure. | G102: Rampenradius (Außenradius) • bis 9m=0, 9–10 m=1, >10m=2, keine Rampen=2 Bei mehrspurigen Rampen gelten diese Angaben für die innere Spur. | H102: Curvatura de la rampa (radio exterior) • hasta 9m=0, 9–10 m=1, >10m=2, sin rampas=2 En rampas de doble dirección, la medida hace referencia al carril interior. | I102: Raio de curvatura da rampa (raio externo) • até 9m=0, 9–10 m=1, >10m=2, sem rampas=2 Nas vias com rampas duplas esta medida refere-se à faixa interior.
A103: 100 | B103: Approach curve to straight ramps • <7.5m=0, 7.5–9m=1, >9m=2, no ramps=2 | C103: 100 | D103: Approach curve to straight ramps • <7.5m=0, 7.5–9m=1, >9m=2, no ramps=2 | E103: Straal buitenkant aanrijbocht naar een rechte hellingbaan: • <7.5m =0, 7.5 – 9m =1, > 9m = 2 | F103: Courbe d’approche d’une rampe d’accès • <7.5m=0, 7.5–9m=1, >9m=2, pas de rampe=2 | G103: Eingangskurve zu geraden Rampen • <7.5m=0, 7.5–9m=1, >9m=2, keine Rampen=2 | H103: Curva de aproximación a rampas rectas • <7.5m=0, 7.5–9m=1, >9m=2, sin rampas=3 | I103: Curva de abordagem para rampas retas • <7.5m=0, 7.5–9m=1, >9m=2, sem rampas=2
A104: 101 | B104: Ramped parking floor longitudinal gradient • <5%=3, 5-7 =1, >7%=0, no gradient=3 | C104: 101 | D104: Ramped parking floor longitudinal gradient • <5%=3, 5-7 =1, >7%=0, no gradient=3 | E104: Hellende parkeervloeren: • <5% =3, 5-7% =1, >7% =0, vlakke vloer = 3 | F104: Inclinaison longitudinale d’une rampe pourvue d’emplacements de parking • <5%=3, 5-7 =1, >7%=0, pas d’inclinaison=3 | G104: Gefälle von Parkrampen (geneigte Parkebenen) • <5%=3, 5-7 =1, >7%=0, kein Gefälle =3 | H104: Pendiente longiitudinal de planta de aparcamiento en pendiente • <5%=3, 5%-7% =1, >7%=0, sin pendiente=4 | I104: Inclinação das rampas de estacionamento. • <5%=3, 5-7 =1, >7%=0, sem inclinação=3
A105: 102 | B105: Pedestrian Access | C105: 102 | D105: Pedestrian Access | E105: Toegankelijkheid voor voetgangers | F105: Accès piétons | G105: Fußgängereingang | H105: Accesos peatonales | I105: Acessos Pedonais
A106: 103 | B106: Item List | C106: 103 | D106: Item List | E106: Omschrijving | F106: Description | G106: Positionsliste | H106: Lista de elementos | I106: Lista de Itens
A107: 104 | B107: Headroom for pedestrians - excluding doors • <2.00m = 0 • 2.00m – 2.10m = 1 • 2.10m – 2.20m = 2 • > 2.20m = 3 | C107: 104 | D107: Headroom for pedestrians - excluding doors • <2.00m = 0 • 2.00m – 2.10m = 1 • 2.10m – 2.20m = 2 • > 2.20m = 3 | E107: Hoogte voor voetgangers op de looproutes op de parkeervloer (excl. Deuren) • 1,90 – 2,00 m = 0 • 2,00 – 2,10 m = 1 • 2,10 – 2,20 m = 2 • > 2,20 m = 3 | F107: Hauteur de plafond zones piétonnes ( portes exceptées) (<2.00m = 0, 2.00m – 2.10m = 1, 2.10m – 2.20m = 2, > 2.20m = 3) | G107: Durchgangshöhe für Fußgänger (Türen ausgenommen) (<2.00m = 0, 2.00m – 2.10m = 1, 2.10m – 2.20m = 2, > 2.20m = 3) | H107: Altura libre para peatones - excluyendo las puertas • <2.00m = 0 • 2.00m – 2.10m = 1 • 2.10m – 2.20m = 2 • > 2.20m = 4 | I107: Pé direito nas zonas pedonais - excluindo portas • <2.00m = 0 • 2.00m – 2.10m = 1 • 2.10m – 2.20m = 2 • > 2.20m = 4
A108: 105 | B108: Separate walking route (i.e. heightened; zebra stripes or colours) (yes = 2, no = 0) | C108: 105 | D108: Separate walking route (i.e. heightened; zebra stripes or colours) (yes = 2, no = 0) | E108: Gescheiden looproute ( bv verhoogd, zebra of afwijkende kleur) • ja = 2, nee = 0 | F108: Voies piétonnes séparées (par ex: surélevées, marquages passages piétons ,utilisation couleur) (oui = 2, non = 0) | G108: Ausgewiesene Fußwege (z.B.: baulich erhöht, Zebrastreifen oder farbig) (ja = 2, nein = 0) | H108: Ruta peatonal separada (por ejemplo, sobreelevada; marcas horizontales o colores) (sí = 2, no = 0) | I108: Via pedonal separada (pe, passeios, passadeiras ou faixas coloridas) (sim = 2, não = 0)
A109: 106 | B109: Are pedestrian entrance doors easy to use? (Yes, automatic or open connection = 4, Easy to open = 2, No = 0) | C109: 106 | D109: Are pedestrian entrance doors easy to use? (Yes, automatic or open connection = 4, Easy to open = 2, No = 0) | E109: Zijn deuren gemakkelijk te openen? • Ja: automatisch of open verbinding = 4 • Gemakkelijk te openen = 2 • Nee = 0 | F109: Les portes pour piétons sont-elles facile à utiliser? (Oui, portes automatiques ou passage ouvert = 4, Facile à ouvrir = 2, No = 0) | G109: Sind die Türen für Fußgänger leicht zu öffnen ? (Ja, Automatiktüren oder offene Verbindung = 4, leicht zu öffnen = 2, nein = 0) | H109: Las puertas peatonales son de fácil uso? (Sí, automáticas o paso abierto = 4, Apertura fácil = 2, No = 0) | I109: As portas das entradas para peões são fáceis de usar? (Sim, automática ou aberta = 4, Fácil de abrir = 2, Não = 0)
A110: 107 | B110: Pedestrian access controlled by ticket/pass card when car park open (Yes=1, No=0) | C110: 107 | D110: Pedestrian access controlled by ticket/pass card when car park open (Yes=1, No=0) | E110: Voetgangerstoegang met kaartlezer tijdens openingsuren Ja=1, Nee=0 | F110: Accès piétons contrôlés par lecteurs de tickets/cartes durant les heures d’ouverture (Oui=2,Non=0) | G110: Ist der Fußgängereingang auch während der Öffnungszeiten mit einem Kartenleser gesichert ? (Ja=2,Nein=0) | H110: Acceso peatonal controlado vía ticket/tarjeta en horario de apertura del aparcamiento (Sí=1, No=0) | I110: Acesso pedonal controlado por bilhete/cartão de passe quando parque de estacionamento aberto (Sim=1, Não=0)
A111: 108 | B111: City plan a central location in car park: (On Every pedestrian exit = 2, One location = 1, No = 0) | C111: 108 | D111: City plan a central location in car park: (On Every pedestrian exit = 2, One location = 1, No = 0) | E111: Stadsplattegrond op centrale plek in de garage: • Bij elke voetgangersuitgang=2, op één plek = 1, nee = 0 | F111: Plan de ville affiché à un endroit de passage: (A chaque sortie piétonne= 2, A un endroit = 1, Non = 0) | G111: Liegt ein Stadtplan an einem zentralen Punkt des Parkhauses aus ?: (An jedem Fußgängerausgang= 2, An einer anderen Stelle = 1, Nein = 0) | H111: Plano de la ciudad City plan a central location in car park: (En todas las salidas peatonales = 2, Sólo en un lugar = 1, No = 0) | I111: Plano da cidade numa localização central do parque de estacionamento: (Em cada saída pedonal = 2, Uma localização = 1, Não = 0)
A112: 109 | B112: Guidance: | C112: 109 | D112: Guidance: | E112: Bewegwijzering | F112: Guidage | G112: Wegweisung: | H112: Guiado: | I112: Orientação:
A113: 110 | B113: to key attractions around the car park at pedestrian exit (Yes=1, No=0): | C113: 110 | D113: to key attractions around the car park at pedestrian exit (Yes=1, No=0): | E113: Bewegwijzering bij voetgangersuitgang naar belangrijke bestemmingen • Ja = 1, Nee = 0 | F113: A la sortie piétons vers les principaux points d’attraction autour du parking (Oui=1, Non=0): | G113: Zu wichtigen Zielen außerhalb des Parkhauses (Ja=1, Nein=0): | H113: hacia lugares turísticos alrededor del aparcamiento en las salidas peatonales (Sí=1, No=0): | I113: Nas saídas de peões em torno do estacionamento, para os principais pontos de atração? (Sim=1, Não=0):
A114: 111 | B114: around the car park to pedestrian entrances (Yes=1, No=0): | C114: 111 | D114: around the car park to pedestrian entrances (Yes=1, No=0): | E114: Bewegwijzering naar voetgangerstoegang • Ja = 1, Nee = 0 | F114: Aux alentours du parking vers les entrées piétonnes (Oui=1, Non=0): | G114: In der Umgebung des Parkhauses zu den Eingängen (Ja=1, Nein=0): | H114: alrededor del aparcamiento hacia los accesos peatonales (Sí=1, No=0): | I114: Ao redor do parque de estacionamento para as entradas de peões? (Sim=1, Não=0):
A115: 112 | B115: Is this a Single level car park at ground floor, (not open surface) ? | C115: 112 | D115: Is this a Single level car park at ground floor, (not open surface) ? | E115: Een garage met één parkeerlaag op straatniveau zonder trappen of liften? | F115: Est-ce un parking sur un seul niveau en rez-de-chaussée, (pas à ciel ouvert)? | G115: Handelt es sich um ein 1-geschossiges Parkhaus auf Erdgeschoßniveau (keine offener Parkplatz)? | H115: Se trata de un aparcamiento de una única planta a nivel de calle (no en superficie)? | I115: É um parque de estacionamento com um único piso térreo? (mas não de superficie aberta)
A116: 113 | B116: Is there elevators serving street level? | C116: 113 | D116: Is there elevators serving street level? | E116: Gaan de aanwezige liften tot straatniveau? | F116: Y a-t-il des ascenseurs desservant le niveau rez-de-chaussée? | G116: Fahren der/die Aufzüge das Erdgeschoß/Straßenniveau an? | H116: Hay ascensores que conecten el nivel de calle? | I116: Existem elevadores até ao nível da rua?
A117: 114 | B117: Number of Elevators at street level: (1 elevator = 1, 2 + elevators = 5) | C117: 114 | D117: Number of Elevators at street level: (1 elevator = 1, 2 + elevators = 5) | E117: Liften vanaf straatniveau • geen = 0, 1 lift = 1, • 2 of meer liften =5 | F117: Nombre d’ascenseurs au niveau rez-de-chaussée: (1 ascenseur = 1, 2 ascenseurs ou + = 5) | G117: Anzahl der Aufzüge, welche das Erdgeschoß/Straßenniveau anfahren: (1 Aufzug = 1, 2 Aufzüge oder mehr = 5) | H117: Número de ascensores a nivel de calle: (1 ascensor = 1, 2 o más ascensores = 5) | I117: Número de Elevadores que servem o nível da rua: (1 elevador = 1, + 2 elevadores = 5)
A118: 115 | B118: Size of elevators: (More Than 8 people = 3, 4-8 people = 1, less than 4 = 0) | C118: 115 | D118: Size of elevators: (More Than 8 people = 3, 4-8 people = 1, less than 4 = 0) | E118: Capaciteit van de liften • > 8 personen = 3; 4-8 personen = 1; <4 personen = 0 | F118: Taille des ascenseurs: (Plus de 8 personnes = 3, 4-8 personnes = 1, moins de 4 personnes= 0) | G118: Größe der Aufzüge: (über 8 Personen = 3, 4-8 Personen = 1, weniger als 4 Personen= 0) | H118: Tamaño de ascensores: (Más de 8 personas = 3, 4-8 personas = 1, menos de 4 = 0) | I118: Capacidade dos elevadores: (Mais de 8 pessoas = 3, 4-8 pessoas = 1, menos que 4 = 0)
A119: 116 | B119: Visibility from elevator inside to hall/parking area (no visibility from elevator = 0, glazed doors/walls = 3, no elevator = 0) | C119: 116 | D119: Visibility from elevator inside to hall/parking area (no visibility from elevator = 0, glazed doors/walls = 3, no elevator = 0) | E119: Zicht vanuit lift naar hall of parkeervloeren • Geen zicht vanuit de lift = 0; • Deur met glas/glazen wand = 3; • Geen lift = 0 | F119: Visibilité depuis l’ascenseur vers le hall/parking (pas de visibilité depuis l’ascenseur = 0, portes/murs vitré(e)s = 3, pas d’ascenseur = 0) | G119: Sichtverbindung zwischen Aufzug und Vorraum/Parkebene : (Keine Sichtverbindung = 0, Türen/Schachtwände verglast = 3, kein Aufzug = 0) | H119: Visibilidad desde el interior del ascensor hacia el vestíbulo/zona de aparcamiento (no hay visibilidad desde el ascensor = 0, puertas y muros acristalados = 3, no hay ascensor = 0) | I119: Visibilidade desde o elevador para o hall ou para a área de estacionamento: (nenhuma visibilidade do elevador = 0, portas de vidros/paredes = 3, sem elevador = 0)
A120: =C120 -> 117 | B120: Level indication: | C120: 117 | D120: Level indication: | E120: Verdieping indicatie: | F120: Indication de l’étage | G120: Anzeige der Etage | H120: Indicación de la planta: | I120: Indicação do Piso ou Andar:
A121: 118 | B121: in elevator: | C121: 118 | D121: in elevator: | E121: in de lift: | F121: Dans l’ascenseur | G121: Im Aufzug | H121: en el interior del ascensor: | I121: no elevador:
A122: 119 | B122: in elevator foyer: | C122: 119 | D122: in elevator foyer: | E122: In de lifthal: | F122: Dans le hall d’ascenseur | G122: Im Aufzugvorraum | H122: en el rellano del ascensor: | I122: no hall de entrada do elevador:
A123: 120 | B123: Elevator control buttons at wheelchair height • Yes = 1, Other = 0 | C123: 120 | D123: Elevator control buttons at wheelchair height • Yes = 1, Other = 0 | E123: Liftbediening op rolstoelhoogte • Ja = 1, Nee = 0 | F123: Les boutons des ascenseurs sont-ils à hauteur d’une chaise roulante • Oui = 1, Autre = 0 | G123: Bedienelemente im Aufzug in behindertengerechter Höhe? • Ja = 1, andere = 0 | H123: Los botones del ascensor están a una altura para silla de ruedas • Sí = 1, Otros = 1 | I123: Botões de controle do elevador à altura da cadeira de rodas • Sim = 1, Outro = 0
A124: 121 | B124: Doors directly to parking area | C124: 121 | D124: Doors directly to parking area | E124: Toegangsdeuren tot de parkeervloeren | F124: Portes directement vers les aires de stationnement | G124: Verbindungstüren zu den Parkebenen | H124: Puertas directamente hacia zona de aparcamiento | I124: As portas do elevador dão acesso direto à área de estacionamento
A125: 122 | B125: Width (<90 cm =0, >=90 cm = 2) | C125: 122 | D125: Width (<90 cm =0, >=90 cm = 2) | E125: Breedte <90 cm =0, >90 cm = 2 | F125: Largeur (<90 cm =0, >=90 cm = 2) | G125: Lichte Breite (<90 cm =0, >=90 cm = 2) | H125: Ancho (<90 cm =0, >=90 cm = 2) | I125: Largura (<90 cm =0, >=90 cm = 2)
A126: 123 | B126: Emergency door, standard open (Yes=2, No= 0) | C126: 123 | D126: Emergency door, standard open (Yes=2, No= 0) | E126: Open verbinding = 2 | F126: Portes d’évacuation de secours, en position ouverte (électroaimant) (Oui=2, Non= 0) | G126: Fluchttüren, standardmässig offen (ja=2, nein= 0) | H126: Puertas de emergencia, abierta por defecto (Sí=2, No= 0) | I126: Portas de emergência estão abertas? (Sim=2, Não= 0)
A127: 124 | B127: Visibility (Glazed door/wall = 3, No Glass = 0) | C127: 124 | D127: Visibility (Glazed door/wall = 3, No Glass = 0) | E127: Zichtbaarheid • Glazen deur/wand = 3, Niet doorzichtig = 0 | F127: Visibilité (Portes/murs vitrés)= 3, Pas de vitres = 0 | G127: Sichtbeziehung (verglaste Türen/Wände = 3, kein Glas = 0) | H127: Visibilidad (Puerta/muro acristalado = 3, Sin cristal = 0) | I127: Visibilidade (Porta ou Muro envidraçados = 3, Sem visibilidade = 0)
A128: 125 | B128: Are elevators the main vertical connection? (stairs only secondary or escape) | C128: 125 | D128: Are elevators the main vertical connection? (stairs only secondary or escape) | E128: Vormen liften de hoofdverbinding voor vertical verkeer (trappen alleen voor noodgevallen)? | F128: Les ascenseurs sont-ils le principal moyen d’accéder aux étages? (escaliers uniquement pour évacuation de secours ou secondaires) | G128: Sind Aufzüge die wichtigste Geschoßverbindung? (Treppen nur zweitrangig oder zur Entfluchtung) | H128: Son los ascensores la principal conexión vertical? (escaleras únicamente para evacuación en caso de emergencia o secundarias) | I128: Os elevadores são a principal ligação vertical? (escadas apenas secundárias ou fuga)
A129: 126 | B129: Stairwells (visibility and orientation) | C129: 126 | D129: Stairwells (visibility and orientation) | E129: Trappenhuizen: overzicht en orientatie | F129: Cages d’escaliers (visibilité et orientation) | G129: Treppenhäuser (Übersichtlichkeit und Orientierung) | H129: Núcleos de escaleras (visibilidad y orientación) | I129: Caixas de Escadas (visibilidade e orientação)
A130: 127 | B130: Clear View (Yes = 1, No = 0, Irrelevant = 1) | C130: 127 | D130: Clear View (Yes = 1, No = 0, Irrelevant = 1) | E130: Duidelijk overzicht, geen dode hoeken • Ja = 1, Nee = 0 | F130: Vue dégagée (Oui = 1, Non = 0, Pas d’application= 1) | G130: Übersichtlich (ja= 1, nein = 0, unzutreffend = 1) | H130: Vista despejada (Sí = 1, No = 0, No aplica = 1) | I130: Vista limpa (Sim = 1, Não = 0, Irrelevante = 1)
A131: 128 | B131: Level Indication (Yes = 1, No = 0, Irrelevant = 1) | C131: 128 | D131: Level Indication (Yes = 1, No = 0, Irrelevant = 1) | E131: Indicatie van de verdieping • Ja = 1, Nee = 0 | F131: Indication d’étage (Oui = 1, Non = 0, Pas d’application = 1) | G131: Geschoßkennzeichnung (ja = 1, nein = 0, unzutreffend = 1) | H131: Indicación de planta (Sí = 1, No = 0, No aplica = 1) | I131: Indicação do piso ou andar (Sim = 1, Não = 0, Irrelevante = 1)
A132: 129 | B132: =IF(ISBLANK(VLOOKUP(A132,$C$4:$V$9989,1+$A$1)),D132,VLOOKUP(A132,$C$4:$V$9989,1+$A$1)) -> Stairs (incl. heightened visibility of steps) | C132: 129 | D132: Stairs (incl. heightened visibility of steps) | E132: Trappen: | F132: Escaliers (y compris visibilité renforcée des marches) | G132: Treppen (einschließlich verbesserte Sichtbarkeit von Stufen) | H132: Escaleras (incluye visibilidad reforzada de escalones) | I132: Escadas (incl. maior visibilidade dos degraus)
A133: 130 | B133: Width (< 1.5 m = 0, > 1.5m = 2) | C133: 130 | D133: Width (< 1.5 m = 0, > 1.5m = 2) | E133: Breedte < 1.5 m = 0, > 1.5m = 2 | F133: Largeur (< 1.5 m = 0, > 1.5m = 2) | G133: Breite (< 1.5 m = 0, > 1.5m = 2) | H133: Ancho (< 1.5 m = 0, > 1.5m = 2) | I133: Largura (< 1.5 m = 0, > 1.5m = 2)
A134: 131 | B134: Hand Rails (No hand rail =0, One Side = 1, Two sides=2) | C134: 131 | D134: Hand Rails (No hand rail =0, One Side = 1, Two sides=2) | E134: Geen handreling =0, Eén zijde = 1, Twee zijden=2 | F134: Main courante (Pas de main courante=0, D’un seul côté = 1, Des deux côtés=2) | G134: Handläufe (Kein Handlauf = 0, einseitig = 1, beidseitig = 2) | H134: Barandillas (Sin barandillas =0, Un lado = 1, Ambos lados=2) | I134: Corrimão (Não tem corrimão = 0, Um lado = 1, Dois lados = 2)
A135: 132 | B135: Heightened visibility of steps for people with poor eyesight (Yes = 2, No = 0) | C135: 132 | D135: Heightened visibility of steps for people with poor eyesight (Yes = 2, No = 0) | E135: Extra markering van treden voor slechtzienden • Ja = 2, Nee = 0 | F135: Visibilité renforcée des marches pour personne souffrant d’une déficience de la vue (Oui = 2, Non = 0) | G135: Verbesserte Sichtbarkeit von Stufen für Personen mit eingeschränkter Sehstärke (ja = 2, nein = 0) | H135: Visibilidad reforzada de escalones para personas con deficiencias visuales (Sí = 2, No = 0) | I135: Maior visibilidade dos degraus para pessoas com deficiência visual (Sim = 2, Não = 0)
A136: 133 | B136: Anti-slip surfacing on stairs: (Yes = 2, No = 0) | C136: 133 | D136: Anti-slip surfacing on stairs: (Yes = 2, No = 0) | E136: Anti-slip op trappen: • Ja = 2, Nee = 0 | F136: Surface anti-dérapante sur les marches (Oui = 2, Non = 0) | G136: Rutschfester Belag auf den Stufen (ja = 2, nein = 0) | H136: Superficie antideslizante en escaleras: (Sí = 2, No = 0) | I136: Antiderrapante à superfície em escadas: (Sim = 2, Não = 0)
A137: 134 | B137: External openings in stairwell (window/grilled to outside or car park =2, none =0) | C137: =C136+1 -> 134 | D137: External openings in stairwell (window/grilled to outside or car park =2, none =0) | E137: Daglicht toetreding in trappenhuis • Raam of rooster opening =2 • geen =0 | F137: Ouvertures extérieures des cages d’escalier (fenêtres ou grilles vers l’extérieur ou vers le parking =2, Pas d’ouverture =0) | G137: Öffnungen in Treppenhauswänden (Fenster oder vergitterte Öffnungen ins Freie oder zu den Parkebenen = 2, keine Öffnungen = 0) | H137: Aperturas exteriores en el núcleo de escaleras (ventana/rejilla al exterior o aparcamiento =2, ninguna =0) | I137: Aberturas externas nas Caixas de Escadas (janela / grelha para fora do parque de estacionamento =2, nenhum =0)
A138: 135 | B138: Security Equipment | C138: 135 | D138: Security Equipment | E138: Veiligheidstechniek | F138: Equipements de sécurité | G138: Sicherheitseinrichtungen | H138: Herramientas de seguridad | I138: Equipamentos de Segurança
A139: 136 | B139: Item List | C139: 136 | D139: Item List | E139: Omschrijving | F139: Description | G139: Positionsliste | H139: Lista de elementos | I139: Lista de Items
A140: 137 | B140: CCTV with notice at entrance = 3, No CCTV =0 | C140: 137 | D140: CCTV with notice at entrance = 3, No CCTV =0 | E140: • CCTV met aanduiding bij de inrit = 3, • Geen CCTV =0 | F140: Vidéosurveillance avec affichage légal à l’entrée = 3, Pas de vidéosurveillance=0 | G140: Videoüberwachung mit Ankündigung am Eingang = 3, Keine Videoüberwachung = 0 | H140: CCTV con aviso a la entrada = 3, No hay CCTV =0 | I140: CCTV com aviso na entrada = 3, Não tem CCTV = 0
A141: 138 | B141: Staff surveillance (on-site or remote) • Yes = 5, No = 0 | C141: 138 | D141: Staff surveillance (on-site or remote) • Yes = 5, No = 0 | E141: Toezicht door personeel (ter plaatse of op afstand) • Ja = 5, Nee = 0 | F141: Sous surveillance par du personnel (sur site ou à distance) • Oui = 5, No = 0 | G141: Überwachung durch Personal (vor Ort oder durch Fernüberwachung) • ja = 5, nein = 0 | H141: Personal de vigilancia (presencial o remoto) • Sí = 5, No = 1 | I141: Presença de Staff (no local ou remoto) • Sim = 5, Não = 0
A142: 139 | B142: CCTV at: | C142: 139 | D142: CCTV at: | E142: CCTV bij: | F142: Vidéosurveillance | G142: Videoüberwachung an besonderen Stellen | H142: CCTV en: | I142: CCTV em:
A143: 140 | B143: Car Entry: Yes =1, No =0 | C143: 140 | D143: Car Entry: Yes =1, No =0 | E143: Inrit: Ja =1, Nee =0 | F143: Entrées voitures: Oui =1, Non =0 | G143: Einfahrt: ja = 1, nein = 0 | H143: Entrada de vehículos: Sí =1, No =0 | I143: Entrada de Veículos: Sim =1, Não =0
A144: 141 | B144: Car Exit: Yes =1, No =0 | C144: 141 | D144: Car Exit: Yes =1, No =0 | E144: Uitrit: Ja =1, Nee =0 | F144: Sorties voitures: Oui =1, Non =0 | G144: Ausfahrt: ja = 1, nein = 0 | H144: Salida de vehículos: Sí =1, No =0 | I144: Saída de Veículos: Sim =1, Não =0
A145: 142 | B145: Pay Machine: Yes =1, No =0 | C145: 142 | D145: Pay Machine: Yes =1, No =0 | E145: Betaalautomaat: Ja =1, Nee =0 | F145: Bornes de paiement: Oui =1, Non =0 | G145: Kassenautomat: ja = 1, nein = 0 | H145: Máquina de pago: Sí =1, No =0 | I145: Máquina Pagamento: Sim =1, Não =0
A146: 143 | B146: Elevator Hall, every level: Yes =1, No =0 | C146: 143 | D146: Elevator Hall, every level: Yes =1, No =0 | E146: Voetgangers/lifthal op elke verdieping: Ja =1, Nee =0 | F146: Hall d’ascenseurs, tous les étages: Oui =1, Non =0 | G146: Aufzugvorraum, in allen Geschossen: ja = 1, nein = 0 | H146: Vestíbulo de ascensor, en cada planta: Sí =1, No =0 | I146: Hall do Elevador, todos os níveis: Sim =1, Não =0
A147: 144 | B147: Stairwells, every level: Yes =1, No =0 | C147: 144 | D147: Stairwells, every level: Yes =1, No =0 | E147: Trappenhuizen op elke verdieping: Ja =1, Nee =0 | F147: Cages d’escalier, chaque niveau: Oui =1, Non =0 | G147: Treppenhäuser, in allen Geschossen: ja = 1, nein = 0 | H147: Núcleo de escaleras, en cada planta: Sí =1, No =0 | I147: Caixa de escadas, todos os níveis: Sim =1, Não =0
A148: 145 | B148: Pedestrian Entrances: Yes =1, No =0 | C148: 145 | D148: Pedestrian Entrances: Yes =1, No =0 | E148: Voetgangerstoegang: Ja =1, Nee =0 | F148: Entrées piétons: Oui =1, Non =0 | G148: Fußgängereingang: ja = 1, nein = 0 | H148: Accesos peatonales: Sí =1, No =0 | I148: Entradas Pedonais: Sim =1, Não =0
A149: 146 | B149: Most of Parking Area (65%):Yes =3, No =0 | C149: 146 | D149: Most of Parking Area (65%):Yes =3, No =0 | E149: Parkeervloeren 65%: Ja =3, Nee =0 | F149: La plupart des aires de stationnement (65%):Oui =3, Non =0 | G149: Überwiegender Teil der Parkebenen (65%): ja = 3, nein = 0 | H149: Mayor parte de la zona de aparcamiento (65%):Sí =3, No =0 | I149: Maioria da Área de Estacionamento (65%):Sim =3, Não =0
A150: 147 | B150: Ramps: Yes = 1, No = 0 | C150: 147 | D150: Ramps: Yes = 1, No = 0 | E150: Hellingbanen: Ja = 1, Nee = 0 | F150: Rampes: Oui = 1, Non = 0 | G150: Rampen: ja = 1, nein = 0 | H150: Rampas: Sí = 1, No = 0 | I150: Rampas: Sim = 1, Não = 0
A151: 148 | B151: Staff contactable via: | C151: 148 | D151: Staff contactable via: | E151: Assistentie oproepbaar via: | F151: Personnel joignable via: | G151: Personal kontaktierbar durch: | H151: Personal localizable a través de: | I151: Staff contactável via:
A152: 149 | B152: Intercom at pay machine and/or controlled entries (24/7=3, All access hours if not 24/7= 2, Part time/not available = 0) | C152: 149 | D152: Intercom at pay machine and/or controlled entries (24/7=3, All access hours if not 24/7= 2, Part time/not available = 0) | E152: Intercom bij betaalautomaat, slagbomen etc • 24 uur/7 dagen per week=3 • Openingsuren indien niet 24/7= 2 • Niet of onduidelijk = 0 | F152: Interphonie aux bornes de paiement et/ou aux entrées contrôlées (24h/24 7j/7=3, Durant les heures d’ouverture si pas 24h/24= 2, Partiellement ou absent = 0) | G152: Sprechstellen an den Kassenautomaten und/oder an den kontrollierten Zugängen (24h/7=3, während der Öffnungszeiten wenn nicht 24h/24 = 2, zeitweise oder gar nicht = 0) | H152: Interfonía en la máquina de pago y/o accesos controlados (24/7=3, Todas las horas de apertura si no 24/7= 2, Tiempo parcial/no disponible = 0) | I152: Intercomunicador na máquina de pagamento e/ou entradas controladas (24/7=3, Todas as horas de acesso, se não 24/7= 2, Part-time/não disponível = 0)
A153: 150 | B153: Emergency call system in parking area (24/7=3, All access hours if not 24/7= 2, Part time/not available = 0) | C153: 150 | D153: Emergency call system in parking area (24/7=3, All access hours if not 24/7= 2, Part time/not available = 0) | E153: Noodoproep op de parkeervloeren • 24 uur/7 dagen per week=3 • Openingsuren indien niet 24/7= 2 • Niet of onduidelijk = 0 | F153: Système d’appel d’urgence dans les aires de stationnements (24h/24 7j/7=3, Durant les heures d’ouverture si pas 24h/24= 2, Partiellement ou absent = 0) | G153: Notrufmelder in den Parkebenen (24/7 = 3, während der Öffnungszeiten wenn nicht 24/7 = 2, zeitweise oder gar nicht = 0) | H153: Sistema de aviso de emergencia en zona de aparcamiento (24/7=3, Todas las horas de apertura si no 24/7= 2, Tiempo parcial/no disponible = 0) | I153: Sistema de chamada de emergência na área de estacionamento (24/7=3, Todas as horas de acesso, se não 24/7= 2, Part-time/não disponível = 0)
A154: 151 | B154: Recognizable staff present and patrolling car park (24/7 = 3, During access Hours = 2, Less than access Hours = 1, No = 0) | C154: 151 | D154: Recognizable staff present and patrolling car park (24/7 = 3, During access Hours = 2, Less than access Hours = 1, No = 0) | E154: Herkenbaar toeziend personeel in de garage • 24 uur/7 dagen per week=3 • Openingsuren indien niet 24/7= 2 • Af en toe = 1 • Niet = 0 | F154: Personnel présent, reconnaissable et patrouillant dans le parking (24h/24 7j/7 = 3, Durant toutes les heures d’ouverture = 2, Partiellement durant les heures d’ouverture = 1, Indisponible = 0) | G154: Patroullierendes Parkhauspersonal anwesend (24/7 = 3, während der Öffnungszeiten wenn nicht 24/7 = 1, gar nicht = 0) | H154: Personal identificado presente y vigilando el aparcamiento (24/7 = 3, Durante horario de apertura = 2, Tiempo parcial = 1, No = 0) | I154: Presença de pessoal do Staff fardado e patrulhamento do parque de estacionamento (24/7 = 3, Durante Horário de acesso = 2, Após Horário de acesso = 1, Não = 0)
A155: 152 | B155: Lockable vehicle exit/entry: (Closed gate/rolling shutter after access hours = 2, Secured: fast opening gate during day = 4, Secured: slow opening gate during day = 2, No provisions = 0) | C155: 152 | D155: Lockable vehicle exit/entry: (Closed gate/rolling shutter after access hours = 2, Secured: fast opening gate during day = 4, Secured: slow opening gate during day = 2, No provisions = 0) | E155: Afsluitbare in/uitrit • Hek of rolpoort na openingsuren= 2 • Snelsluitend hek overdag= 4 • Langzaam sluitend hek of rolpoort overdag= 2 • Geen afsluiting= 0 | F155: Fermeture des entrées/sorties véhicules: (Portails ou volets fermés après heures d’ouverture = 2, Mécanisme de fermeture sécurisé rapide durant heures d’ouverture= 4, Mécanisme de fermeture sécurisé lent durant heures d’ouverture = 2, Pas de mécanisme = 0) | G155: Verschließbare Ein-/Ausfahrten: (geschlossene Tore oder Rollgitter außerhalb der Öffnungszeiten = 2, Schnellauftore während der Öffnungszeiten = 4, langsam laufende Tore während der Öffnungszeiten = 2, keine Sicherung = 0) | H155: Cierre de entrada/salida de vehículos: (Portón cerrado fuera de horario de apertura = 2, Mecanismo de seguridad de cierre rápido durante horario apertura = 4, Mecanismo de seguridad de cierre lento durante horario apertura = 2, Sin mecanismo = 0) | I155: Saída/entrada de veículos bloqueável: (Portão fechado/portão de enrolar depois de horas de acesso = 2, seguro: rápida abertura do portão durante o dia = 4, seguro: portão de abertura lenta durante o dia = 2, Não previsto = 0)
A156: 153 | B156: Lockable pedestrian exit/entry (after opening hours). (Door/gate/rolling shutter <= 15cm maximum aperture = 2, over 15 cm = 0, no provisions = 0, Irrelevant (24 hours opening) = 2) | C156: 153 | D156: Lockable pedestrian exit/entry (after opening hours). (Door/gate/rolling shutter <= 15cm maximum aperture = 2, over 15 cm = 0, no provisions = 0, Irrelevant (24 hours opening) = 2) | E156: Afsluitbare voetgangerstoegang buiten openingtijd • Rolhek of deur met openingen < 15cm = 2 • Rolhek of deur met grotere openingen= 0 • Geen afsluiting= 0 • Irrelevant (24 uur opening) = 2 | F156: Fermeture des entrées/sorties piétons (après les heures d'ouverture). (Porte/portail/volet avec <= 15cm d’espace maximum entre barreaux = 2, au-delà de 15 cm = 0, Aucune disposition = 0, Pas d’application (ouverture 24h/24) = 2) | G156: Verschließbare Ein-/Ausgänge außerhalb der Öffnungszeiten: (Türen, Tore oder Rollgitter mit Öffnungen <= 15 cm = 2, > 15 cm = 0, keine Sicherung = 0, unzutreffend (24 Stunden Öffnungszeit) = 2) | H156: Cierre de entradas y salidas peatonales (fuera de horario de apertura). (Puerta/portón cuya apertura máxima es <= 15cm = 2, más de 15 cm = 0, ningún tipo de cierre = 0, No aplica (horario de apertura 24h) = 2) | I156: Saída/entrada de caminhos pedonais (depois do horário de funcionamento). (Porta/portão/portão de enrolar <= 15cm abertura máxima = 2, mais de 15 cm = 0, não previsto = 0, Irrelevante (24 hours de abertura) = 2)
A157: 154 | B157: Grilles on external openings & security grilles (<= 15 cm = 2, > 15 cm or no protection= 0, Irrelevant (no external openings) = 2) | C157: 154 | D157: Grilles on external openings & security grilles (<= 15 cm = 2, > 15 cm or no protection= 0, Irrelevant (no external openings) = 2) | E157: Roosters in externe openingen & afsluithekken • <= 15 cm = 2, > 15 cm of geen rooster= 0 | F157: Grilles vers ouvertures extérieures & grilles de sécurité (<= 15 cm d’espace= 2, > 15 cm ou pas de protection= 0, Pas d’application (pas d’ouvertures extérieures) = 2) | G157: Vergitterung von Öffnungen nach außen (<= 15 cm = 2, > 15 cm oder kein Schutz= 0, unzutreffend (keine Öffnungen) = 2) | H157: Rejillas en aperturas exteriores y rejillas de seguridad (<= 15 cm = 2, > 15 cm o sin protección= 0, No aplica (no hay aperturas exteriores) = 2) | I157: Grelhas em aberturas externas e grades de segurança (<= 15 cm = 2, > 15 cm ou sem proteção= 0, Irrelevante (sem aberturas externas) = 2)
A158: 155 | B158: Wayfinding Inside and Outside | C158: 155 | D158: Wayfinding Inside and Outside | E158: Orientatie binnen en buiten de garage | F158: Trouver son chemin dans et à l’extérieur du parking | G158: Wegweisung innerhalb und außerhalb des Parkhauses | H158: Orientación en interior y exterior del aparcamiento | I158: Sinalética
A159: 156 | B159: Item List | C159: 156 | D159: Item List | E159: Omschrijving | F159: Description | G159: Positionsliste | H159: Lista de elementos | I159: Lista de Items
A160: 157 | B160: Identification of vacant parking spaces | C160: 157 | D160: Identification of vacant parking spaces | E160: Weergave vrije plaatsen | F160: Identification des places libres | G160: Anzeige von freien Stellplätzen | H160: Identificación de plazas libres | I160: Identificação de lugares de estacionamento vagos
A161: 158 | B161: Parking floor level (yes/good = 2, no/bad = 0) | C161: 158 | D161: Parking floor level (yes/good = 2, no/bad = 0) | E161: Op vloer niveau • Ja/goed = 2, nee/slecht = 0 | F161: Par étage (oui/bon = 2, non/mauvais= 0) | G161: Etagenweise (ja/gut = 2, nein/schlecht= 0) | H161: Por planta (sí/buena = 2, no/mala = 0) | I161: Nível do piso de estacionamento (sim/bom = 2, não/mau = 0)
A162: 159 | B162: Parking row (yes/good = 1, no/bad = 0) | C162: 159 | D162: Parking row (yes/good = 1, no/bad = 0) | E162: Per parkeer rij • Ja/goed = 1, nee/slecht = 0 | F162: Par rangée (Oui/bon = 1, non/mauvais = 0) | G162: Gassenweise (ja/gut = 1, nein/schlecht= 0) | H162: Por fila (sí/buena = 1, no/mala = 0) | I162: Por fila de estacionamento (sim/bom = 2 = 1, não/mau = 0)
A163: 160 | B163: Individual stall indication (yes/good = 2, no/bad = 0) | C163: 160 | D163: Individual stall indication (yes/good = 2, no/bad = 0) | E163: Per plaats • Ja/goed = 2, nee/slecht = 0 | F163: Par place individuelle (oui/bon= 2, non/mauvais = 0) | G163: Platzweise (ja/gut = 2, nein/schlecht= 0) | H163: Por plaza individual (sí/buena = 2, no/mala = 0) | I163: Lugar a Lugar (sim/bom = 2, não/mau = 0)
A164: 161 | B164: Way finding (vehicles) | C164: 161 | D164: Way finding (vehicles) | E164: Orientatie vanuit de auto | F164: Trouver son chemin au volant de son véhicule | G164: Wegweisung für den fahrenden Verkehr | H164: Orientación (vehículos) | I164: Sinalética para veículos
A165: 162 | B165: Are floors clearly and separately identified for drivers? (Good =3, Adequate =2, Poor =1, No =0) | C165: 162 | D165: Are floors clearly and separately identified for drivers? (Good =3, Adequate =2, Poor =1, No =0) | E165: Is elke parkeerlaag duidelijk herkenbaar? • goed =3, acceptabel =2, matig =1, nee =0 | F165: Les étages sont-ils clairement et séparément identifiables pour le conducteur? (Bon =3, Adéquat =2, Faible =1, Non =0) | G165: Sind die Etagen für den Fahrer klar und deutlich gekennzeichnet? (gut =3, befriedigend =2, schlecht =1, gar nicht =0) | H165: Las plantas están claramente identificadas para los conductores? (Bien =3, Correcto =2, Mal =1, No =0) | I165: Os pisos estão identificados de forma clara para os condutores? (Bom =3, Adequado =2, Pobre =1, Não =0)
A166: 163 | B166: Are sub-areas of floors clearly identified for drivers? (Good =3, Adequate =2, Poor =1, No =0) | C166: 163 | D166: Are sub-areas of floors clearly identified for drivers? (Good =3, Adequate =2, Poor =1, No =0) | E166: Zijn delen per parkeerlaag duidelijk gemarkeerd en herkenbaar? • goed =3, acceptabel =2, matig =1, nee =0 | F166: Les sous sections par étages sont-elles clairement identifiables pour le conducteur? (Bon=3, Adéquat =2, Faible=1, Non =0) | G166: Sind einzelne Bereiche für den Fahrer klar und deutlich gekennzeichnet? (gut =3, befriedigend =2, schlecht =1, gar nicht =0) | H166: Los sectores de cada planta están claramente identificados para los conductores? (Bien =3, Correcto =2, Mal =1, No =0) | I166: As sub-áreas dos pisos estão identificadas de forma clara para os condutores? (Bom =3, Adequado =2, Pobre =1, Não =0)
A167: 164 | B167: Are fire escapes and escape routes clearly marked • Clear from all locations = 3 • most locations= 2 • some locations=1 • No marking of escape routes=0) | C167: 164 | D167: Are fire escapes and escape routes clearly marked • Clear from all locations = 3 • most locations= 2 • some locations=1 • No marking of escape routes=0) | E167: Zijn nooduitgangen en vluchtroutes duidelijk gemarkeerd? • Zichtbaar vanaf elke plek = 3 • Zichtbaar vanaf de meeste plekken = 2 • Zichtbaar vanaf sommige plekken =1 • Geen aanduiding van vluchtroutes = 0 | F167: Les sorties de secours et les chemins d’évacuation sont-ils clairement identifiables (Clairement depuis tous les endroits= 3, depuis la plupart des endroits= 2, depuis certains endroits=1, Pas de signalisation des chemins d’évacuation=0) | G167: Sind die Notausgänge und Rettungswege klar und deutlich gekennzeichnet? (an allen Standorten = 3, an den meisten Standorten = 2, nur an einigen Standorten = 1, keine Kennzeichnung der Rettungswege = 0) | H167: Las salidas de emergencia en caso de incendio están debidamente señalizadas • Claramente desde cualquier ubicación = 3 • La mayor parte de ubicaciones = 2 • Algunas ubicaciones =1 • No están señalizadas = 0) | I167: As saídas de emergência e os caminhos de fuga estão claramente marcados • A partir de todos os locais = 3 • maioria dos locais= 2 • alguns locais=1 • Sem identificação dos caminhos de fuga=0)
A168: 165 | B168: Are floor levels clearly marked? (good =3, adequate=2, poor=1, none =0. Single level car parks = 3) | C168: 165 | D168: Are floor levels clearly marked? (good =3, adequate=2, poor=1, none =0. Single level car parks = 3) | E168: Zijn verdiepingen duidelijk aangegeven? • goed =3, acceptabel=2 • matig=1, geen =0 • Garage met één verdieping = 3 | F168: Les étages sont-ils clairement marqués? (bon =3, adéquat=2, faible=1, absent=0. Parking d’un seul niveau = 3) | G168: Sind die einzelnen Parkebenen klar und deutlich gekennzeichnet? (gut = 3, befriedigend = 2, schlecht = 1, gar nicht = 0., unzutreffend, da nur 1 Geschoss = 3) | H168: Las plantas están claramente señalizadas? (bien =3, correcto=2, mal=1, ninguna señalización =0. Aparcamiento de una única planta = 3) | I168: Os nívies dos pisos estão marcados de forma clara? (bom =3, adequado=2, pobre=1, nenhum =0. Parque com um único piso = 3)
A169: 166 | B169: Is there additional signing or prompts to orient the pedestrian on the parking deck (good =2, some =1, none = 0) | C169: 166 | D169: Is there additional signing or prompts to orient the pedestrian on the parking deck (good =2, some =1, none = 0) | E169: Is er extra bebording of markering om voetgangers op de parkeervloer te geleiden? • goed =2, hier en daar =1, geen = 0 | F169: Y a-t-il une identification ou un marquage spécifique sur le sol pour aider les piétons à trouver leur chemin ? (Bon=2, Par-çi par-là=1, absent= 0) | G169: Gibt es zusätzliche Schilder oder Anzeigen zur Verbesserung der Orientierung der Fußgänger? (gut = 2, einige = 1, keine = 0) | H169: Existe señalización adicional para orientar al peatón (buena =2, alguna =1, ninguna = 0) | I169: Existe sinalização adicional ou instruções para orientar os peões no piso de estacionamento (bom =2, alguns =1, nenhum = 0)
A170: 167 | B170: Are parking spaces individually numbered (Numbered including floor identification =2, Just numbers =1, none =0) | C170: 167 | D170: Are parking spaces individually numbered (Numbered including floor identification =2, Just numbers =1, none =0) | E170: Zijn parkeervakken voorzien van identificatie? • Nummering incl vloeraanduiding=2 • Alleen nummering=1 • Geen=0 | F170: Les aires de stationnement sont-elles numérotées individuellement (Numérotation reprenant une indication d’étage=2, Juste une numérotation=1, absent =0) | G170: Sind die Stellplätze einzeln nummeriert? (nummeriert mit Geschoßbezeichnung = 2, nur nummeriert = 1, nicht = 0) | H170: Als plazas están numeradas individualmente (Numeración incluye identificación de planta =2, Sólo números =1, ninguna =0) | I170: Os lugares de estacionamento estão individualmente numerados (Numerados, incluindo identificação no chão =2, Apenas número =1, nada =0)
A171: 168 | B171: Use of colours for way finding (Yes= 1, No= 0) | C171: 168 | D171: Use of colours for way finding (Yes= 1, No= 0) | E171: Gebruik van kleuren voor oriëntatie • Ja= 1, Nee= 0 | F171: Utilisation de couleurs pour trouver son chemin (Oui= 1, Non= 0) | G171: Verwendung von Farben zur Orientierung (ja = 1, nein = 0) | H171: Uso de colores para orientación (Sí= 1, No= 0) | I171: Utilização de cores para localização (Sim= 1, Não= 0)
A172: 169 | B172: Guidance sign posting for cars on roads to car park | C172: 169 | D172: Guidance sign posting for cars on roads to car park | E172: Bewegwijzering naar de garage voor auto’s op weg naar de garage | F172: Signalisation en rue à l’attention des conducteurs pour trouver le chemin vers le parking | G172: Parkleitsystem | H172: Señalización de orientación hacia al aparcamiento en las proximidades del mismo | I172: Há sinalização a indicar a entrada do parque de estacionamento nas estradas circundantes ao mesmo?
A173: 170 | B173: Static sign system only (Yes = 1, No = 0) | C173: 170 | D173: Static sign system only (Yes = 1, No = 0) | E173: Alleen statische borden • Ja = 1, Nee = 0 | F173: Uniquement signalisation statique (Oui= 1, Non = 0) | G173: Statisch (ja = 1, nein = 0) | H173: Únicamente señalización estática (Sí = 1, No = 0) | I173: Somente sinais estáticos (Sim = 1, Não = 0)
A174: 171 | B174: Dynamic sign system additionally (Yes = 1, No = 0) | C174: 171 | D174: Dynamic sign system additionally (Yes = 1, No = 0) | E174: Dynamische aanduiding vol/vrij of plaatsen, extra: • Ja = 1, Nee = 0 | F174: Additionnellement signalisation dynamique (Oui= 1, Non = 0) | G174: Dynamisch (ja = 1, nein = 0) | H174: Señalización dinámica adicional (Sí = 1, No = 0) | I174: Adicionalmente sinalização dinâmica (Sim = 1, Não = 0)
A175: 172 | B175: Illuminated signage at car park entrance | C175: 172 | D175: Illuminated signage at car park entrance | E175: Verlichte aanduiding bij de inrit: | F175: Signalisation lumineuse à l’entrée du parking | G175: Beleuchtete Anzeige an der Einfahrt | H175: Señalización luminosa a la entrada del aparcamiento | I175: Sinalização iluminada na entrada do parque de estacionamento
A176: 173 | B176: Signal green arrow, red cross for direction (Yes = 1, No = 0) | C176: 173 | D176: Signal green arrow, red cross for direction (Yes = 1, No = 0) | E176: Signaal kruis/pijl aanduiding rijrichting • Ja = 1, Nee = 0 | F176: Signalisation directionnelle fléchée (flèche verte, croix rouge) (Oui = 1, Non = 0) | G176: Grüner Pfeil/rotes Kreuz-Anzeige (ja = 1, nein = 0) | H176: Señalización direccional flecha verde, cruz roja (Sí = 1, No = 0) | I176: Sinal direcional (seta verde, cruz vermelha) (Sim = 1, Não = 0)
A177: 174 | B177: Signal full/free (Yes = 1, No = 0) | C177: 174 | D177: Signal full/free (Yes = 1, No = 0) | E177: Signaal vol/vrij • Ja = 1, Nee = 0 | F177: Signalisation Libre/Complet (Oui = 1, Non = 0) | G177: Frei/Besetzt-Anzeige (ja = 1, nein = 0) | H177: Señal libre/completo (Sí = 1, No = 0) | I177: Sinal completo/livre (Sim = 1, Não = 0)
A178: 175 | B178: Signage at pedestrian entrance (Yes = 1, No = 0) | C178: 175 | D178: Signage at pedestrian entrance (Yes = 1, No = 0) | E178: Aanduiding voetgangerstoegang • Ja = 1, Nee = 0 | F178: Signalisation vers les entrées piétons (Oui = 1, Non = 0) | G178: Anzeige an den Fußgängerzugängen (ja = 1, nein = 0) | H178: Señalización de accesos peatonales (Sí = 1, No = 0) | I178: Sinalização na entrada pedonal (Sim = 1, Não = 0)
A179: 176 | B179: Comfort and Miscellaneous | C179: 176 | D179: Comfort and Miscellaneous | E179: Comfort en diversen | F179: Confort et Divers | G179: Komfort und verschiedenes | H179: Comfort y varios | I179: Conforto e Diversos
A180: 177 | B180: Notice-board at pedestrian entrance/exit showing: | C180: 177 | D180: Notice-board at pedestrian entrance/exit showing: | E180: Informatiebord bij voetgangerstoegang met: | F180: Panneau d’affichage aux entrées/sorties piétons indiquant: | G180: Hinweisschild an den Fußgängerzugängen bezüglich : | H180: Panel en los accesos peatonales indicando: | I180: Placas informativas nas entradas/saídas pedonais:
A181: 178 | B181: Access hours normal/special (yes = 1, no = 0) | C181: 178 | D181: Access hours normal/special (yes = 1, no = 0) | E181: Openingstijden normale en bijzondere dagen • Ja = 1, Nee = 0 | F181: Heures d’ouverture normales/spécifiques (oui = 1, non = 0) | G181: Öffnungszeiten übliche/besondere (ja = 1, nein = 0) | H181: Horas de apertura normales/específicas (sí = 1, no = 0) | I181: Horário de funcionamento normal/especial (sim = 1, não = 0)
A182: 179 | B182: Readable & understandable tariff board (yes = 1, no = 0) | C182: 179 | D182: Readable & understandable tariff board (yes = 1, no = 0) | E182: Duidelijke tarieftabel • Ja = 1, Nee = 0 | F182: Affichage du tarif lisible et compréhensible (Oui = 1, non = 0) | G182: Lesbare und verständliche Anzeige der Parktarife (ja = 1, nein = 0) | H182: Cuadro de tariifas legible y fácil de entender (sí = 1, no = 0) | I182: Tarifário legível e compreensível (sim = 1, não = 0)
A183: 180 | B183: Operators terms and conditions (yes = 1, no = 0) | C183: 180 | D183: Operators terms and conditions (yes = 1, no = 0) | E183: Algemene Voorwaarden Exploitant • Ja = 1, Nee = 0 | F183: Règlement intérieur et conditions (Oui = 1, non = 0) | G183: Einstellbedingungen (ja = 1, nein = 0) | H183: Términos y condiciones (sí = 1, no = 0) | I183: Termos e Condições do Operador (sim = 1, não = 0)
A184: =C184 -> 181 | B184: Payment options (pay at exit/pay at pay station): | C184: 181 | D184: Payment options (pay at exit/pay at pay station): | E184: Betaalmogelijkheden (automaat en uitrit): | F184: Moyens de paiement (paiement à la sortie/paiement à la caisse automatique): | G184: Bezahlmöglichkeiten (Zahlung am Ein-/Ausgang/am Kassenautomat): | H184: Opciones de pago (pago a la salida/pago manual): | I184: Opções de pagamento (pagamento na saída/pagamento na caixa de pagamento):
A185: 182 | B185: Accepts coins? (yes =1, no =0) | C185: 182 | D185: Accepts coins? (yes =1, no =0) | E185: Cash munten: Ja =1, nee =0 | F185: Monnaie? (oui =1, non =0) | G185: Münzzahlung? (ja = 1, nein = 0) | H185: Se aceptan monedas? (sí =1, no =0) | I185: Aceita moedas? (sim =1, não =0)
A186: 183 | B186: Change given? (yes =1, no =0) | C186: 183 | D186: Change given? (yes =1, no =0) | E186: Wisselgeld teruggave: Ja =1, nee =0 | F186: Change rendu? (oui =1, non =0) | G186: Wechselgeld? (ja = 1, nein = 0) | H186: Da cambio? (sí =1, no =0) | I186: Devolução de troco? (sim =1, não =0)
A187: 184 | B187: Accepts banknotes? (yes =1, no =0) | C187: 184 | D187: Accepts banknotes? (yes =1, no =0) | E187: Cash bankbiljetten: Ja =1, nee =0 | F187: Billets de banque? (oui=1, non =0) | G187: Banknoten? (ja = 1, nein = 0) | H187: Se aceptan billetes? (sí =1, no =0) | I187: Aceita notas? (sim =1, não =0)
A188: 185 | B188: Accepts bank cards? (yes =1, no =0) | C188: 185 | D188: Accepts bank cards? (yes =1, no =0) | E188: Bank/kredietkaarten: Ja =1, nee =0 | F188: Cartes de crédit? (oui =1, non =0) | G188: Kreditkarten? (ja = 1, nein = 0) | H188: Se aceptan tarjetas de crédito? (sí =1, no =0) | I188: Aceita cartões bancários? (sim =1, não =0)
A189: 186 | B189: Payment by smart phone? (yes =1, no =0) | C189: 186 | D189: Payment by smart phone? (yes =1, no =0) | E189: Betalen met mobiele telefoon: ja=1, nee=0 | F189: Par téléphone portable? (oui =1, non =0) | G189: Zahlung per Mobiltelefon? (ja = 1, nein = 0) | H189: Pago a través de smart phone? (sí =1, no =0) | I189: Pagamento por telemóvel? (sim =1, não =0)
A190: 187 | B190: Payment by card/phone at exit? (yes =1, no =0) | C190: 187 | D190: Payment by card/phone at exit? (yes =1, no =0) | E190: Betalen met bankkaart of mobiele telefoon aan de uitrit: ja=1, nee=0 | F190: Par carte/gsm à la sortie? (oui =1, non =0) | G190: Karten-/Handyzahlung am Ausgang? (ja = 1, nein = 0) | H190: Pago a través de tarjeta/teléfono a la salida? (sí =1, no =0) | I190: Pagamento por cartão/telefone na saída? (sim =1, não =0)
A191: 188 | B191: ID & payment by LPR? (yes =1, no =0) | C191: 188 | D191: ID & payment by LPR? (yes =1, no =0) | E191: Identificatie en betalen op basis van kenteken: ja=1, nee=0 | F191: Identification et paiement sur base plaque immatriculation? (oui =1, non =0) | G191: Identifikation und Zahlung per Kennzeichenerkennung? (ja = 1, nein = 0) | H191: Identificación y pago a través de la matrícula? (sí =1, no =0) | I191: Identificação e pagamento por reconhecimento de matrícula? (sim =1, não =0)
A192: 189 | B192: Accepts other cards: How many? (1 point per additional option up to 3) | C192: 189 | D192: Accepts other cards: How many? (1 point per additional option up to 3) | E192: Andere betaalmogelijkheden: • 1 punt per extra mogelijkheid tot max 3 | F192: Acceptation d’autres cartes: Combien? (1 point par moyen supplémentaire jusqu’à 3 pts.) | G192: Akzeptanz anderer Karten: Wie viele? (1 Punkt je zusätzlicher Option bis 3 Punkte) | H192: Se aceptan otras tarjetas: cuántas? (1 punto adicional por cada una hasta 3) | I192: Aceita outros cartões: Quantos? (1 ponto por opção adicional até 3)
A193: 190 | B193: Payment at staffed desk: (yes = 1, no = 0) | C193: 190 | D193: Payment at staffed desk: (yes = 1, no = 0) | E193: Betaling aan bemande kassa: • Ja = 1, Nee = 0 | F193: Au guichet du préposé: (oui = 1, non = 0) | G193: Zahlung an besetzter Kasse: (ja = 1, nein = 0) | H193: Pago en el centro de control: (sí = 1, no = 0) | I193: Pagamento na receção com funcionário: (sim = 1, não = 0)
A194: 191 | B194: Is this a Pay and Display Car Park? | C194: 191 | D194: Is this a Pay and Display Car Park? | E194: Pay and Display/ticketautomaten? | F194: Est-ce un parking sans barrières ( paiement à une borne) ? | G194: Handelt es sich um ein Parkhaus ohne Schranken? (mit Parkscheinautomaten)? | H194: Se trata de un aparcamiento sin barreras (pago en parquímetros)? | I194: É um Parque de Estacionamento sem barreiras?
A195: 192 | B195: Number of Pay points for Barrier controlled car parks: (One pay station = 0, More than one =1, One at each pedestrian entrance, excluding fire escapes =2, More than one at each pedestrian entrance =3) | C195: 192 | D195: Number of Pay points for Barrier controlled car parks: (One pay station = 0, More than one =1, One at each pedestrian entrance, excluding fire escapes =2, More than one at each pedestrian entrance =3) | E195: Aantal betaalpunten bij garages met slagbomen • Eén = 0, Meer dan één =1 • Eén bij iedere voetgangerstoegang =2 • Meer dan gemiddeld één per voetgangerstoegang =3 | F195: Nombre de bornes de paiement pour un parking équipés de barrières: (Une borne de paiement = 0, Plus que une =1, Une à chaque entrée piétons excepté les portes de secours=2, Une à chaque entrée piétons =3) | G195: Anzahl der Bezahlstationen für beschrankte Parkhäuser: (eine = 0, mehr als eine = 1, eine an jedem Fußgängerzugang (außer Notausgänge) = 2, eine an jedem Fußgängerzugang = 3) | H195: Número de puntos de pago en aparcamientos controlados mediante barreras: (Un punto de pago = 0, Más de uno =1, Uno en cada acceso peatonal, excluyendo salidas de emergencia =2, Más de uno en cada acceso peatonal =3) | I195: Número de pontos de Pagamento por Barreira controlada no parque de estacionamento: (Um ponto de pagamento = 0, Mais do que um = 1, um em cada entrada pedonal, excluindo escadas de incêndio = 2, mais do que um em cada entrada pedonal = 3)
A196: 193 | B196: =IF(ISBLANK(VLOOKUP(A196,$C$4:$V$9989,1+$A$1)),D196,VLOOKUP(A196,$C$4:$V$9989,1+$A$1)) -> Number of Pay points for Pay and Display Car Parks (One =0, < 1 for every 50 spaces =2, >1 for every 50 spaces =3) | C196: 193 | D196: Number of Pay points for Pay and Display Car Parks (One =0, < 1 for every 50 spaces =2, >1 for every 50 spaces =3) | E196: Pay and Display/ticketautomaten • Eén=0, • <1/50 plaatsen=2, • >1/50 plaatsen=3 | F196: Nombre de bornes de paiement pour un parking sans barrières (Une =0, < 1 par 50 emplacements =2, >1 par 50 emplacements=3) | G196: Anzahl der Parkscheinautomaten für unbeschrankte Parkhäuser: (einer = 0, weniger als einer pro 50 Stellplätze = 1, mehr als einer pro 50 Stellplätze = 3) | H196: Número de parquímetros en aparcamientos sin barreras (Uno =0, < 1 cada 50 plazas =2, >1 cada 50 plazas =3) | I196: Número de pontos de Pagamento para parques de estacionamento sem barreiras (Um = 0, <1 para cada 50 lugares = 2,> 1 para cada 50 lugares = 3)
A197: 194 | B197: Customer toilets: | C197: 194 | D197: Customer toilets: | E197: Toilet in de garage | F197: Toilettes publiques: | G197: Öffentliche Toiletten: | H197: Aseos públicos: | I197: WC para clientes:
A198: 195 | B198: Exist? (yes= 2, no= 0) | C198: 195 | D198: Exist? (yes= 2, no= 0) | E198: • Ja= 2, nee= 0 | F198: Y en a-t-il? (oui= 2, non= 0) | G198: Vorhanden? (ja = 2, nein = 0) | H198: Existen? (sí= 2, no= 0) | I198: Existem? (sim= 2, não= 0)
A199: 196 | B199: Disabled toilet? (yes=1, no= 0) | C199: 196 | D199: Disabled toilet? (yes=1, no= 0) | E199: Mindervaliden toilet: • Ja=1, nee= 0 | F199: Toilettes spécifiques pour handicapés? (oui=1, non= 0) | G199: Behindertentoilette? (ja = 1, nein = 0) | H199: Aseo para minusválidos? (sí=1, no= 0) | I199: WC para deficientes? (sim=1, não= 0)
A200: 197 | B200: unisex = 0, male/female separated = 1 | C200: 197 | D200: unisex = 0, male/female separated = 1 | E200: • Één toilet = 0, man/vrouw apart toilet = 1 | F200: Toilettes uniques= 0, Hommes/femmes séparés= 1 | G200: Toiletten unisex= 0, Frauen/Männer getrennt = 1 | H200: unisex = 0, separación hombres/mujeres = 1 | I200: unisexo = 0, masculino/feminino separados = 1
... 73 more rows

Sheet Options (hidden)
A1: ='Languages Available'!B1 -> 1 | B1: Language Selected: | D1: ='General Info'!E3 -> English
D2: 1 | E2: 2 | F2: 3 | G2: 4 | H2: 5 | I2: 6
B3: Active Language | D3: =VLOOKUP(D2,'Languages Available'!$A$3:$B$23,2) -> English | E3: =VLOOKUP(E2,'Languages Available'!$A$3:$B$23,2) -> Dutch | F3: =VLOOKUP(F2,'Languages Available'!$A$3:$B$23,2) -> Français | G3: =VLOOKUP(G2,'Languages Available'!$A$3:$B$23,2) -> Deutsch | H3: =VLOOKUP(H2,'Languages Available'!$A$3:$B$23,2) -> Spanish | I3: =VLOOKUP(I2,'Languages Available'!$A$3:$B$23,2) -> Portuguese
A4: =C4 -> 1 | B4: =IF(ISBLANK(VLOOKUP(A4,$C$4:$V$10001,1+$A$1)),D4,VLOOKUP(A4,$C$4:$V$10001,1+$A$1)) -> Morning | C4: 1 | D4: Morning | E4: 's morgens | F4: Matin | G4: Morgen | H4: Mañana | I4: Manhã
A5: =C5 -> 2 | B5: =IF(ISBLANK(VLOOKUP(A5,$C$4:$V$10001,1+$A$1)),D5,VLOOKUP(A5,$C$4:$V$10001,1+$A$1)) -> Afternoon | C5: =+C4+1 -> 2 | D5: Afternoon | E5: 's middags | F5: Après-midi | G5: Nachmittag | H5: Tarde | I5: Tarde
A6: 3 | B6: =IF(ISBLANK(VLOOKUP(A6,$C$4:$V$10001,1+$A$1)),D6,VLOOKUP(A6,$C$4:$V$10001,1+$A$1)) -> Evening | C6: =+C5+1 -> 3 | D6: Evening | E6: 's avonds | F6: Soir | G6: Abend | H6: Noche | I6: Noite
A7: 4 | C7: 4
A8: 5 | B8: =IF(ISBLANK(VLOOKUP(A8,$C$4:$V$10001,1+$A$1)),D8,VLOOKUP(A8,$C$4:$V$10001,1+$A$1)) -> Sunny | C8: 5 | D8: Sunny | E8: zonnig | F8: Ensoleillé | G8: sonnig | H8: Soleado | I8: Sol
A9: 6 | B9: =IF(ISBLANK(VLOOKUP(A9,$C$4:$V$10001,1+$A$1)),D9,VLOOKUP(A9,$C$4:$V$10001,1+$A$1)) -> Cloudy | C9: 6 | D9: Cloudy | E9: bewolkt | F9: Nuageux | G9: bewölkt | H9: Nuvoso | I9: Nublado
A10: 7 | B10: =IF(ISBLANK(VLOOKUP(A10,$C$4:$V$10001,1+$A$1)),D10,VLOOKUP(A10,$C$4:$V$10001,1+$A$1)) -> Rain | C10: 7 | D10: Rain | E10: regen | F10: Pluvieux | G10: Regen | H10: Lluvioso | I10: Chuva
A11: 8 | B11: =IF(ISBLANK(VLOOKUP(A11,$C$4:$V$10001,1+$A$1)),D11,VLOOKUP(A11,$C$4:$V$10001,1+$A$1)) -> Dusk | C11: 8 | D11: Dusk | E11: schemer | F11: Crépuscule | G11: Dämmerung | H11: Oscuro | I11: Escuro
A12: 9 | B12: =IF(ISBLANK(VLOOKUP(A12,$C$4:$V$10001,1+$A$1)),D12,VLOOKUP(A12,$C$4:$V$10001,1+$A$1)) -> Night | C12: 9 | D12: Night | E12: donker | F12: Nuit | G12: Nacht | H12: Nocturno | I12: Noite
A13: 10 | C13: 10
A14: 11 | B14: =IF(ISBLANK(VLOOKUP(A14,$C$4:$V$10001,1+$A$1)),D14,VLOOKUP(A14,$C$4:$V$10001,1+$A$1)) -> > 75% | C14: 11 | D14: > 75% | E14: > 75% | F14: > 75% | G14: > 75% | H14: > 75% | I14: > 75%
A15: 12 | B15: =IF(ISBLANK(VLOOKUP(A15,$C$4:$V$10001,1+$A$1)),D15,VLOOKUP(A15,$C$4:$V$10001,1+$A$1)) -> 50% - 75% | C15: 12 | D15: 50% - 75% | E15: 50% - 75% | F15: 50% - 75% | G15: 50% - 75% | H15: 50% - 75% | I15: 50% - 75%
A16: 13 | B16: =IF(ISBLANK(VLOOKUP(A16,$C$4:$V$10001,1+$A$1)),D16,VLOOKUP(A16,$C$4:$V$10001,1+$A$1)) -> about 50% | C16: 13 | D16: about 50% | E16: circa 50% | F16: Environ 50% | G16: etwa 50% | H16: alrededor 50% | I16: Cerca de 50%
A17: 14 | B17: =IF(ISBLANK(VLOOKUP(A17,$C$4:$V$10001,1+$A$1)),D17,VLOOKUP(A17,$C$4:$V$10001,1+$A$1)) -> 25% - 50% | C17: 14 | D17: 25% - 50% | E17: 25% - 50% | F17: 25% - 50% | G17: 25% - 50% | H17: 25% - 50% | I17: 25% - 50%
A18: 15 | B18: =IF(ISBLANK(VLOOKUP(A18,$C$4:$V$10001,1+$A$1)),D18,VLOOKUP(A18,$C$4:$V$10001,1+$A$1)) -> < 25% | C18: 15 | D18: < 25% | E18: < 25% | F18: < 25% | G18: < 25% | H18: < 25% | I18: < 25%
A19: 16 | C19: 16
A20: 17 | B20: =IF(ISBLANK(VLOOKUP(A20,$C$4:$V$10001,1+$A$1)),D20,VLOOKUP(A20,$C$4:$V$10001,1+$A$1)) -> OK | C20: 17 | D20: OK | E20: Accoord | F20: Accepté | G20: OK | H20: OK | I20: OK
A21: 18 | B21: =IF(ISBLANK(VLOOKUP(A21,$C$4:$V$10001,1+$A$1)),D21,VLOOKUP(A21,$C$4:$V$10001,1+$A$1)) -> Fail | C21: 18 | D21: Fail | E21: Niet accoord | F21: Refusé | G21: Mangel | H21: Fallo | I21: Falha
A22: 19 | C22: 19
A23: 20 | B23: =IF(ISBLANK(VLOOKUP(A23,$C$4:$V$10001,1+$A$1)),D23,VLOOKUP(A23,$C$4:$V$10001,1+$A$1)) -> Yes | C23: 20 | D23: Yes | E23: Ja | F23: Oui | G23: Ja | H23: Sí | I23: Sim
A24: 21 | B24: No | C24: 21 | D24: No | E24: Nee | F24: Non | G24: Nein | H24: No | I24: Não
A25: 22 | B25: Irrelevant | C25: 22 | D25: Irrelevant | E25: Irrelevant | F25: Sans rapport | G25: unzutreffend | H25: No aplica | I25: Irrelevante
A26: 23 | B26: Clear signing | C26: 23 | D26: Clear signing | E26: Duidelijke bebording | F26: Signalisation claire | G26: verständliche Beschilderung | H26: Señalización clara | I26: Sinalização clara
A27: 24 | B27: Incomplete signing | C27: 24 | D27: Incomplete signing | E27: Incomplete bebording | F27: Signalisation incomplète | G27: unvollständige Beschilderung | H27: Señalización incompleta | I27: Sinalização incompleta
A28: 25 | B28: No signing | C28: 25 | D28: No signing | E28: Geen bebording | F28: Pas de signalisation | G28: keine Beschilderung | H28: No hay señalización | I28: Sem sinalização
A29: 26 | C29: 26
A30: 27 | B30: =IF(ISBLANK(VLOOKUP(A30,$C$4:$V$10001,1+$A$1)),D30,VLOOKUP(A30,$C$4:$V$10001,1+$A$1)) -> 0%-2% | C30: 27 | D30: 0%-2% | E30: 0%-2% | F30: 0% - 2 % | G30: 0%-2% | H30: 0%-2% | I30: 0%-2%
A31: 28 | B31: =IF(ISBLANK(VLOOKUP(A31,$C$4:$V$10001,1+$A$1)),D31,VLOOKUP(A31,$C$4:$V$10001,1+$A$1)) -> 2%-5% | C31: 28 | D31: 2%-5% | E31: 2%-5% | F31: 2% - 5 % | G31: 2%-5% | H31: 2%-5% | I31: 2%-5%
A32: 29 | B32: =IF(ISBLANK(VLOOKUP(A32,$C$4:$V$10001,1+$A$1)),D32,VLOOKUP(A32,$C$4:$V$10001,1+$A$1)) -> Above 5% | C32: 29 | D32: Above 5% | E32: > 5% | F32: Supérieur à 5% | G32: über 5% | H32: Más de 5% | I32: Acima de 5%
A33: 30 | C33: 30
A34: 31 | B34: =IF(ISBLANK(VLOOKUP(A34,$C$4:$V$10001,1+$A$1)),D34,VLOOKUP(A34,$C$4:$V$10001,1+$A$1)) -> Yes | C34: 31 | D34: Yes | E34: Ja | F34: Oui | G34: Ja | H34: Sí | I34: Sim
A35: 32 | B35: =IF(ISBLANK(VLOOKUP(A35,$C$4:$V$10001,1+$A$1)),D35,VLOOKUP(A35,$C$4:$V$10001,1+$A$1)) -> No protection | C35: 32 | D35: No protection | E35: Geen bescherming voor wielen | F35: Pas de protection | G35: kein Schutz | H35: Sin protección | I35: Sem proteção
A36: 33 | B36: =IF(ISBLANK(VLOOKUP(A36,$C$4:$V$10001,1+$A$1)),D36,VLOOKUP(A36,$C$4:$V$10001,1+$A$1)) -> No kerbs in entry/exit area | C36: 33 | D36: No kerbs in entry/exit area | E36: Geen trottoirbanden bij in/uitrit | F36: Pas de courbes dans la zone entrée/sortie | G36: Keine Schrammborde im Ein-/Ausfahrtsbereich | H36: Sin bordillos en zonas de entrada/salida | I36: Não há lancil junto às entrada/saída
A37: 34 | C37: 34
A38: 35 | B38: =IF(ISBLANK(VLOOKUP(A38,$C$4:$V$10001,1+$A$1)),D38,VLOOKUP(A38,$C$4:$V$10001,1+$A$1)) -> Anti slip | C38: 35 | D38: Anti slip | E38: Anti slip | F38: Anti-dérapant | G38: rutschhemmend | H38: Antideslizante | I38: Anti deslizamento
A39: 36 | B39: =IF(ISBLANK(VLOOKUP(A39,$C$4:$V$10001,1+$A$1)),D39,VLOOKUP(A39,$C$4:$V$10001,1+$A$1)) -> Slippery when wet | C39: 36 | D39: Slippery when wet | E39: Glad bij nat wegdek | F39: Glissant si mouillé | G39: rutschig wenn naß | H39: Deslizante con piso húmedo | I39: Escorregadio quando molhado
A40: 37 | C40: 37
A41: 38 | B41: =IF(ISBLANK(VLOOKUP(A41,$C$4:$V$10001,1+$A$1)),D41,VLOOKUP(A41,$C$4:$V$10001,1+$A$1)) -> < 3 m | C41: 38 | D41: < 3 m | E41: < 3 m | F41: < 3 m | G41: < 3 m | H41: < 3 m | I41: < 3 m
A42: 39 | B42: =IF(ISBLANK(VLOOKUP(A42,$C$4:$V$10001,1+$A$1)),D42,VLOOKUP(A42,$C$4:$V$10001,1+$A$1)) -> 3m – 3.3m | C42: 39 | D42: 3m – 3.3m | E42: 3m - 3.3m | F42: 3m – 3.3m | G42: 3m - 3.3m | H42: 3m – 3.3m | I42: 3m – 3.3m
A43: 40 | B43: =IF(ISBLANK(VLOOKUP(A43,$C$4:$V$10001,1+$A$1)),D43,VLOOKUP(A43,$C$4:$V$10001,1+$A$1)) -> > 3.3m | C43: 40 | D43: > 3.3m | E43: > 3.3m | F43: > 3.3m | G43: > 3.3m | H43: > 3.3m | I43: > 3.3m
A44: 41 | C44: 41
A45: 42 | B45: =IF(ISBLANK(VLOOKUP(A45,$C$4:$V$10001,1+$A$1)),D45,VLOOKUP(A45,$C$4:$V$10001,1+$A$1)) -> Pillar does not intrude into the parking area | C45: 42 | D45: Pillar does not intrude into the parking area | E45: Kolom staat compleet buiten het parkeervak | F45: Pilier n’envahissant pas la surface de stationnement | G45: Stütze beeinträchtigt den Stellplatz nicht | H45: Pilar no invade la zona de estacionamiento | I45: Pilar não invade a área de estacionamento
A46: 43 | B46: =IF(ISBLANK(VLOOKUP(A46,$C$4:$V$10001,1+$A$1)),D46,VLOOKUP(A46,$C$4:$V$10001,1+$A$1)) -> Pillar at beginning of stall | C46: 43 | D46: Pillar at beginning of stall | E46: Kolom aan het begin van het parkeervak | F46: Pilier en début d’aire de stationnement | G46: Stütze am Beginn des Stellplatzes | H46: Pilar al principio de la plaza | I46: Pilar no início do lugar
A47: 44 | B47: =IF(ISBLANK(VLOOKUP(A47,$C$4:$V$10001,1+$A$1)),D47,VLOOKUP(A47,$C$4:$V$10001,1+$A$1)) -> Pillar next to car door | C47: 44 | D47: Pillar next to car door | E47: Kolom naast het autoportier | F47: Pilier à hauteur des portières de véhicule | G47: Stütze nahe der Fahrzeugtür | H47: Pilar junto a la puerta del vehículo | I47: Pilar ao lado da porta do veículo
A48: 45 | B48: =IF(ISBLANK(VLOOKUP(A48,$C$4:$V$10001,1+$A$1)),D48,VLOOKUP(A48,$C$4:$V$10001,1+$A$1)) -> Pillar at back of stall but intrudes into the parking area | C48: 45 | D48: Pillar at back of stall but intrudes into the parking area | E48: Kolom aan het eind van het parkeervak, maar beinvloedt het parkeren | F48: Pilier en fond de l’aire de stationnement mais mais déborde sur celle-ci | G48: Stütze am Stellplatzende aber beeinträchtigt den Stellplatz | H48: Pilar en el fondo de plaza pero invade la zona de estacionamiento | I48: Pilar recuado, mas invade a área de estacionamento
A49: 46 | C49: 46
A50: 47 | B50: =IF(ISBLANK(VLOOKUP(A50,$C$4:$V$10001,1+$A$1)),D50,VLOOKUP(A50,$C$4:$V$10001,1+$A$1)) -> Good | C50: 47 | D50: Good | E50: Goed | F50: Bon | G50: Gut | H50: Buena | I50: Bom
A51: 48 | B51: =IF(ISBLANK(VLOOKUP(A51,$C$4:$V$10001,1+$A$1)),D51,VLOOKUP(A51,$C$4:$V$10001,1+$A$1)) -> Medium | C51: 48 | D51: Medium | E51: Acceptabel | F51: Moyen | G51: Mittel | H51: Media | I51: Médio
A52: 49 | B52: =IF(ISBLANK(VLOOKUP(A52,$C$4:$V$10001,1+$A$1)),D52,VLOOKUP(A52,$C$4:$V$10001,1+$A$1)) -> Bad | C52: 49 | D52: Bad | E52: Slecht | F52: Mauvais | G52: Schlecht | H52: Mala | I52: Mau
A53: 50 | C53: 50
A54: 51 | B54: =IF(ISBLANK(VLOOKUP(A54,$C$4:$V$10001,1+$A$1)),D54,VLOOKUP(A54,$C$4:$V$10001,1+$A$1)) -> Angle 76°-90° | C54: 51 | D54: Angle 76°-90° | E54: Parkeerhoek 76º-90º | F54: Angle 76°-90° | G54: Winkel 76°-90° | H54: Ángulo 76°-90° | I54: Ângulo 76°-90°
A55: 52 | B55: =IF(ISBLANK(VLOOKUP(A55,$C$4:$V$10001,1+$A$1)),D55,VLOOKUP(A55,$C$4:$V$10001,1+$A$1)) -> Angle 45°-75° | C55: 52 | D55: Angle 45°-75° | E55: Parkeerhoek 45º-75º | F55: Angle 45°-75° | G55: Winkel 45°-75° | H55: Ángulo 45°-75° | I55: Ângulo 45°-75°
A56: 53 | C56: 53
A57: 54 | B57: =IF(ISBLANK(VLOOKUP(A57,$C$4:$V$10001,1+$A$1)),D57,VLOOKUP(A57,$C$4:$V$10001,1+$A$1)) -> 2.25 m - 2.30 m | C57: 54 | D57: 2.25 m - 2.30 m | E57: 2.25 m - 2.30 m | F57: 2.25 m - 2.30 m | G57: 2.25 m - 2.30 m | H57: 2.25 m - 2.30 m | I57: 2.25 m - 2.30 m
A58: 55 | B58: 2.30 m - 2.35 m | C58: 55 | D58: 2.30 m - 2.35 m | E58: 2.30 m - 2.35 m | F58: 2.30 m - 2.35 m | G58: 2.30 m - 2.35 m | H58: 2.30 m - 2.35 m | I58: 2.30 m - 2.35 m
A59: 56 | B59: 2.35 m - 2.40 m | C59: 56 | D59: 2.35 m - 2.40 m | E59: 2.35 m - 2.40 m | F59: 2.35 m - 2.40 m | G59: 2.35 m - 2.40 m | H59: 2.35 m - 2.40 m | I59: 2.35 m - 2.40 m
A60: 57 | B60: 2.40 m - 2.45 m | C60: 57 | D60: 2.40 m - 2.45 m | E60: 2.40 m - 2.45 m | F60: 2.40 m - 2.45 m | G60: 2.40 m - 2.45 m | H60: 2.40 m - 2.45 m | I60: 2.40 m - 2.45 m
A61: 58 | B61: 2.45 m - 2.50 m | C61: 58 | D61: 2.45 m - 2.50 m | E61: 2.45 m - 2.50 m | F61: 2.45 m - 2.50 m | G61: 2.45 m - 2.50 m | H61: 2.45 m - 2.50 m | I61: 2.45 m - 2.50 m
A62: 59 | B62: above 2.50 m | C62: 59 | D62: above 2.50 m | E62: Meer dan 2.50 m | F62: Supérieur à 2.50m | G62: über 2.50 m | H62: Más de 2.50 m | I62: acima de 2.50 m
A63: 60 | C63: 60
A64: 61 | B64: =IF(ISBLANK(VLOOKUP(A64,$C$4:$V$10001,1+$A$1)),D64,VLOOKUP(A64,$C$4:$V$10001,1+$A$1)) -> Compliant with the table | C64: 61 | D64: Compliant with the table | E64: In overeenstemming met de tabel | F64: Conforme au tableau | G64: (Not yet translated) Compliant with the table | H64: Conforme a la tabla | I64: Em conformidade com a tabela
A65: 62 | B65: =IF(ISBLANK(VLOOKUP(A65,$C$4:$V$10001,1+$A$1)),D65,VLOOKUP(A65,$C$4:$V$10001,1+$A$1)) -> Up to 30 cm less | C65: 62 | D65: Up to 30 cm less | E65: Tot 30 cm minder | F65: Jusqu’à 30cm de moins | G65: bis zu 30 cm weniger | H65: Hasta 30 cm menos | I65: Até 30 cm a menos
A66: 63 | B66: =IF(ISBLANK(VLOOKUP(A66,$C$4:$V$10001,1+$A$1)),D66,VLOOKUP(A66,$C$4:$V$10001,1+$A$1)) -> Up to 60 cm less | C66: 63 | D66: Up to 60 cm less | E66: Tot 60 cm minder | F66: Jusqu’à 60cm de moins | G66: bis zu 60 cm weniger | H66: Hasta 60 cm menos | I66: Até 60 cm a menos
A67: 64 | B67: =IF(ISBLANK(VLOOKUP(A67,$C$4:$V$10001,1+$A$1)),D67,VLOOKUP(A67,$C$4:$V$10001,1+$A$1)) -> More than 60 cm less | C67: 64 | D67: More than 60 cm less | E67: >60 cm minder | F67: Plus de 60cm de moins | G67: über 60 cm weniger | H67: Más de 60 cm menos | I67: Mais de 60 cm a menos
A68: 65 | C68: 65
A69: =C69 -> 66 | B69: =IF(ISBLANK(VLOOKUP(A69,$C$4:$V$10001,1+$A$1)),D69,VLOOKUP(A69,$C$4:$V$10001,1+$A$1)) -> Anti-Slip | C69: 66 | D69: Anti-Slip | E69: Anti slip | F69: Anti-dérapant | G69: rutschhemmend | H69: Antideslizante | I69: Antiderrapante
A70: 67 | B70: =IF(ISBLANK(VLOOKUP(A70,$C$4:$V$10001,1+$A$1)),D70,VLOOKUP(A70,$C$4:$V$10001,1+$A$1)) -> Smooth | C70: =+C69+1 -> 67 | D70: Smooth | E70: glad | F70: Lisse | G70: weich | H70: Lisa | I70: Suave
A71: 68 | B71: =IF(ISBLANK(VLOOKUP(A71,$C$4:$V$10001,1+$A$1)),D71,VLOOKUP(A71,$C$4:$V$10001,1+$A$1)) -> No Ramps | C71: 68 | D71: No Ramps | E71: Geen hellingen | F71: Pas de rampe | G71: Keine Rampen | H71: Sin rampas | I71: Sem rampas
A72: 69 | C72: 69
A73: 70 | B73: =IF(ISBLANK(VLOOKUP(A73,$C$4:$V$10001,1+$A$1)),D73,VLOOKUP(A73,$C$4:$V$10001,1+$A$1)) -> < 2.00m | C73: 70 | D73: < 2.00m | E73: < 2.00m | F73: < 2.00m | G73: < 2.00m | H73: < 2.00m | I73: < 2.00m
A74: 71 | B74: =IF(ISBLANK(VLOOKUP(A74,$C$4:$V$10001,1+$A$1)),D74,VLOOKUP(A74,$C$4:$V$10001,1+$A$1)) -> 2.00m – 2.10m | C74: 71 | D74: 2.00m – 2.10m | E74: 2.00m - 2.10m | F74: 2.00m – 2.10m | G74: 2.00m – 2.10m | H74: 2.00m – 2.10m | I74: 2.00m – 2.10m
A75: 72 | B75: =IF(ISBLANK(VLOOKUP(A75,$C$4:$V$10001,1+$A$1)),D75,VLOOKUP(A75,$C$4:$V$10001,1+$A$1)) -> 2.10m – 2.20m | C75: 72 | D75: 2.10m – 2.20m | E75: 2.10m - 2.20m | F75: 2.10m – 2.20m | G75: 2.10m – 2.20m | H75: 2.10m – 2.20m | I75: 2.10m – 2.20m
A76: 73 | B76: =IF(ISBLANK(VLOOKUP(A76,$C$4:$V$10001,1+$A$1)),D76,VLOOKUP(A76,$C$4:$V$10001,1+$A$1)) -> > 2.20m | C76: 73 | D76: > 2.20m | E76: > 2.20m | F76: > 2.20m | G76: > 2.20m | H76: > 2.20m | I76: > 2.20m
A77: 74 | C77: 74
A78: 75 | B78: =IF(ISBLANK(VLOOKUP(A78,$C$4:$V$10001,1+$A$1)),D78,VLOOKUP(A78,$C$4:$V$10001,1+$A$1)) -> Yes (automatic or open connection) | C78: 75 | D78: Yes (automatic or open connection) | E78: Ja (automatische deur of open verbinding) | F78: Oui ( ouverture automatique ou connexion ouverte) | G78: Ja (automatisch oder offene Verbindung) | H78: Sí (automáticas o paso abierto) | I78: Sim (automático ou aberta)
A79: 76 | B79: =IF(ISBLANK(VLOOKUP(A79,$C$4:$V$10001,1+$A$1)),D79,VLOOKUP(A79,$C$4:$V$10001,1+$A$1)) -> Easy to Open | C79: 76 | D79: Easy to Open | E79: Gemakkelijk te openen | F79: Ouverture aisée | G79: Leicht zu öffnen | H79: Apertura fácil | I79: Fácil de abrir
A80: 77 | B80: =IF(ISBLANK(VLOOKUP(A80,$C$4:$V$10001,1+$A$1)),D80,VLOOKUP(A80,$C$4:$V$10001,1+$A$1)) -> No | C80: 77 | D80: No | E80: Nee | G80: Nein | H80: No | I80: Não
A81: 78 | C81: 78
A82: 79 | B82: =IF(ISBLANK(VLOOKUP(A82,$C$4:$V$10001,1+$A$1)),D82,VLOOKUP(A82,$C$4:$V$10001,1+$A$1)) -> Every pedestrian exit | C82: 79 | D82: Every pedestrian exit | E82: Bij elke voetgangersuitgang | F82: Chaque sortie piétons | G82: Jeder Fußgängerausgang | H82: En todas las salidas peatonales | I82: Cada saída pedonal
A83: 80 | B83: =IF(ISBLANK(VLOOKUP(A83,$C$4:$V$10001,1+$A$1)),D83,VLOOKUP(A83,$C$4:$V$10001,1+$A$1)) -> One location | C83: 80 | D83: One location | E83: Op één locatie | F83: Un seul endroit | G83: Eine Position | H83: Sólo en un lugar | I83: Uma localização
A84: 81 | B84: =IF(ISBLANK(VLOOKUP(A84,$C$4:$V$10001,1+$A$1)),D84,VLOOKUP(A84,$C$4:$V$10001,1+$A$1)) -> No | C84: 81 | D84: No | E84: Nee | F84: Absent | G84: Nein | H84: No | I84: Não
A85: 82 | C85: 82
A86: 83 | B86: =IF(ISBLANK(VLOOKUP(A86,$C$4:$V$10001,1+$A$1)),D86,VLOOKUP(A86,$C$4:$V$10001,1+$A$1)) -> One elevator | C86: 83 | D86: One elevator | E86: Eén lift | F86: Un ascenseur | G86: Ein Aufzug | H86: Un ascensor | I86: Um elevador
A87: 84 | B87: =IF(ISBLANK(VLOOKUP(A87,$C$4:$V$10001,1+$A$1)),D87,VLOOKUP(A87,$C$4:$V$10001,1+$A$1)) -> Two or more elevators | C87: 84 | D87: Two or more elevators | E87: Twee of meer liften | F87: Deux ascenseurs ou plus | G87: Zwei oder mehr Aufzüge | H87: Dos o más ascensores | I87: Dois ou mais elevadores
A88: 85 | C88: 85
A89: 86 | B89: =IF(ISBLANK(VLOOKUP(A89,$C$4:$V$10001,1+$A$1)),D89,VLOOKUP(A89,$C$4:$V$10001,1+$A$1)) -> More Than 8 People | C89: 86 | D89: More Than 8 People | E89: Meer dan 8 personen | F89: Plus e 8 personnes | G89: Mehr als 8 Personen | H89: Más de 8 personas | I89: Mais que 8 pessoas
A90: 87 | B90: =IF(ISBLANK(VLOOKUP(A90,$C$4:$V$10001,1+$A$1)),D90,VLOOKUP(A90,$C$4:$V$10001,1+$A$1)) -> 4 to 8 people | C90: 87 | D90: 4 to 8 people | E90: 4 - 8 personen | F90: Entre 4 et 8 personnes | G90: 4 bis 8 Personen | H90: De 4 a 8 personas | I90: 4 a 8 pessoas
A91: 88 | B91: =IF(ISBLANK(VLOOKUP(A91,$C$4:$V$10001,1+$A$1)),D91,VLOOKUP(A91,$C$4:$V$10001,1+$A$1)) -> Less Than 4 | C91: 88 | D91: Less Than 4 | E91: Minder dan 4 personen | F91: Moins de 4 personnes | G91: Weniger als 4 | H91: Menos de 4 personas | I91: Menos que 4 pessoas
A92: 89 | C92: 89
A93: 90 | B93: =IF(ISBLANK(VLOOKUP(A93,$C$4:$V$10001,1+$A$1)),D93,VLOOKUP(A93,$C$4:$V$10001,1+$A$1)) -> no visibility from elevator | C93: 90 | D93: no visibility from elevator | E93: Geen zicht vanuit de lift | F93: Pas de visibilité depuis l’ascenseur | G93: Keine Sicht aus dem Aufzug | H93: no hay visibilidad desde el ascensor | I93: nenhuma visibilidade do elevador
A94: 91 | B94: =IF(ISBLANK(VLOOKUP(A94,$C$4:$V$10001,1+$A$1)),D94,VLOOKUP(A94,$C$4:$V$10001,1+$A$1)) -> glazed doors/walls | C94: 91 | D94: glazed doors/walls | E94: Glas in deur of wanden | F94: Portes/murs vitré(e)s | G94: Verglaste Türen/Wände | H94: puertas y muros acristalados | I94: portas de vidros/paredes
A95: 92 | B95: =IF(ISBLANK(VLOOKUP(A95,$C$4:$V$10001,1+$A$1)),D95,VLOOKUP(A95,$C$4:$V$10001,1+$A$1)) -> no elevator | C95: 92 | D95: no elevator | E95: Geen lift | F95: Pas d’ascenseur | G95: Kein Aufzug | H95: no hay ascensor | I95: sem elevador
A96: 93 | C96: 93
A97: 94 | B97: =IF(ISBLANK(VLOOKUP(A97,$C$4:$V$10001,1+$A$1)),D97,VLOOKUP(A97,$C$4:$V$10001,1+$A$1)) -> < 1.5 m | C97: 94 | D97: < 1.5 m | E97: < 1.5 m | F97: < 1.5 m | G97: < 1.5 m | H97: < 1.5 m | I97: < 1.5 m
A98: 95 | B98: =IF(ISBLANK(VLOOKUP(A98,$C$4:$V$10001,1+$A$1)),D98,VLOOKUP(A98,$C$4:$V$10001,1+$A$1)) -> > 1.5 m | C98: 95 | D98: > 1.5 m | E98: > 1.5 m | F98: > 1.5 m | G98: > 1.5 m | H98: > 1.5 m | I98: > 1.5 m
A99: 96 | C99: 96
A100: 97 | B100: =IF(ISBLANK(VLOOKUP(A100,$C$4:$V$10001,1+$A$1)),D100,VLOOKUP(A100,$C$4:$V$10001,1+$A$1)) -> < 90 cm | C100: 97 | D100: < 90 cm | E100: < 90 cm | F100: < 90 cm | G100: < 90 cm | H100: < 90 cm | I100: < 90 cm
A101: 98 | B101: =IF(ISBLANK(VLOOKUP(A101,$C$4:$V$10001,1+$A$1)),D101,VLOOKUP(A101,$C$4:$V$10001,1+$A$1)) -> >= 90 cm | C101: 98 | D101: >= 90 cm | E101: >= 90 cm | F101: >= 90 cm | G101: >= 90 cm | H101: >= 90 cm | I101: >= 90 cm
A102: 99 | C102: 99
A103: 100 | B103: =IF(ISBLANK(VLOOKUP(A103,$C$4:$V$10001,1+$A$1)),D103,VLOOKUP(A103,$C$4:$V$10001,1+$A$1)) -> Glazed door/wall | C103: 100 | D103: Glazed door/wall | E103: Glazen deur/wand | F103: Portes/murs vitré(e)s | G103: Verglaste Türen/Wände | H103: Puerta/muro acristalado | I103: Porta de vidro/parede
A104: 101 | B104: =IF(ISBLANK(VLOOKUP(A104,$C$4:$V$10001,1+$A$1)),D104,VLOOKUP(A104,$C$4:$V$10001,1+$A$1)) -> No Glass | C104: 101 | D104: No Glass | E104: Geen glas | F104: Pas de vitres | G104: Kein Glas | H104: Sin cristal | I104: Sem vidro
A105: 102 | C105: 102
A106: 103 | B106: =IF(ISBLANK(VLOOKUP(A106,$C$4:$V$10001,1+$A$1)),D106,VLOOKUP(A106,$C$4:$V$10001,1+$A$1)) -> No hand rail | C106: 103 | D106: No hand rail | E106: Geen handreling | F106: Pas de main courante | G106: Kein Handlauf | H106: Sin barandillas | I106: Não tem corrimão
A107: 104 | B107: =IF(ISBLANK(VLOOKUP(A107,$C$4:$V$10001,1+$A$1)),D107,VLOOKUP(A107,$C$4:$V$10001,1+$A$1)) -> One Side | C107: 104 | D107: One Side | E107: Handreling aan één kant | F107: D’un seul côté | G107: Eine Seite | H107: A un lado | I107: Um lado
A108: 105 | B108: =IF(ISBLANK(VLOOKUP(A108,$C$4:$V$10001,1+$A$1)),D108,VLOOKUP(A108,$C$4:$V$10001,1+$A$1)) -> Two sides | C108: 105 | D108: Two sides | E108: Handreling aan twee kanten | F108: Des deux côtés | G108: Zwei Seiten | H108: Ambos lados | I108: Dois lados
A109: 106 | C109: 106
A110: 107 | B110: =IF(ISBLANK(VLOOKUP(A110,$C$4:$V$10001,1+$A$1)),D110,VLOOKUP(A110,$C$4:$V$10001,1+$A$1)) -> window/grilled | C110: 107 | D110: window/grilled | E110: Raam of rooster | F110: Fenêtres/Grilles | G110: Fenster/vergittert | H110: Ventana/rejilla | I110: janela/grelhas
A111: 108 | B111: =IF(ISBLANK(VLOOKUP(A111,$C$4:$V$10001,1+$A$1)),D111,VLOOKUP(A111,$C$4:$V$10001,1+$A$1)) -> none | C111: 108 | D111: none | E111: Geen opening | F111: Aucun | G111: Nichts | H111: Ninguna | I111: Nenhum
A112: 109 | C112: 109
A113: 110 | B113: =IF(ISBLANK(VLOOKUP(A113,$C$4:$V$10001,1+$A$1)),D113,VLOOKUP(A113,$C$4:$V$10001,1+$A$1)) -> 24*7 | C113: 110 | D113: 24*7 | E113: 24 * 7 | F113: 24h/24 - 7j/7 | G113: 24*7 | H113: 24*7 | I113: 24*7
A114: 111 | B114: =IF(ISBLANK(VLOOKUP(A114,$C$4:$V$10001,1+$A$1)),D114,VLOOKUP(A114,$C$4:$V$10001,1+$A$1)) -> All access hours if not 24*7 | C114: 111 | D114: All access hours if not 24*7 | E114: Alle openingsuren indien geen 7*24 | F114: Durant les heures d’ouverture si pas 24/24 – 7/7 | G114: Gesamte Öffnungszeit wenn nicht 24*7 | H114: Todas las horas de apertura si no 24*7 | I114: Todas as horas de acesso, se não 24*7
A115: 112 | B115: =IF(ISBLANK(VLOOKUP(A115,$C$4:$V$10001,1+$A$1)),D115,VLOOKUP(A115,$C$4:$V$10001,1+$A$1)) -> Part time/not available | C115: 112 | D115: Part time/not available | E115: Part time of niet beschikbaar | F115: Partiellement / Non disponible | G115: Teilweise/nicht verfügbar | H115: Tiempo parcial/no disponible | I115: Tempo parcial/não disponível
A116: 113 | C116: 113
A117: 114 | B117: =IF(ISBLANK(VLOOKUP(A117,$C$4:$V$10001,1+$A$1)),D117,VLOOKUP(A117,$C$4:$V$10001,1+$A$1)) -> 24*7 | C117: 114 | D117: 24*7 | E117: 24 * 7 | F117: 24h/24 - 7j/7 | G117: 24*7 | H117: 24*7 | I117: 24*7
A118: 115 | B118: =IF(ISBLANK(VLOOKUP(A118,$C$4:$V$10001,1+$A$1)),D118,VLOOKUP(A118,$C$4:$V$10001,1+$A$1)) -> During access Hours | C118: 115 | D118: During access Hours | E118: Gedurende toegangsuren | F118: Durant les heures d’ouverture | G118: Während der Öffnungszeiten | H118: Durante horario de apertura | I118: Durante horário de funcionamento
A119: 116 | B119: =IF(ISBLANK(VLOOKUP(A119,$C$4:$V$10001,1+$A$1)),D119,VLOOKUP(A119,$C$4:$V$10001,1+$A$1)) -> Less than access Hours | C119: 116 | D119: Less than access Hours | E119: Minder dan de toegangsuren | F119: Moins que les heures d’ouverture | G119: Weniger als die Öffnungszeiten | H119: Tiempo parcial | I119: Fora do horário de funcionamento
A120: 117 | B120: =IF(ISBLANK(VLOOKUP(A120,$C$4:$V$10001,1+$A$1)),D120,VLOOKUP(A120,$C$4:$V$10001,1+$A$1)) -> No | C120: 117 | D120: No | E120: Geen | G120: Nein | H120: No | I120: Não
A121: 118 | C121: 118
A122: 119 | B122: =IF(ISBLANK(VLOOKUP(A122,$C$4:$V$10001,1+$A$1)),D122,VLOOKUP(A122,$C$4:$V$10001,1+$A$1)) -> Closed gate/rolling shutter after access hours | C122: 119 | D122: Closed gate/rolling shutter after access hours | E122: Afgesloten toegang buiten openingsuren | F122: Portails ou volets fermés en dehors des heures d’ouverture | G122: Geschlossenes Tor/Rollgitter außerhalb der Öffnungszeit | H122: Portón cerrado fuera de horario de apertura | I122: Portão/porta de enrolar fechados depois do horário de funcionamento
A123: 120 | B123: =IF(ISBLANK(VLOOKUP(A123,$C$4:$V$10001,1+$A$1)),D123,VLOOKUP(A123,$C$4:$V$10001,1+$A$1)) -> Secured: fast opening gate during day | C123: 120 | D123: Secured: fast opening gate during day | E123: Beveiligd: snelle poort gedurende de dag | F123: Sécurisé: portail à ouverture rapide en journée | G123: Gesichert: Schnelllauftor tagsüber | H123: Mecanismo de seguridad de cierre rápido durante horario apertura | I123: Protegido : rápida abertura do portão durante o dia
A124: 121 | B124: =IF(ISBLANK(VLOOKUP(A124,$C$4:$V$10001,1+$A$1)),D124,VLOOKUP(A124,$C$4:$V$10001,1+$A$1)) -> Secured: slow opening gate during day | C124: 121 | D124: Secured: slow opening gate during day | E124: Beveiligd: langzame poort gedurende de dag | F124: Sécurisé: portail à ouverture lente en journée | G124: Gesichert: langsam öffnendes Tor tagsüber | H124: Mecanismo de seguridad de cierre lento durante horario apertura | I124: Protegido : portão de abertura lento durante o dia
A125: 122 | B125: =IF(ISBLANK(VLOOKUP(A125,$C$4:$V$10001,1+$A$1)),D125,VLOOKUP(A125,$C$4:$V$10001,1+$A$1)) -> No provisions | C125: 122 | D125: No provisions | E125: Geen voorzieningen | F125: Pas de dispositif particulier | G125: Keine Sicherung | H125: Sin mecanismo | I125: Não previsto
A126: 123 | C126: 123
A127: 124 | B127: =IF(ISBLANK(VLOOKUP(A127,$C$4:$V$10001,1+$A$1)),D127,VLOOKUP(A127,$C$4:$V$10001,1+$A$1)) -> Maximum Aperture Door/gate/rolling shutter <= 15cm | C127: 124 | D127: Maximum Aperture Door/gate/rolling shutter <= 15cm | E127: Toegangsdeur met openingen <= 15 cm | F127: Espace maximum entre barreaux portails/volets : => 15cm | G127: Größte Öffnung in Tür/Tor/Rollgitter <= 15cm | H127: Puerta/portón cuya apertura máxima es <= 15cm | I127: Abertura Máxima da Porta/portão/porta de enrolar <= 15cm
A128: 125 | B128: =IF(ISBLANK(VLOOKUP(A128,$C$4:$V$10001,1+$A$1)),D128,VLOOKUP(A128,$C$4:$V$10001,1+$A$1)) -> Maximum Aperture Door/gate/rolling shutter > 15cm | C128: 125 | D128: Maximum Aperture Door/gate/rolling shutter > 15cm | E128: Toegangsdeur met openingen > 15 cm | F128: Espace maximum entre barreaux portails/volets : < 15cm | G128: Größte Öffnung in Tür/Tor/Rollgitter > 15cm | H128: Puerta/portón cuya apertura máxima es > 15cm | I128: Abertura Máxima da Porta/portão/porta de enrolar > 15cm
A129: 126 | B129: =IF(ISBLANK(VLOOKUP(A129,$C$4:$V$10001,1+$A$1)),D129,VLOOKUP(A129,$C$4:$V$10001,1+$A$1)) -> no provisions | C129: 126 | D129: no provisions | E129: Geen afgesloten toegangsdeur | F129: Pas de barreaux | G129: Keine Öffnung | H129: Ningún tipo de cierre | I129: não previsto
A130: 127 | B130: =IF(ISBLANK(VLOOKUP(A130,$C$4:$V$10001,1+$A$1)),D130,VLOOKUP(A130,$C$4:$V$10001,1+$A$1)) -> Irrelevant (24 hours opening) | C130: 127 | D130: Irrelevant (24 hours opening) | E130: NVT, 24 uur opening | F130: Sans rapport (ouverture 24h/24) | G130: Unzutreffend (24 Stunden geöffnet) | H130: No aplica (apertura 24h) | I130: Irrelevante (24 horas aberto)
A131: 128 | C131: 128
A132: 129 | B132: =IF(ISBLANK(VLOOKUP(A132,$C$4:$V$10001,1+$A$1)),D132,VLOOKUP(A132,$C$4:$V$10001,1+$A$1)) -> <= 15 cm | C132: 129 | D132: <= 15 cm | E132: <= 15 cm | F132: <= 15 cm | G132: <= 15 cm | H132: <= 15 cm | I132: <= 15 cm
A133: =C133 -> 130 | B133: =IF(ISBLANK(VLOOKUP(A133,$C$4:$V$10001,1+$A$1)),D133,VLOOKUP(A133,$C$4:$V$10001,1+$A$1)) -> >15 cm or no protection | C133: 130 | D133: >15 cm or no protection | E133: >15 cm of geen beveiliging | F133: >15 cm ou absence de protection | G133: >15 cm oder keine Sicherung | H133: >15 cm o sin protección | I133: > 15 cm ou nenhuma proteção
A134: 131 | B134: =IF(ISBLANK(VLOOKUP(A134,$C$4:$V$10001,1+$A$1)),D134,VLOOKUP(A134,$C$4:$V$10001,1+$A$1)) -> Irrelevant (no external openings) | C134: =+C133+1 -> 131 | D134: Irrelevant (no external openings) | E134: NVT, geen openingen naar buiten | F134: Sans rapport (pas d’ouvertures extérieures) | G134: Unzutreffend (keine Öffnungen nach außen) | H134: No aplica (no hay aperturas exteriores) | I134: Irrelevante (sem aberturas externas)
A135: 132 | C135: 132
A136: 133 | B136: =IF(ISBLANK(VLOOKUP(A136,$C$4:$V$10001,1+$A$1)),D136,VLOOKUP(A136,$C$4:$V$10001,1+$A$1)) -> Yes/Good | C136: 133 | D136: Yes/Good | E136: Ja/goed | F136: Oui/Bon | G136: Ja/gut | H136: Sí/Buena | I136: Sim/Bom
A137: 134 | B137: =IF(ISBLANK(VLOOKUP(A137,$C$4:$V$10001,1+$A$1)),D137,VLOOKUP(A137,$C$4:$V$10001,1+$A$1)) -> No/Bad | C137: 134 | D137: No/Bad | E137: Nee/slecht | F137: Non/Mauvais | G137: Nein/schlecht | H137: No/Mala | I137: Não/Mau
A138: 135 | C138: 135
A139: 136 | B139: =IF(ISBLANK(VLOOKUP(A139,$C$4:$V$10001,1+$A$1)),D139,VLOOKUP(A139,$C$4:$V$10001,1+$A$1)) -> Good | C139: 136 | D139: Good | E139: Goed | F139: Bon | G139: Gut | H139: Bien | I139: Bom
A140: 137 | B140: =IF(ISBLANK(VLOOKUP(A140,$C$4:$V$10001,1+$A$1)),D140,VLOOKUP(A140,$C$4:$V$10001,1+$A$1)) -> Adequate | C140: 137 | D140: Adequate | E140: Acceptabel | F140: Adéquat | G140: Befriedigend | H140: Correcto | I140: Adequado
A141: 138 | B141: =IF(ISBLANK(VLOOKUP(A141,$C$4:$V$10001,1+$A$1)),D141,VLOOKUP(A141,$C$4:$V$10001,1+$A$1)) -> Poor | C141: 138 | D141: Poor | E141: Slecht | F141: Faible | G141: Schlecht | H141: Mal | I141: Pobre
A142: 139 | B142: =IF(ISBLANK(VLOOKUP(A142,$C$4:$V$10001,1+$A$1)),D142,VLOOKUP(A142,$C$4:$V$10001,1+$A$1)) -> No | C142: 139 | D142: No | E142: Nee | F142: Absent | G142: Nein | H142: No | I142: Não
A143: 140 | C143: 140
A144: 141 | B144: =IF(ISBLANK(VLOOKUP(A144,$C$4:$V$10001,1+$A$1)),D144,VLOOKUP(A144,$C$4:$V$10001,1+$A$1)) -> Clear from all locations | C144: 141 | D144: Clear from all locations | E144: Zichtbaar vanaf elke plek | F144: Clairement depuis tous les endroits | G144: Deutlich von allen Standorten | H144: Claramente desde cualquier ubicación | I144: A partir de todos os locais
A145: 142 | B145: =IF(ISBLANK(VLOOKUP(A145,$C$4:$V$10001,1+$A$1)),D145,VLOOKUP(A145,$C$4:$V$10001,1+$A$1)) -> Clear from most locations | C145: 142 | D145: Clear from most locations | E145: Zichtbaar vanaf de meeste plekken | F145: Clairement depuis la plupart des endroits | G145: Deutlich von den meisten Standorten | H145: La mayor parte de ubicaciones | I145: A partir de maioria dos locais
A146: 143 | B146: =IF(ISBLANK(VLOOKUP(A146,$C$4:$V$10001,1+$A$1)),D146,VLOOKUP(A146,$C$4:$V$10001,1+$A$1)) -> Clear from some locations | C146: 143 | D146: Clear from some locations | E146: Zichtbaar vanaf somming plekken | F146: Clairement depuis certains endroits | G146: Deutlich von wenigen Standorten | H146: Algunas ubicaciones | I146: A partir de alguns locais
A147: 144 | B147: =IF(ISBLANK(VLOOKUP(A147,$C$4:$V$10001,1+$A$1)),D147,VLOOKUP(A147,$C$4:$V$10001,1+$A$1)) -> No marking of escape routes | C147: 144 | D147: No marking of escape routes | E147: Geen aanduiding van vluchtroutes | F147: Pas de signalétique vers sorties de secours | G147: Keine Kennzeichnung von Fluchtwegen | H147: No están señalizadas | I147: Não existe identificação dos caminhos de fuga
A148: 145 | C148: 145
A149: 146 | B149: =IF(ISBLANK(VLOOKUP(A149,$C$4:$V$10001,1+$A$1)),D149,VLOOKUP(A149,$C$4:$V$10001,1+$A$1)) -> Good | C149: 146 | D149: Good | E149: Goed | F149: Bon | G149: Gut | H149: Bien | I149: Bom
A150: 147 | B150: =IF(ISBLANK(VLOOKUP(A150,$C$4:$V$10001,1+$A$1)),D150,VLOOKUP(A150,$C$4:$V$10001,1+$A$1)) -> Adequate | C150: 147 | D150: Adequate | E150: Acceptabel | F150: Adéquat | G150: Befriedigend | H150: Correcto | I150: Adequado
A151: 148 | B151: =IF(ISBLANK(VLOOKUP(A151,$C$4:$V$10001,1+$A$1)),D151,VLOOKUP(A151,$C$4:$V$10001,1+$A$1)) -> Poor | C151: 148 | D151: Poor | E151: Slecht | F151: Faible | G151: Schlecht | H151: Mal | I151: Pobre
A152: 149 | B152: =IF(ISBLANK(VLOOKUP(A152,$C$4:$V$10001,1+$A$1)),D152,VLOOKUP(A152,$C$4:$V$10001,1+$A$1)) -> None | C152: 149 | D152: None | E152: Geen | F152: Absent | G152: Keine | H152: No | I152: Nenhum
A153: 150 | B153: =IF(ISBLANK(VLOOKUP(A153,$C$4:$V$10001,1+$A$1)),D153,VLOOKUP(A153,$C$4:$V$10001,1+$A$1)) -> Single Level Car Park | C153: 150 | D153: Single Level Car Park | E153: Eénlaags parkeergarage | F153: Parc de stationnement à un seul niveau | G153: 1-geschossiges Parkhaus | H153: Aparcamiento de una única planta | I153: Parque com um único piso
A154: 151 | C154: 151
A155: 152 | B155: =IF(ISBLANK(VLOOKUP(A155,$C$4:$V$10001,1+$A$1)),D155,VLOOKUP(A155,$C$4:$V$10001,1+$A$1)) -> Good | C155: 152 | D155: Good | E155: Goed | F155: Bon | G155: Gut | H155: Buena | I155: Bom
A156: 153 | B156: =IF(ISBLANK(VLOOKUP(A156,$C$4:$V$10001,1+$A$1)),D156,VLOOKUP(A156,$C$4:$V$10001,1+$A$1)) -> Some | C156: 153 | D156: Some | E156: Soms | F156: Quelques | G156: Einige | H156: Alguna | I156: Alguns
A157: 154 | B157: =IF(ISBLANK(VLOOKUP(A157,$C$4:$V$10001,1+$A$1)),D157,VLOOKUP(A157,$C$4:$V$10001,1+$A$1)) -> None | C157: 154 | D157: None | E157: Geen | F157: Absent | G157: Keine | H157: Ninguna | I157: Nenhum
A158: 155 | C158: 155
A159: 156 | B159: =IF(ISBLANK(VLOOKUP(A159,$C$4:$V$10001,1+$A$1)),D159,VLOOKUP(A159,$C$4:$V$10001,1+$A$1)) -> Numbered including floor identification | C159: 156 | D159: Numbered including floor identification | E159: Nummers met niveau indicatie | F159: Numérotation incluant identification de l’étage | G159: Nummeriert einschießlich Geschoßidentifizierung | H159: Numeración incluye identificación de planta | I159: Numerados, incluindo identificação no chão
A160: 157 | B160: =IF(ISBLANK(VLOOKUP(A160,$C$4:$V$10001,1+$A$1)),D160,VLOOKUP(A160,$C$4:$V$10001,1+$A$1)) -> Just numbers | C160: 157 | D160: Just numbers | E160: Alleen nummers | F160: Juste numérotation | G160: Nur nummeriert | H160: Sólo números | I160: Só números
A161: 158 | B161: =IF(ISBLANK(VLOOKUP(A161,$C$4:$V$10001,1+$A$1)),D161,VLOOKUP(A161,$C$4:$V$10001,1+$A$1)) -> None | C161: 158 | D161: None | E161: Geen | F161: Absent | G161: Keine | H161: Ninguna | I161: Nenhum
A162: 159 | C162: 159
A163: 160 | B163: =IF(ISBLANK(VLOOKUP(A163,$C$4:$V$10001,1+$A$1)),D163,VLOOKUP(A163,$C$4:$V$10001,1+$A$1)) -> Zero | C163: 160 | D163: Zero | E163: nul | F163: Zéro | G163: null | H163: Cero | I163: Zero
A164: 161 | B164: =IF(ISBLANK(VLOOKUP(A164,$C$4:$V$10001,1+$A$1)),D164,VLOOKUP(A164,$C$4:$V$10001,1+$A$1)) -> One | C164: 161 | D164: One | E164: een | F164: Un | G164: ein | H164: Un | I164: Um
A165: 162 | B165: =IF(ISBLANK(VLOOKUP(A165,$C$4:$V$10001,1+$A$1)),D165,VLOOKUP(A165,$C$4:$V$10001,1+$A$1)) -> Two | C165: 162 | D165: Two | E165: twee | F165: Deux | G165: zewi | H165: Dos | I165: Dois
A166: 163 | B166: =IF(ISBLANK(VLOOKUP(A166,$C$4:$V$10001,1+$A$1)),D166,VLOOKUP(A166,$C$4:$V$10001,1+$A$1)) -> Three or More | C166: 163 | D166: Three or More | E166: drie of meer | F166: Trois ou plus | G166: drei oder mehr | H166: Tres o más | I166: Três ou Mais
A167: 164 | C167: 164
A168: 165 | B168: =IF(ISBLANK(VLOOKUP(A168,$C$4:$V$10001,1+$A$1)),D168,VLOOKUP(A168,$C$4:$V$10001,1+$A$1)) -> One pay station | C168: 165 | D168: One pay station | E168: Een betaalautomaat | F168: Une seule borne d’encaissement | G168: Ein Bezahlstation | H168: Un punto de pago | I168: Uma estação de pagamento
A169: 166 | B169: =IF(ISBLANK(VLOOKUP(A169,$C$4:$V$10001,1+$A$1)),D169,VLOOKUP(A169,$C$4:$V$10001,1+$A$1)) -> More than one | C169: 166 | D169: More than one | E169: Meer betaalautomaten | F169: Plus qu’une borne d’encaissement | G169: Mehr als eine | H169: Más de uno | I169: Mais que uma
A170: 167 | B170: =IF(ISBLANK(VLOOKUP(A170,$C$4:$V$10001,1+$A$1)),D170,VLOOKUP(A170,$C$4:$V$10001,1+$A$1)) -> One at each pedestrian entrance | C170: 167 | D170: One at each pedestrian entrance | E170: Minstens één bij elke reguliere voetgangersingang | F170: Une à chaque entrée piétons,excepté sortie secours | G170: Eine an jedem Fußgängerzugang (außer reine Fluchtwege) | H170: Uno en cada acceso peatonal | I170: Um em cada entrada pedonal
A171: 168 | B171: =IF(ISBLANK(VLOOKUP(A171,$C$4:$V$10001,1+$A$1)),D171,VLOOKUP(A171,$C$4:$V$10001,1+$A$1)) -> More than one at each pedestrian entrance | C171: 168 | D171: More than one at each pedestrian entrance | E171: Meer dan gemiddeld één per voetgangerstoegang | F171: Plus d’une borne à chaque entrée piétons | G171: Eine an jedem Fußgängerzugang | H171: Más de uno en cada acceso peatonal | I171: Mais que um em cada entrada pedonal
A172: 169 | C172: 169
A173: 170 | B173: =IF(ISBLANK(VLOOKUP(A173,$C$4:$V$10001,1+$A$1)),D173,VLOOKUP(A173,$C$4:$V$10001,1+$A$1)) -> One | C173: 170 | D173: One | E173: Een | F173: Une | G173: Eine | H173: Uno | I173: Um
A174: 171 | B174: =IF(ISBLANK(VLOOKUP(A174,$C$4:$V$10001,1+$A$1)),D174,VLOOKUP(A174,$C$4:$V$10001,1+$A$1)) -> < 1 for every 50 spaces | C174: 171 | D174: < 1 for every 50 spaces | E174: <1 per 50 plaatsen | F174: < 1 par tranche de 50 places | G174: < 1 pro 50 Stellplätze | H174: < 1 cada 50 plazas | I174: < 1 para cada 50 lugares
A175: 172 | B175: =IF(ISBLANK(VLOOKUP(A175,$C$4:$V$10001,1+$A$1)),D175,VLOOKUP(A175,$C$4:$V$10001,1+$A$1)) -> >1 for every 50 spaces | C175: 172 | D175: >1 for every 50 spaces | E175: >1 per 50 plaatsen | F175: > 1 par tranche de 50 places | G175: > 1 pro 50 Stellplätze | H175: >1 cada 50 plazas | I175: > 1 para cada 50 lugares
A176: 173 | C176: 173
A177: 174 | B177: =IF(ISBLANK(VLOOKUP(A177,$C$4:$V$10001,1+$A$1)),D177,VLOOKUP(A177,$C$4:$V$10001,1+$A$1)) -> Unisex | C177: 174 | D177: Unisex | E177: M/V gecombineerd | F177: Unique | G177: unisex | H177: Unisex | I177: Unisexo
A178: 175 | B178: =IF(ISBLANK(VLOOKUP(A178,$C$4:$V$10001,1+$A$1)),D178,VLOOKUP(A178,$C$4:$V$10001,1+$A$1)) -> Male/Female Separated | C178: 175 | D178: Male/Female Separated | E178: Apart voor M en V | F178: Hommes/Femmes séparés | G178: Männer/Frauen getrennt | H178: Separación hombres/mujeres | I178: Masculino/Feminino Separado
A179: 176 | C179: 176
A180: 177 | B180: =IF(ISBLANK(VLOOKUP(A180,$C$4:$V$10001,1+$A$1)),D180,VLOOKUP(A180,$C$4:$V$10001,1+$A$1)) -> Coloured pillars | C180: 177 | D180: Coloured pillars | E180: Geschilderde kolommen | F180: Piliers peints | G180: Farbige Stützen | H180: Pilares pintados | I180: Pilares coloridos
A181: 178 | B181: =IF(ISBLANK(VLOOKUP(A181,$C$4:$V$10001,1+$A$1)),D181,VLOOKUP(A181,$C$4:$V$10001,1+$A$1)) -> No/Concrete grey | C181: 178 | D181: No/Concrete grey | E181: Nee, beton grijs | F181: Non peints / béton brut | G181: Nein/Betongrau | H181: No/hormigón gris | I181: Não/Betão cinzento
A182: 179 | C182: 179
A183: 180 | B183: =IF(ISBLANK(VLOOKUP(A183,$C$4:$V$10001,1+$A$1)),D183,VLOOKUP(A183,$C$4:$V$10001,1+$A$1)) -> Coloured walls | C183: 180 | D183: Coloured walls | E183: Geschilderde wanden | F183: Murs peints | G183: Farbige Wände | H183: Muros pintados | I183: Paredes coloridas
A184: 181 | B184: =IF(ISBLANK(VLOOKUP(A184,$C$4:$V$10001,1+$A$1)),D184,VLOOKUP(A184,$C$4:$V$10001,1+$A$1)) -> No/Concrete grey | C184: 181 | D184: No/Concrete grey | E184: Nee, beton grijs | F184: Non peints / béton brut | G184: Nein/Betongrau | H184: No/hormigón gris | I184: Não/Betão cinzento
A185: 182 | C185: 182
A186: 183 | B186: =IF(ISBLANK(VLOOKUP(A186,$C$4:$V$10001,1+$A$1)),D186,VLOOKUP(A186,$C$4:$V$10001,1+$A$1)) -> More than one recharging point | C186: 183 | D186: More than one recharging point | E186: Meerdere laadpunten | F186: Plusieurs bornes de charge | G186: Mehr als eine Aufladestation | H186: Más de un punto de recarga | I186: Mais do que um ponto de recarga
A187: 184 | B187: =IF(ISBLANK(VLOOKUP(A187,$C$4:$V$10001,1+$A$1)),D187,VLOOKUP(A187,$C$4:$V$10001,1+$A$1)) -> One recharging point | C187: 184 | D187: One recharging point | E187: Een laadpunt | F187: Une seule borne de charge | G187: eine Aufladestation | H187: Un punto de recarga | I187: Um ponto de recarga
A188: 185 | B188: =IF(ISBLANK(VLOOKUP(A188,$C$4:$V$10001,1+$A$1)),D188,VLOOKUP(A188,$C$4:$V$10001,1+$A$1)) -> None | C188: 185 | D188: None | E188: Geen | F188: Absent | G188: keine | H188: Ninguno | I188: Nenhum
A189: 186 | C189: 186
A190: 187 | B190: =IF(ISBLANK(VLOOKUP(A190,$C$4:$V$10001,1+$A$1)),D190,VLOOKUP(A190,$C$4:$V$10001,1+$A$1)) -> To/from all levels | C190: 187 | D190: To/from all levels | E190: Naar/van alle niveaus | F190: Vers/depuis tous les étages | G190: Zu/von allen Geschossen | H190: Desde/hasta todas las plantas | I190: Para/de todos os níveis
A191: 188 | B191: =IF(ISBLANK(VLOOKUP(A191,$C$4:$V$10001,1+$A$1)),D191,VLOOKUP(A191,$C$4:$V$10001,1+$A$1)) -> To/from some levels | C191: 188 | D191: To/from some levels | E191: Naar/van enkele niveaus | F191: De/vers certains étages | G191: Zu/von einigen Geschossen | H191: Desde/hasta algunas plantas | I191: Para/ de alguns níveis
A192: 189 | B192: =IF(ISBLANK(VLOOKUP(A192,$C$4:$V$10001,1+$A$1)),D192,VLOOKUP(A192,$C$4:$V$10001,1+$A$1)) -> No Escalators or Travellator | C192: 189 | D192: No Escalators or Travellator | E192: Geen roltrap | F192: Pas d’escalators ou tapis roulants | G192: Keine Rolltreppen oder Rollsteige | H192: Sin escaleras mecánicas ni cintas | I192: Não há escadas rolantes ou passadeiras rolantes
A193: 190 | C193: 190
A194: 191 | B194: =IF(ISBLANK(VLOOKUP(A194,$C$4:$V$10001,1+$A$1)),D194,VLOOKUP(A194,$C$4:$V$10001,1+$A$1)) -> <10% | C194: 191 | D194: <10% | E194: <10% | F194: <10% | G194: <10% | H194: <10% | I194: <10%
A195: 192 | B195: =IF(ISBLANK(VLOOKUP(A195,$C$4:$V$10001,1+$A$1)),D195,VLOOKUP(A195,$C$4:$V$10001,1+$A$1)) -> 10-15% | C195: 192 | D195: 10-15% | E195: 10-15% | F195: 10-15% | G195: 10-15% | H195: 10-15% | I195: 10-15%
A196: =C196 -> 193 | B196: =IF(ISBLANK(VLOOKUP(A196,$C$4:$V$10001,1+$A$1)),D196,VLOOKUP(A196,$C$4:$V$10001,1+$A$1)) -> >15% | C196: 193 | D196: >15% | E196: >15% | F196: >15% | G196: >15% | H196: >15% | I196: >15%
A197: 194 | B197: =IF(ISBLANK(VLOOKUP(A197,$C$4:$V$10001,1+$A$1)),D197,VLOOKUP(A197,$C$4:$V$10001,1+$A$1)) -> no ramps | C197: 194 | D197: no ramps | E197: Geen hellingbanen | F197: Pas de rampes | G197: Keine Rampen | H197: sin rampas | I197: Sem rampas
A198: 195 | C198: =+C197+1 -> 195
A199: 196 | B199: =IF(ISBLANK(VLOOKUP(A199,$C$4:$V$10001,1+$A$1)),D199,VLOOKUP(A199,$C$4:$V$10001,1+$A$1)) -> < 3m | C199: 196 | D199: < 3m | E199: < 3m | F199: < 3m | G199: < 3m | H199: < 3m | I199: < 3m
A200: 197 | B200: =IF(ISBLANK(VLOOKUP(A200,$C$4:$V$10001,1+$A$1)),D200,VLOOKUP(A200,$C$4:$V$10001,1+$A$1)) -> 3m - 3.3m | C200: 197 | D200: 3m - 3.3m | E200: 3m - 3.3m | F200: 3m - 3.3m | G200: 3m - 3.3m | H200: 3m - 3.3m | I200: 3m - 3.3m
... 385 more rows

Sheet Tags (hidden)
A1: ='Languages Available'!B1 -> 1 | B1: Language Selected | D1: ='General Info'!E3 -> English
D2: 1 | E2: 2 | F2: 3 | G2: 4 | H2: 5 | I2: 6
B3: Active Language | D3: =VLOOKUP(D2,'Languages Available'!$A$3:$B$23,2) -> English | E3: =VLOOKUP(E2,'Languages Available'!$A$3:$B$23,2) -> Dutch | F3: =VLOOKUP(F2,'Languages Available'!$A$3:$B$23,2) -> Français | G3: =VLOOKUP(G2,'Languages Available'!$A$3:$B$23,2) -> Deutsch | H3: =VLOOKUP(H2,'Languages Available'!$A$3:$B$23,2) -> Spanish | I3: =VLOOKUP(I2,'Languages Available'!$A$3:$B$23,2) -> Portuguese
A4: =C4 -> 1 | B4: =IF(ISBLANK(VLOOKUP(A4,$C$4:$V$10002,1+$A$1)),D4,VLOOKUP(A4,$C$4:$V$10002,1+$A$1)) -> Date | C4: 1 | D4: Date | E4: Datum | F4: Date | G4: Datum | H4: Fecha | I4: Data
A5: 2 | B5: Language | C5: 2 | D5: Language | E5: Taal | F5: Langue | G5: Sprache | H5: Idioma | I5: Língua
A6: 3 | B6: Country | C6: 3 | D6: Country | E6: Land | F6: Pays | G6: Land | H6: País | I6: País
A7: 4 | B7: Name of Car Park | C7: 4 | D7: Name of Car Park | E7: Naam van de garage | F7: Nom du parking | G7: Name des Parkhauses | H7: Nombre del aparcamiento | I7: Nome do Parque
A8: 5 | B8: Address | C8: 5 | D8: Address | E8: Adres | F8: Adresse | G8: Adresse | H8: Dirección | I8: Morada
A9: 6 | B9: City | C9: 6 | D9: City | E9: Stad | F9: Ville | G9: Stadt | H9: Ciudad | I9: Localidade
A10: 7 | B10: Number of Spaces | C10: 7 | D10: Number of Spaces | E10: Aantal parkeerplaatsen | F10: Nombre de places de stationnement | G10: Anzahl der Stellplätze | H10: Número de plazas | I10: Número de Lugares
A11: 8 | B11: Operator | C11: 8 | D11: Operator | E11: Exploitant | F11: Exploitant | G11: Betreiber | H11: Operador | I11: Operador
A12: 9 | B12: Contact Name | C12: 9 | D12: Contact Name | E12: Contactpersoon | F12: Personne de contact | G12: Kontaktperson | H12: Persona de contacto | I12: Pessoa a contatar
A13: 10 | B13: e-Mail | C13: 10 | D13: e-Mail | E13: e-mail | F13: e-mail | G13: e-Mail | H13: Correo electrónico | I13: E-mail
A14: 11 | B14: Phone | C14: 11 | D14: Phone | E14: Telefoon nummer | F14: Téléphone | G14: Telefon | H14: Teléfono | I14: Telefone
A15: 12 | B15: Judged by | C15: 12 | D15: Judged by | E15: Beoordeeld door: | F15: Evalué par | G15: Geprüft von | H15: Valorado por | I15: Verificado por
A16: 13 | B16: Evaluation Conditions | C16: 13 | D16: Evaluation Conditions | E16: Condities tijdens de beoordeling | F16: Conditions de l’évaluation | G16: Prüfbedingungen | H16: Condiciones de la valoración | I16: Condições de Avaliação
A17: 14 | B17: Time of Day | C17: 14 | D17: Time of Day | E17: tijdstip | F17: Moment de la journée | G17: Tageszeit | H17: Hora del día | I17: Periodo do dia
A18: 15 | B18: Weather Conditions | C18: 15 | D18: Weather Conditions | E18: Weersomstandigheden | F18: Conditions météo | G18: Wetterbedingungen | H18: Condiciones climáticas | I18: Condições Meteorológicas
A19: 16 | B19: Occupancy Rate | C19: 16 | D19: Occupancy Rate | E19: Bezetting van de garage | F19: Taux d’occupation | G19: Auslastung | H19: Ratio de ocupación | I19: Taxa de ocupação
A20: 17 | B20: Completed | C20: 17 | D20: Completed | E20: Gereed | F20: Complet | G20: vollständig | H20: Completo | I20: Completo
A21: =C21 -> 18 | B21: Incompleted | C21: 18 | D21: Incompleted | E21: Nog niet gereed | F21: Incomplet | G21: unvollständig | H21: Incompleto | I21: Incompleto
A22: 19 | B22: Compliant | C22: 19 | D22: Compliant | E22: Accoord | F22: Conforme | G22: übereinstimmend | H22: Conforme | I22: Conforme
A23: 20 | B23: Comments | C23: 20 | D23: Comments | E23: Commentaar | F23: Commentaires | G23: Kommentare | H23: Comentarios | I23: Comentários
A24: 21 | B24: Number of Ok: | C24: 21 | D24: Number of Ok: | E24: Aantal accoord | F24: Nombre de OK | G24: Anzahl von Übereinstimmungen | H24: Número de OK: | I24: Número de Ok:
A25: 22 | B25: Number of Fails: | C25: 22 | D25: Number of Fails: | E25: Aantal niet accoord | F25: Nombre de NOK | G25: Anzahl von Mängeln | H25: Número de fallos: | I25: Número de Falhas:
A26: 23 | B26: Not Evaluated: | C26: 23 | D26: Not Evaluated: | E26: Niet ingevuld | F26: Non évalué | G26: nicht überprüft | H26: No evaluado | I26: Não avaliado:
A27: 24 | B27: Pass | C27: 24 | D27: Pass | E27: Accoord | F27: Accepté | G27: bestanden | H27: Aprobado | I27: Aprovado
A28: 25 | B28: Fail | C28: 25 | D28: Fail | E28: Niet accoord | F28: Refusé | G28: nicht bestanden | H28: Suspendido | I28: Reprovado
A29: 26 | B29: Incomplete | C29: 26 | D29: Incomplete | E29: Niet compleet | F29: Incomplet | G29: unvollständig | H29: Incompleto | I29: Incompleto
A30: 27 | B30: Total Items | C30: 27 | D30: Total Items | E30: Totaal items | F30: Nombre de sections | G30: Summe der Positionen | H30: Total elementos | I30: Total Items
A31: 28 | B31: Total Items + SubItems | C31: 28 | D31: Total Items + SubItems | E31: Totaal incl sub-items | F31: Nombre de sections et sous-sections | G31: Summe der Positionen und Unterpositionen | H31: Total elementos + sub-elementos | I31: Total Items + Subitems
A32: 29 | B32: Itens Completed | C32: 29 | D32: Itens Completed | E32: Items ingevuld | F32: Nombre de sections complètes | G32: vollständige Positionen | H32: Elementos completados | I32: Itens Completos
A33: 30 | B33: Not measured | C33: 30 | D33: Not measured | E33: Niet ingevuld | F33: Nombre de sections non évaluées | G33: nicht gemessen | H33: No medido | I33: Não medido
A34: 31 | B34: Score | C34: 31 | D34: Score | E34: Score | F34: Score | G34: Punktzahl | H34: Puntuación | I34: Pontuação atribuída
A35: 32 | B35: Maximum Score | C35: 32 | D35: Maximum Score | E35: Maximun score | F35: Score maximum | G35: Maximale Punktzahl | H35: Puntuación máxima | I35: Pontuação Máxima
A36: 33 | B36: Percentage | C36: 33 | D36: Percentage | E36: % Score | F36: Pourcentage | G36: Prozentsatz | H36: Porcentaje | I36: Percentagem
A37: 34 | B37: Category Value | C37: 34 | D37: Category Value | E37: Categorie gewichtsfactor | F37: Pondération de la section | G37: Wert der Kategorie | H37: Valor de la categoría | I37: Valor da Categoria
A38: 35 | B38: Global Evaluation | C38: 35 | D38: Global Evaluation | E38: Score overzicht | F38: Evaluation globale | G38: Gesamtbewertung | H38: Evaluación global | I38: Avaliação Global
A39: 36 | B39: Category | C39: 36 | D39: Category | E39: Categorie | F39: Catégorie | G39: Kategorie | H39: Categoría | I39: Categoria
A40: 37 | B40: Number of Items | C40: 37 | D40: Number of Items | E40: Aantal items | F40: Nombre de sections | G40: Anzahl der Positionen | H40: Número de elementos | I40: Número de itens
A41: 38 | B41: Number of Oks | C41: 38 | D41: Number of Oks | E41: Aantal accoord | F41: Nombre de OK | G41: Anzahl der Übereinstimmungen | H41: Número de OK: | I41: Número de Oks
A42: 39 | B42: Number of Fails | C42: 39 | D42: Number of Fails | E42: Aantal niet accoord | F42: Nombre de NOK | G42: Anzahl der Mängel | H42: Número de fallos: | I42: Número de Falhas
A43: 40 | B43: To be Completed | C43: 40 | D43: To be Completed | E43: Nog in te vullen | F43: A compléter | G43: zu vervollständigen | H43: A rellenar | I43: Para ser concluído
A44: 41 | B44: % Obtained | C44: 41 | D44: % Obtained | E44: % score | F44: % obtenu | G44: % erreicht | H44: % obtenido | I44: % Obtida
A45: 42 | B45: Minimum | C45: 42 | D45: Minimum | E45: Minimum vereiste | F45: Minimum | G45: Minimum | H45: Mínimo | I45: Mínimo
A46: 43 | B46: Category Points | C46: 43 | D46: Category Points | E46: Categorie gewichtsfactor | F46: Pondération | G46: Punktzahl der Kategorie | H46: Puntos de la categoría | I46: Categoria de Pontos
A47: 44 | B47: Points Obtained | C47: 44 | D47: Points Obtained | E47: Score punten | F47: Résultats | G47: erreichte Punktzahl | H47: Puntos obtenidos | I47: Pontos Obtidos
A48: 45 | B48: Status | C48: 45 | D48: Status | E48: Status | F48: Statut | G48: Status | H48: Estado | I48: Estado
A49: 46 | B49: % Completion: | C49: 46 | D49: % Completion: | E49: % ingevuld | F49: % nombre réponse requise | G49: % Vollständigkeit | H49: % ejecución | I49: % Completa:
A50: 47 | B50: Subtotals | C50: 47 | D50: Subtotals | E50: Subtotaal | F50: Sous-total | G50: Zwischensummen | H50: Subtotales | I50: Subtotal
A51: 48 | B51: Totals | C51: 48 | D51: Totals | E51: Totaal | F51: Total | G51: Summen | H51: Totales | I51: Total
A52: 49 | B52: Minimum Requirement for ESPA Award | C52: 49 | D52: Minimum Requirement for ESPA Award | E52: Minimum vereiste voor ESPA award | F52: Condition minimum pour obtention ESPA | G52: Mindestanforderung für ESPA Award | H52: Requisito mínimo para premio ESPA | I52: Mínimo requerido para Prémio ESPA
A53: 50 | B53: Categories Minimum Points | C53: 50 | D53: Categories Minimum Points | E53: Minimum vereiste punten per categorie behaald | F53: Sections résultat minimum atteints | G53: Mindestpunktzahl dieser Kategorie | H53: Puntuación mínima de las categorías | I53: Patamares Mínimos em Todas as Categorias
A54: 51 | B54: Espa Award | C54: 51 | D54: Espa Award | E54: Espa Award | F54: Label ESPA | G54: ESPA Award | H54: Premio ESPA | I54: Prémio ESPA
A55: 52 | B55: Item List | C55: 52 | D55: Item List | E55: Item List | F55: Liste des sections | G55: Positionsliste | H55: Lista de elementos | I55: Lista de Itens
A56: 53 | B56: Measured value | C56: 53 | D56: Measured value | E56: Resultaat meting | F56: Résultats mesurés | G56: Messwerte | H56: Valor medido | I56: Valor Medido
A57: 54 | B57: Maximum Contribuition for Final Score | C57: 54 | D57: Maximum Contribuition for Final Score | E57: Maximum bijdrage eindscore | F57: Contribution maximale résultat final | G57: maximaler Beitrag zum Endergebnis | H57: Contribución máxima a la puntuación final | I57: Contribuição Máxima para Pontuação Final
A58: 55 | B58: Contribuition for Final Score | C58: 55 | D58: Contribuition for Final Score | E58: Bijdrage voor eindscore | F58: Contribution résultat final | G58: Beitrag zum Endergebnis | H58: Contribución a la puntuación final | I58: Contribuição para a Pontuação Final
A59: 56 | B59: Remarks | C59: 56 | D59: Remarks | E59: Opmerkingen | F59: Remarques | G59: Anmerkungen | H59: Comentarios | I59: Observações
A60: 57 | B60: Notes | C60: 57 | D60: Notes | E60: Reacties | F60: Commentaires | G60: Anmerkungen | H60: Notas | I60: Notas
A61: 58 | B61: This will erase all data in ESPA Worksheet. Are you sure? | C61: 58 | D61: This will erase all data in ESPA Worksheet. Are you sure? | E61: Dit zal alle bestaande data in het spreadsheet verwijderen. Wilt U dat? | G61: Dies wird alle Daten in dem ESPA Arbeitsblatt löschen. Sind Sie sicher? | H61: Se borrarán todos los datos de la hoja de cálculo ESPA. Desea continuar? | I61: Isto irá apagar todos os dados na Folha de Trabalho ESPA. Tem a certeza?
A62: 59 | B62: You have entered an incorrect password. ESPA Worksheets could not be umprotected. | C62: 59 | D62: You have entered an incorrect password. ESPA Worksheets could not be umprotected. | E62: U heeft een ongeldig wachtwoord ingevoerd, beveiliging kan niet worden opgeheven | G62: Sie haben ein unzulässiges Passwort eingegeben. Die ESPA Arbeitsblätter können nicht ungeschützt bleiben. | H62: La constraseña introducida es incorrecta. No se ha podido desproteger la hoja de cálculo. | I62: Introduziu uma password incorreta. A Folha de Trabalho ESPA não pode ser desprotegida.
A63: 60 | B63: Please enter your password to umprotect ESPA Worksheet: | C63: 60 | D63: Please enter your password to umprotect ESPA Worksheet: | E63: Voer Uw wachtwoord in om de beveiliging van het spreadsheet op te heffen | G63: Bitte geben Sie Ihr Passwort ein um das ESPA Arbeitsblatt zu öffnen. | H63: Introduzca la contraseña para desproteger la hoja de cálculo ESPA: | I63: Por favor introduza a password para desproteger a Folha de Trabalho ESPA
A64: 61 | B64: Password Input | C64: 61 | D64: Password Input | E64: Invoer wachtwoord | G64: Eingabe Passwort | H64: Introduzca la contraseña | I64: Senha de entrada
A65: 62 | B65: Incorrect Password | C65: 62 | D65: Incorrect Password | E65: Onjuist wachtwoord | G65: Unzulässiges Passwort | H65: Contraseña incorrecta | I65: Password incorreta
A66: 63 | B66: This will print 15 pages on your active printer. Are you sure? | C66: 63 | D66: This will print 15 pages on your active printer. Are you sure? | E66: Dit commando leidt tot 15 afdrukpagina's op de actieve printer. Wilt U dat? | G66: Hierdurch werden 14 Seiten auf Ihrem aktiven Drucker ausgedruckt. Sind Sie sicher? | H66: Se imprimirán 15 páginas en su inmpresora activa. Desea continuar? | I66: Irá imprimir 15 páginas na sua impressora ativa. Tem a certeza?
A67: 64 | B67: Alert | C67: 64 | D67: Alert | E67: Let op! | G67: Alarm | H67: Alerta | I67: Aviso
A68: 65 | B68: =IF(ISBLANK(VLOOKUP(A68,$C$4:$V$10002,1+$A$1)),D68,VLOOKUP(A68,$C$4:$V$10002,1+$A$1)) -> Changing languge will reset al your previous answers. Do you want to proceed? | C68: 65 | D68: Changing languge will reset al your previous answers. Do you want to proceed? | E68: Wijziging van de taal zal alle reeds gegeven antwoorden verwijderen. Wilt U doorgaan? | G68: Das Ändern der Sprache wird alle Ihre bisherigen Eingaben zurücksetzen. Sind Sie sicher? | H68: El cambio de idioma eliminará sus respuestas anteriores. Desea continuar? | I68: Alterar o idioma apaga todas as respostas anteriores. Deseja continuar?
A69: 66 | B69: Mandatory Conditions for Golden Award | C69: 66 | D69: Mandatory Conditions for Golden Award | E69: Verplichte minimumeisen voor gold award | G69: Mindestbedingungen für den Gold Award | H69: Condiciones obligatorias para premio Oro | I69: Condições Obrigatórias para ESPA Dourado
A70: 67 | B70: ESPA Gold Award | C70: 67 | D70: ESPA Gold Award | E70: ESPA Gold Award | G70: ESPA Gold Award | H70: Permio Oro ESPA | I70: Prémio ESPA Dourado
A71: 68 | B71: Global Evaluation - Gold Award | C71: 68 | D71: Global Evaluation - Gold Award | E71: Algemene waardering, gold award | G71: Globale Bewertung - Gold Award | H71: Evaluación global - Premio Oro | I71: Avaliação Global - Prémio Dourado
A72: 69 | B72: The ESPA Worksheet uses Macros. Please enable content or close and reopen with Macros Enabled | C72: 69 | D72: The ESPA Worksheet uses Macros. Please enable content or close and reopen with Macros Enabled | E72: Het ESPA werkblad gebruikt makro's, sluit het bestand en heropen met "makro's mogelijk" | G72: Das ESPA Arbeitsblatt verwendet Macros. Bitte das Arbeitsblatt schließen, Macros zulassen und neu anschließend erneut öffnen. | H72: La hoja de cálculo ESPA utiliza Macros. Cierre el archivo y vuelva a abrirlo con la opción Macros activadas. | I72: A folha de cálculo ESPA utiliza Macros. Por favor feche e volte a abrir o ficheiro com a opção Macros activada.
A73: 70 | B73: Year of Construction | C73: 70 | D73: Year of Construction | E73: Bouwjaar | G73: Baujahr | H73: Año de Construción | I73: Ano de Construção
A74: 71 | B74: Structure | C74: 71 | D74: Structure | E74: Gebouw | G74: Bauart | I74: Estrutura
A75: 72 | B75: Type | C75: 72 | D75: Type | E75: Type | G75: Typ | I75: Tipo
A76: 73 | B76: Access Control System | C76: 73 | D76: Access Control System | E76: Toegangscontrole | G76: Zutrittskontrolle | I76: Sistema de Controle de Acessos
A77: 74 | B77: Number of Lifts | C77: 74 | D77: Number of Lifts | E77: Aantal liften | G77: Anzahl Fahrstühle | I77: Número de Elevadores
A78: 75 | B78: Number of Floors | C78: 75 | D78: Number of Floors | E78: Aantal verdiepingen | G78: Anzahl Ebenen | I78: Número de Pisos
A79: 76 | B79: Car Park Main Characteristics | C79: 76 | D79: Car Park Main Characteristics | E79: Hoofdkenmerken van de garage | G79: Stammdaten Einrichtung | I79: Caracteristicas Principais
A80: 77 | B80: 0 | C80: 77
A81: 78 | B81: 0 | C81: 78
A82: 79 | B82: 0 | C82: 79
A83: 80 | B83: 0 | C83: 80
A84: 81 | B84: 0 | C84: 81
A85: =C85 -> 82 | B85: 0 | C85: 82
A86: 83 | B86: 0 | C86: 83
A87: 84 | B87: 0 | C87: 84
A88: 85 | B88: 0 | C88: 85
A89: 86 | B89: 0 | C89: 86
A90: 87 | B90: 0 | C90: 87
A91: 88 | B91: 0 | C91: 88
A92: 89 | B92: 0 | C92: 89
A93: 90 | B93: 0 | C93: 90
A94: 91 | B94: 0 | C94: 91
A95: 92 | B95: 0 | C95: 92
A96: 93 | B96: 0 | C96: 93
A97: 94 | B97: 0 | C97: 94
A98: 95 | B98: 0 | C98: 95
A99: 96 | B99: 0 | C99: 96
A100: 97 | B100: 0 | C100: 97
A101: 98 | B101: 0 | C101: 98
A102: 99 | B102: 0 | C102: 99
A103: 100 | B103: 0 | C103: 100
A104: 101 | B104: 0 | C104: 101
A105: 102 | B105: 0 | C105: 102
A106: 103 | B106: 0 | C106: 103
A107: 104 | B107: 0 | C107: 104
A108: 105 | B108: 0 | C108: 105
A109: 106 | B109: 0 | C109: 106
A110: 107 | B110: 0 | C110: 107
A111: 108 | B111: 0 | C111: 108
A112: 109 | B112: 0 | C112: 109
A113: 110 | B113: 0 | C113: 110
A114: 111 | B114: 0 | C114: 111
A115: 112 | B115: 0 | C115: 112
A116: 113 | B116: 0 | C116: 113
A117: 114 | B117: 0 | C117: 114
A118: 115 | B118: 0 | C118: 115
A119: 116 | B119: 0 | C119: 116
A120: 117 | B120: 0 | C120: 117
A121: 118 | B121: 0 | C121: 118
A122: 119 | B122: 0 | C122: 119
A123: 120 | B123: 0 | C123: 120
A124: 121 | B124: 0 | C124: 121
A125: 122 | B125: 0 | C125: 122
A126: 123 | B126: 0 | C126: 123
A127: 124 | B127: 0 | C127: 124
A128: 125 | B128: 0 | C128: 125
A129: 126 | B129: 0 | C129: 126
A130: 127 | B130: 0 | C130: 127
A131: 128 | B131: 0 | C131: 128
A132: 129 | B132: =IF(ISBLANK(VLOOKUP(A132,$C$4:$V$10002,1+$A$1)),D132,VLOOKUP(A132,$C$4:$V$10002,1+$A$1)) -> 0 | C132: 129
A133: 130 | B133: 0 | C133: 130
A134: 131 | B134: 0 | C134: 131
A135: 132 | B135: 0 | C135: 132
A136: 133 | B136: 0 | C136: 133
A137: 134 | B137: 0 | C137: 134
A138: 135 | B138: 0 | C138: 135
A139: 136 | B139: 0 | C139: 136
A140: 137 | B140: 0 | C140: 137
A141: 138 | B141: 0 | C141: 138
A142: 139 | B142: 0 | C142: 139
A143: 140 | B143: 0 | C143: 140
A144: 141 | B144: 0 | C144: 141
A145: 142 | B145: 0 | C145: 142
A146: 143 | B146: 0 | C146: 143
A147: 144 | B147: 0 | C147: 144
A148: 145 | B148: 0 | C148: 145
A149: =C149 -> 146 | B149: 0 | C149: 146
A150: 147 | B150: 0 | C150: 147
A151: 148 | B151: 0 | C151: 148
A152: 149 | B152: 0 | C152: 149
B603: =VLOOKUP(A603,$C$20:$V$10018,1+$A$1) -> 

Sheet Help (hidden)
A1: ='Languages Available'!B1 -> 1 | B1: Language Selected | D1: ='General Info'!E3 -> English
D2: 1 | E2: 2 | F2: 3 | G2: 4
B3: Active Language | D3: =VLOOKUP(D2,'Languages Available'!$A$3:$B$23,2) -> English | E3: =VLOOKUP(E2,'Languages Available'!$A$3:$B$23,2) -> Dutch | F3: =VLOOKUP(F2,'Languages Available'!$A$3:$B$23,2) -> Français | G3: =VLOOKUP(G2,'Languages Available'!$A$3:$B$23,2) -> Deutsch
A4: =C4 -> 1 | B4: =VLOOKUP(A4,$C$3:$AZ$199,1+Languages!$A$1) -> God save the queen Suspendisse hendrerit ligula eget odio. Sed erat nisi, rhoncus id, imperdiet quis, blandit et, felis. In at nulla mattis neque commodo venenatis. Cras ultrices tincidunt risus. Quisque dictum diam adipiscing arcu. In diam turpis, suscipit fringilla, dapibus quis, dictum ut, ipsum. Phasellus id elit in dui bibendum bibendum. Ut metus diam, lacinia ut, tincidunt eu, dapibus sit amet, mauris. Donec varius, felis eget lobortis vehicula, magna sapien elementum tellus, ut iaculis dui orci sed arcu. Nam nibh erat, auctor sit amet, commodo ut, ornare id, ante. In imperdiet, justo id eleifend faucibus, urna dolor consectetuer dui, vel pretium risus purus sed pede.Etiam rutrum libero posuere libero. | C4: 1 | D4: God save the queen Suspendisse hendrerit ligula eget odio. Sed erat nisi, rhoncus id, imperdiet quis, blandit et, felis. In at nulla mattis neque commodo venenatis. Cras ultrices tincidunt risus. Quisque dictum diam adipiscing arcu. In diam turpis, suscipit fringilla, dapibus quis, dictum ut, ipsum. Phasellus id elit in dui bibendum bibendum. Ut metus diam, lacinia ut, tincidunt eu, dapibus sit amet, mauris. Donec varius, felis eget lobortis vehicula, magna sapien elementum tellus, ut iaculis dui orci sed arcu. Nam nibh erat, auctor sit amet, commodo ut, ornare id, ante. In imperdiet, justo id eleifend faucibus, urna dolor consectetuer dui, vel pretium risus purus sed pede.Etiam rutrum libero posuere libero. | E4: Amsterdam Philips Shell Suspendisse hendrerit ligula eget odio. Sed erat nisi, rhoncus id, imperdiet quis, blandit et, felis. In at nulla mattis neque commodo venenatis. Cras ultrices tincidunt risus. Quisque dictum diam adipiscing arcu. In diam turpis, suscipit fringilla, dapibus quis, dictum ut, ipsum. Phasellus id elit in dui bibendum bibendum. Ut metus diam, lacinia ut, tincidunt eu, dapibus sit amet, mauris. Donec varius, felis eget lobortis vehicula, magna sapien elementum tellus, ut iaculis dui orci sed arcu. Nam nibh erat, auctor sit amet, commodo ut, ornare id, ante. In imperdiet, justo id eleifend faucibus, urna dolor consectetuer dui, vel pretium risus purus sed pede.Etiam rutrum libero posuere libero. | F4: Alons enfants de patrie Suspendisse hendrerit ligula eget odio. Sed erat nisi, rhoncus id, imperdiet quis, blandit et, felis. In at nulla mattis neque commodo venenatis. Cras ultrices tincidunt risus. Quisque dictum diam adipiscing arcu. In diam turpis, suscipit fringilla, dapibus quis, dictum ut, ipsum. Phasellus id elit in dui bibendum bibendum. Ut metus diam, lacinia ut, tincidunt eu, dapibus sit amet, mauris. Donec varius, felis eget lobortis vehicula, magna sapien elementum tellus, ut iaculis dui orci sed arcu. Nam nibh erat, auctor sit amet, commodo ut, ornare id, ante. In imperdiet, justo id eleifend faucibus, urna dolor consectetuer dui, vel pretium risus purus sed pede.Etiam rutrum libero posuere libero. | G4: Ich bin ein berliner Suspendisse hendrerit ligula eget odio. Sed erat nisi, rhoncus id, imperdiet quis, blandit et, felis. In at nulla mattis neque commodo venenatis. Cras ultrices tincidunt risus. Quisque dictum diam adipiscing arcu. In diam turpis, suscipit fringilla, dapibus quis, dictum ut, ipsum. Phasellus id elit in dui bibendum bibendum. Ut metus diam, lacinia ut, tincidunt eu, dapibus sit amet, mauris. Donec varius, felis eget lobortis vehicula, magna sapien elementum tellus, ut iaculis dui orci sed arcu. Nam nibh erat, auctor sit amet, commodo ut, ornare id, ante. In imperdiet, justo id eleifend faucibus, urna dolor consectetuer dui, vel pretium risus purus sed pede.Etiam rutrum libero posuere libero.
A5: 2 | B5: =VLOOKUP(A5,$C$3:$AZ$199,1+Languages!$A$1) -> Help in English | C5: 2 | D5: Help in English | E5: Help in Dutch | F5: Help in Dutch | G5: Help in Deutsch

Sheet Languages Available (hidden)
A1: Language List | B1: =SUM(C3:C43) -> 1 | C1: ='General Info'!E3 -> English | D1: =SUM(E3:E8) -> 0 | E1: =VLOOKUP(D1,A3:B12,2) -> 
G2: pw | H2: espa2014
A3: 1 | B3: English | C3: =IF(B3=$C$1,A3,0) -> 1 | E3: =IF(Translations!$C$1='Languages Available'!B3,A3,0) -> 0
A4: 2 | B4: Dutch | C4: =IF(B4=$C$1,A4,0) -> 0 | E4: =IF(Translations!$C$1='Languages Available'!B4,A4,0) -> 0
A5: 3 | B5: Français | C5: =IF(B5=$C$1,A5,0) -> 0 | E5: =IF(Translations!$C$1='Languages Available'!B5,A5,0) -> 0
A6: 4 | B6: Deutsch | C6: =IF(B6=$C$1,A6,0) -> 0 | E6: =IF(Translations!$C$1='Languages Available'!B6,A6,0) -> 0
A7: 5 | B7: Spanish | C7: =IF(B7=$C$1,A7,0) -> 0 | E7: =IF(Translations!$C$1='Languages Available'!B7,A7,0) -> 0
A8: 6 | B8: Portuguese | C8: 0 | E8: =IF(Translations!$C$1='Languages Available'!B8,A8,0) -> 0

Sheet Aux (hidden)
A1: Tabelas Auxiliares | E1: Tabela de Worksheets | L1: Available Countries
A3: Configurações | E3: 1
E4: 2
A5: Sistema | B5: =win_or_mac() -> mac | E5: 3
A6: Versão | B6: =excel_version() -> 15.24 | E6: 4
E7: 5
A8: Default email system | C8: =IF(B5="mac",DefaultMailProgram(),"windows send mail") -> com.apple.mail | E8: 6
E9: 7
E10: 8
E11: 9
E12: 10
E13: 11
E14: 12
E15: 13
E16: 14
E17: 15
A18: A fazer: | E18: 16
E19: 17
A20: Help System | E20: 18
A21: Splash Screen | E21: 19
A22: Configuração Inicial do Parque | E22: 20
A23: Gold Award | E23: 21
E24: 22
A25: Sistema de entradas e saídas. | E25: 23
A26: Mover tabela auxiliar para a página certa | E26: 24

Sheet Translations
B1: from English to:
B3: Text | C3: Text
A4: 1 | B4: Mandatory Minimum Conditions | C4: =VLOOKUP(A4,Languages!$C$4:$I$273,1+'Languages Available'!$D$1) -> 1
A5: =A4+1 -> 2 | B5: Car park must be for public use | C5: =VLOOKUP(A5,Languages!$C$4:$I$273,1+'Languages Available'!$D$1) -> 2
A6: =A5+1 -> 3 | B6: Minimum headroom = 1.90 m, generally in the public areas. Incidental lower obstacles must be clearly marked. | C6: =VLOOKUP(A6,Languages!$C$4:$I$273,1+'Languages Available'!$D$1) -> 3
A7: 4 | B7: Minimum headroom = 2,00 m, generally in the public areas. Incidental lower obstacles must be clearly marked. | C7: =VLOOKUP(A7,Languages!$C$4:$I$273,1+'Languages Available'!$D$1) -> 4
A8: 5 | B8: There must be at least one dedicated entry and exit lane although additional tidal flow lanes are allowed. | C8: =VLOOKUP(A8,Languages!$C$4:$I$273,1+'Languages Available'!$D$1) -> 5
A9: 6 | B9: 70% of bays must be at least 2.30m wide. For renovated car parks, over ten years old, minimum bay width of 2.25m is allowed (in that case a penalty applies - check M8). | C9: =VLOOKUP(A9,Languages!$C$4:$I$273,1+'Languages Available'!$D$1) -> 6
A10: 7 | B10: 70% of bays must be at least 2.40m wide. | C10: =VLOOKUP(A10,Languages!$C$4:$I$273,1+'Languages Available'!$D$1) -> 7
A11: 8 | B11: All straight ramps for unidirectional traffic must be minimum 2.7 metres wide. Bidirectional ramps must be at least 6m wide with lane markings. Ramp width is measured between walls or pillars | C11: =VLOOKUP(A11,Languages!$C$4:$I$273,1+'Languages Available'!$D$1) -> 8
A12: 9 | B12: Curved ramps for single directional traffic must have an external radius of minimum 8.00 metres with lane width of minimum 3.5 metres. For bidirectional curved ramps this applies for the inner driving lane. The outside driving lane must be minimum 3.5 metres wide as well. | C12: =VLOOKUP(A12,Languages!$C$4:$I$273,1+'Languages Available'!$D$1) -> 9
A13: 10 | B13: Ramp gradients must not exceed 20% , to be measured at the middle of driving lane. At bidirectional curved ramps this applies for the inner (steepest) driving lane. | C13: =VLOOKUP(A13,Languages!$C$4:$I$273,1+'Languages Available'!$D$1) -> 10
A14: 11 | B14: If the car park has paid parking and access control by barriers or gates, staff must be contactable at the pay point/exit point and secured pedestrian entries. | C14: =VLOOKUP(A14,Languages!$C$4:$I$273,1+'Languages Available'!$D$1) -> 11
A15: 12 | B15: Receipt for payment must be provided when requested. | C15: =VLOOKUP(A15,Languages!$C$4:$I$273,1+'Languages Available'!$D$1) -> 12
A16: 13 | B16: All turning movements must be capable of being completed without reversing (moving in/out the parking bay and cul-de-sacs excluded) | C16: =VLOOKUP(A16,Languages!$C$4:$I$273,1+'Languages Available'!$D$1) -> 13
A17: 14 | B17: Average light levels on parking area at floor is at minimum 20 Lux | C17: =VLOOKUP(A17,Languages!$C$4:$I$273,1+'Languages Available'!$D$1) -> 14
A18: 15 | B18: Average light levels on parking area at floor is at minimum 50 Lux | C18: =VLOOKUP(A18,Languages!$C$4:$I$273,1+'Languages Available'!$D$1) -> 15
A19: 16 | B19: Lighting | C19: =VLOOKUP(A19,Languages!$C$4:$I$273,1+'Languages Available'!$D$1) -> 16
A20: 17 | B20: Item List (values in Lux, see user manual for measurement) | C20: =VLOOKUP(A20,Languages!$C$4:$I$273,1+'Languages Available'!$D$1) -> 17
A21: 18 | B21: Vehicular entry area; at floor level • Above 200 Lux = 5; • Between 75– 200 Lux: 0,04 pt per Lux over 75 • Below 75 Lux = 0 | C21: =VLOOKUP(A21,Languages!$C$4:$I$273,1+'Languages Available'!$D$1) -> 18
A22: 19 | B22: Entry; at 1 m height near ticket-machine • Above 200 Lux = 3; • Between100– 200 Lux: 0,03 pt per Lux over 100 • Below 100 Lux = 0 | C22: =VLOOKUP(A22,Languages!$C$4:$I$273,1+'Languages Available'!$D$1) -> 19
A23: 20 | B23: Exit; at 1 m height near barrier/ticket-machine • Above 200 Lux = 3; • Between100– 200 Lux: 0,03 pt per Lux over 100 • Below 100 Lux= 0 | C23: =VLOOKUP(A23,Languages!$C$4:$I$273,1+'Languages Available'!$D$1) -> 20
A24: 21 | B24: At pay-machine; at 1 m height • Above 200 Lux =4; • Between100– 200 Lux: 0,04 pt per Lux over 100 • Below 100 Lux= 0; • No Pay Machines : same as exit (enter zero if this is the case) | C24: =VLOOKUP(A24,Languages!$C$4:$I$273,1+'Languages Available'!$D$1) -> 21
A25: 22 | B25: At cashier; at counter height • Above 200 Lux =4; • Between100– 200 Lux: 0,04 pt per Lux over 100 • Below 100 Lux= 0; • No cashier = 3 (enter zero if this is the case) | C25: =VLOOKUP(A25,Languages!$C$4:$I$273,1+'Languages Available'!$D$1) -> 22
A26: 23 | B26: In elevator; at floor level • Above 70 Lux = 4; • Between30– 70 Lux: 0,1 pt per Lux over 30 • Below 30 Lux = 0; • Single level without elevator = 3 (enter zero if this is the case) | C26: =VLOOKUP(A26,Languages!$C$4:$I$273,1+'Languages Available'!$D$1) -> 23
A27: 24 | B27: In staircases and all other exclusive pedestrian routes; at floor level • Above 90 Lux = 3; • Between30– 90 Lux: 0,05 pt per Lux over 30 • Below 30 Lux = 0; | C27: =VLOOKUP(A27,Languages!$C$4:$I$273,1+'Languages Available'!$D$1) -> 24
A28: 25 | B28: Light levels on parking area at floor level: (plesase fill grid below) Average light level of grid: • Above 100 Lux= 10; • Between20– 100 Lux: 0,125 pt per Lux over 20 • Below 20 Lux= 0 | C28: =VLOOKUP(A28,Languages!$C$4:$I$273,1+'Languages Available'!$D$1) -> 25
A29: 26 | B29: Uniformity of light levels in grid as standard deviation • Under 25% of avg light level = 10; • Between25– 50%: 0,4 pt per % under 50% • Above 50% = 0 | C29: =VLOOKUP(A29,Languages!$C$4:$I$273,1+'Languages Available'!$D$1) -> 26
A30: 27 | B30: Auxiliary Grid for 2.8 | C30: =VLOOKUP(A30,Languages!$C$4:$I$273,1+'Languages Available'!$D$1) -> 27
A31: 28 | B31: end of parking space under/between light fitting | C31: =VLOOKUP(A31,Languages!$C$4:$I$273,1+'Languages Available'!$D$1) -> 28
A32: 29 | B32: halfway parking space under/between light fitting | C32: =VLOOKUP(A32,Languages!$C$4:$I$273,1+'Languages Available'!$D$1) -> 29
A33: 30 | B33: edge of driveway under/between light fitting | C33: =VLOOKUP(A33,Languages!$C$4:$I$273,1+'Languages Available'!$D$1) -> 30
A34: 31 | B34: center of driveway under/between light fitting | C34: =VLOOKUP(A34,Languages!$C$4:$I$273,1+'Languages Available'!$D$1) -> 31
A35: 32 | B35: other edge of driveway under/between light fitting | C35: =VLOOKUP(A35,Languages!$C$4:$I$273,1+'Languages Available'!$D$1) -> 32
A36: 33 | B36: Car Entry / Car Exit | C36: =VLOOKUP(A36,Languages!$C$4:$I$273,1+'Languages Available'!$D$1) -> 33
A37: 34 | B37: Car park headroom limit identified at entrance | C37: =VLOOKUP(A37,Languages!$C$4:$I$273,1+'Languages Available'!$D$1) -> 34
A38: 35 | B38: Correct sign at entrance | C38: =VLOOKUP(A38,Languages!$C$4:$I$273,1+'Languages Available'!$D$1) -> 35
A39: 36 | B39: Height barrier | C39: =VLOOKUP(A39,Languages!$C$4:$I$273,1+'Languages Available'!$D$1) -> 36
A40: 37 | B40: Rubber lip to prevent damage | C40: =VLOOKUP(A40,Languages!$C$4:$I$273,1+'Languages Available'!$D$1) -> 37
A41: 38 | B41: Height: (The car park should receive one point for each 10cm of height above 1.90m up to 2.20 m) | C41: =VLOOKUP(A41,Languages!$C$4:$I$273,1+'Languages Available'!$D$1) -> 38
A42: 39 | B42: Traffic signs to define limitations in use of facility. • Clear signing = 3 • Incomplete signing = 2 • No signing = 0) | C42: =VLOOKUP(A42,Languages!$C$4:$I$273,1+'Languages Available'!$D$1) -> 39
A43: 40 | B43: Information on: | C43: =VLOOKUP(A43,Languages!$C$4:$I$273,1+'Languages Available'!$D$1) -> 40
A44: 41 | B44: Operators terms & conditions within the car park: | C44: =VLOOKUP(A44,Languages!$C$4:$I$273,1+'Languages Available'!$D$1) -> 41
A45: 42 | B45: Daily opening hours: | C45: =VLOOKUP(A45,Languages!$C$4:$I$273,1+'Languages Available'!$D$1) -> 42
A46: 43 | B46: Scale of tariffs: | C46: =VLOOKUP(A46,Languages!$C$4:$I$273,1+'Languages Available'!$D$1) -> 43
A47: 44 | B47: Readibility of tariff system: | C47: =VLOOKUP(A47,Languages!$C$4:$I$273,1+'Languages Available'!$D$1) -> 44
A48: 45 | B48: Design entry/exit area | C48: =VLOOKUP(A48,Languages!$C$4:$I$273,1+'Languages Available'!$D$1) -> 45
A49: 46 | B49: Entry ticket- machine easy to reach: | C49: =VLOOKUP(A49,Languages!$C$4:$I$273,1+'Languages Available'!$D$1) -> 46
A50: 47 | B50: Exit ticket- machine easy to reach: | C50: =VLOOKUP(A50,Languages!$C$4:$I$273,1+'Languages Available'!$D$1) -> 47
A51: 48 | B51: Longitudinal slope at the ticket machines | C51: =VLOOKUP(A51,Languages!$C$4:$I$273,1+'Languages Available'!$D$1) -> 48
A52: 49 | B52: Entry lane: • 0-2% (car doesn’t move without brake) = 1 • 2-5% = 0 • Above 5% = -1 | C52: =VLOOKUP(A52,Languages!$C$4:$I$273,1+'Languages Available'!$D$1) -> 49
A53: 50 | B53: Exit lane: • 0-2% (car doesn’t move without brake) = 1 • 2-5% = 0 • Above 5% = -1 | C53: =VLOOKUP(A53,Languages!$C$4:$I$273,1+'Languages Available'!$D$1) -> 50
A54: 51 | B54: Kerb design to avoid damage to average vehicle’s wheels: (Yes = 2, No protection = 0, No kerbs in entry/exit area = 2) | C54: =VLOOKUP(A54,Languages!$C$4:$I$273,1+'Languages Available'!$D$1) -> 51
A55: 52 | B55: Anti slip surfaces access/egress ramps: (Anti slip = 1, Slippery when wet = 0) | C55: =VLOOKUP(A55,Languages!$C$4:$I$273,1+'Languages Available'!$D$1) -> 52
A56: 53 | B56: Access security | C56: =VLOOKUP(A56,Languages!$C$4:$I$273,1+'Languages Available'!$D$1) -> 53
A57: 54 | B57: Barrier | C57: =VLOOKUP(A57,Languages!$C$4:$I$273,1+'Languages Available'!$D$1) -> 54
A58: 55 | B58: Intercom | C58: =VLOOKUP(A58,Languages!$C$4:$I$273,1+'Languages Available'!$D$1) -> 55
A59: 56 | B59: CCTV | C59: =VLOOKUP(A59,Languages!$C$4:$I$273,1+'Languages Available'!$D$1) -> 56
A60: 57 | B60: Licence Plate Recognition | C60: =VLOOKUP(A60,Languages!$C$4:$I$273,1+'Languages Available'!$D$1) -> 57
A61: 58 | B61: Full height fast closing gates | C61: =VLOOKUP(A61,Languages!$C$4:$I$273,1+'Languages Available'!$D$1) -> 58
A62: 59 | B62: Staffed access(Entry or exit) | C62: =VLOOKUP(A62,Languages!$C$4:$I$273,1+'Languages Available'!$D$1) -> 59
A63: 60 | B63: Entry/Exit of the building: width between structure (per lane) (< 3 m =0, 3 – 3.3 m =1, > 3.3 m = 2) | C63: =VLOOKUP(A63,Languages!$C$4:$I$273,1+'Languages Available'!$D$1) -> 60
A64: 61 | B64: Exit: exit slope ends at least 5 meters before crossing traffic (pedestrians/cyclists): | C64: =VLOOKUP(A64,Languages!$C$4:$I$273,1+'Languages Available'!$D$1) -> 61
A65: 62 | B65: subtotal car entry/exit | C65: =VLOOKUP(A65,Languages!$C$4:$I$273,1+'Languages Available'!$D$1) -> 62
A66: 63 | B66: Parking Area | C66: =VLOOKUP(A66,Languages!$C$4:$I$273,1+'Languages Available'!$D$1) -> 63
A67: 64 | B67: Pillar placement for at least 85% of bays: • does not intrude into the parking area = 8 • at beginning of stall = 0 • next to car door = 0 • at back of stall but intrudes into the parking area = 4 | C67: =VLOOKUP(A67,Languages!$C$4:$I$273,1+'Languages Available'!$D$1) -> 64
A68: 65 | B68: Visibility (many/few dead corners, walls in the car park etc.) Good=4, Medium=2 or Bad=0 | C68: =VLOOKUP(A68,Languages!$C$4:$I$273,1+'Languages Available'!$D$1) -> 65
A69: 66 | B69: Signage for car driver: | C69: =VLOOKUP(A69,Languages!$C$4:$I$273,1+'Languages Available'!$D$1) -> 66
A70: =A69+1 -> 67 | B70: Do traffic signs conform to national road code? | C70: =VLOOKUP(A70,Languages!$C$4:$I$273,1+'Languages Available'!$D$1) -> 67
A71: 68 | B71: Routing and turn signs: Is signage clear, complete and unambiguous? | C71: =VLOOKUP(A71,Languages!$C$4:$I$273,1+'Languages Available'!$D$1) -> 68
A72: 69 | B72: Complete ? | C72: =VLOOKUP(A72,Languages!$C$4:$I$273,1+'Languages Available'!$D$1) -> 69
A73: 70 | B73: Easy to see ? | C73: =VLOOKUP(A73,Languages!$C$4:$I$273,1+'Languages Available'!$D$1) -> 70
A74: 71 | B74: Unambiguous ? | C74: =VLOOKUP(A74,Languages!$C$4:$I$273,1+'Languages Available'!$D$1) -> 71
A75: 72 | B75: Exit signs in the car park: Is signage clear, complete and unambiguous? | C75: =VLOOKUP(A75,Languages!$C$4:$I$273,1+'Languages Available'!$D$1) -> 72
A76: 73 | B76: Complete ? | C76: =VLOOKUP(A76,Languages!$C$4:$I$273,1+'Languages Available'!$D$1) -> 73
A77: 74 | B77: Easy to see ? | C77: =VLOOKUP(A77,Languages!$C$4:$I$273,1+'Languages Available'!$D$1) -> 74
A78: 75 | B78: Unambiguous ? | C78: =VLOOKUP(A78,Languages!$C$4:$I$273,1+'Languages Available'!$D$1) -> 75
A79: 76 | B79: Parking bay marks | C79: =VLOOKUP(A79,Languages!$C$4:$I$273,1+'Languages Available'!$D$1) -> 76
A80: 77 | B80: Parking bays are clearly marked ? | C80: =VLOOKUP(A80,Languages!$C$4:$I$273,1+'Languages Available'!$D$1) -> 77
A81: 78 | B81: Bay markings extend up walls to assist driver ? | C81: =VLOOKUP(A81,Languages!$C$4:$I$273,1+'Languages Available'!$D$1) -> 78
A82: 79 | B82: Are Road Markings: | C82: =VLOOKUP(A82,Languages!$C$4:$I$273,1+'Languages Available'!$D$1) -> 79
A83: 80 | B83: Complete ? | C83: =VLOOKUP(A83,Languages!$C$4:$I$273,1+'Languages Available'!$D$1) -> 80
A84: 81 | B84: Easy to see ? | C84: =VLOOKUP(A84,Languages!$C$4:$I$273,1+'Languages Available'!$D$1) -> 81
A85: 82 | B85: Unambiguous ? | C85: =VLOOKUP(A85,Languages!$C$4:$I$273,1+'Languages Available'!$D$1) -> 82
A86: 83 | B86: Availability of spaces for disabled with wheelchair access anounced at the entrance the car park: | C86: =VLOOKUP(A86,Languages!$C$4:$I$273,1+'Languages Available'!$D$1) -> 83
A87: 84 | B87: Accessible for wheelchair ? | C87: =VLOOKUP(A87,Languages!$C$4:$I$273,1+'Languages Available'!$D$1) -> 84
A88: 85 | B88: Bays minimum 3.5 m wide ? | C88: =VLOOKUP(A88,Languages!$C$4:$I$273,1+'Languages Available'!$D$1) -> 85
A89: 86 | B89: Close to pedestrian exit ? | C89: =VLOOKUP(A89,Languages!$C$4:$I$273,1+'Languages Available'!$D$1) -> 86
A90: 87 | B90: Guidance to disabled spaces ? | C90: =VLOOKUP(A90,Languages!$C$4:$I$273,1+'Languages Available'!$D$1) -> 87
A91: 88 | B91: Parking angle at 85 % of bays: (Angle 76-90° = 0, Angle 45-75° = 2) | C91: =VLOOKUP(A91,Languages!$C$4:$I$273,1+'Languages Available'!$D$1) -> 88
A92: 89 | B92: Width of bays (85 % of bays), A or B: A: Parking angle 76 – 90 degrees (2.25m = -5, 2.30m = 0, 2.35m = 2, 2.40m = 4, 2.45m = 6, 2.50m = 8) B: Parking angle 45-75 degrees (2.25m = -5, 2.30m = 1, 2.35m = 3, 2.40m = 5, 2.45m = 8) Width of 2.25m only applies for renovated car parks, new car parks must be minimum 2.30m | C92: =VLOOKUP(A92,Languages!$C$4:$I$273,1+'Languages Available'!$D$1) -> 89
A93: 90 | B93: Total unit measure of one way isle width and depth of two parking bays, depending on parking angle and bay width: Bay width: 2.50m / 2.45m / 2.40m / 2.35m / 2.30m 90° : 16.00 / 16.30 / 16.60 / 16.90 / 17.30 85° : 15.70 / 16.00 / 16.30 / 16.60 / 16.95 80° : 15.40 / 15.70 / 16.00 / 16.30 / 16.60 75° : 14.95 / 15.25 / 15.55 / 15.85 / 16.15 70° : 14.50 / 14.80 / 15.10 / 15.40 / 15.70 65° : 14.40 / 14.40 / 14.55 / 14.80 / 15.10 60° : 14.30 / 14.30 / 14.30 / 14.30 / 14.50 55° : 14.00 / 14.00 / 14.00 / 14.00 / 14.10 50° : 13.75 / 13.75 / 13.75 / 13.75 / 13.75 45° : 13.50 / 13.50 / 13.50 / 13.50 / 13.50 Total unit measure as above qualifies for 3 points. Up to 30 cm less qualifies for 2 points Up to 60 cm less qualifies for 1 point More than 60 cm less: no points given | C93: =VLOOKUP(A93,Languages!$C$4:$I$273,1+'Languages Available'!$D$1) -> 90
A94: 91 | B94: Kerb design to avoid damage to average vehicle’s wheels • Yes = 2, No protection = 0 | C94: =VLOOKUP(A94,Languages!$C$4:$I$273,1+'Languages Available'!$D$1) -> 91
A95: 92 | B95: Vehicle Ramps | C95: =VLOOKUP(A95,Languages!$C$4:$I$273,1+'Languages Available'!$D$1) -> 92
A96: 93 | B96: Is this a Single level car park without vehicular ramps or ramper floor? | C96: =VLOOKUP(A96,Languages!$C$4:$I$273,1+'Languages Available'!$D$1) -> 93
A97: 94 | B97: Ramp surface between parking areas (Anti slip 1, Smooth 0, no ramps 1) | C97: =VLOOKUP(A97,Languages!$C$4:$I$273,1+'Languages Available'!$D$1) -> 94
A98: 95 | B98: Ramp longitudinal gradient connecting ramps (not used for parking) • <10%=3, 10-15%=1, >15%=0, no ramps=3 | C98: =VLOOKUP(A98,Languages!$C$4:$I$273,1+'Languages Available'!$D$1) -> 95
A99: 96 | B99: Ramp width (between kerbs) all ramps measured at narrowest point | C99: =VLOOKUP(A99,Languages!$C$4:$I$273,1+'Languages Available'!$D$1) -> 96
A100: 97 | B100: Curved ramps must be 1 m wider for same score. Are the ramps curbed? | C100: =VLOOKUP(A100,Languages!$C$4:$I$273,1+'Languages Available'!$D$1) -> 97
A101: 98 | B101: =CONCATENATE("Please choose width. ",IF(rampsCurved=yes,"< 4m=0, 4-4.3m=1, >4.3m=2, no ramps=2","< 3m=0, 3-3.3m=1, >3.3m=2, no ramps=2")) -> Please choose width. < 3m=0, 3-3.3m=1, >3.3m=2, no ramps=2 | C101: =VLOOKUP(A101,Languages!$C$4:$I$273,1+'Languages Available'!$D$1) -> 98
A102: 99 | B102: Ramp curvature (external radius) curved ramps • up to 9m=0, 9–10 m=1, >10m=2, no ramps=2 At dual way ramps this measure refers to the inner lane. | C102: =VLOOKUP(A102,Languages!$C$4:$I$273,1+'Languages Available'!$D$1) -> 99
A103: 100 | B103: Approach curve to straight ramps • <7.5m=0, 7.5–9m=1, >9m=2, no ramps=2 | C103: =VLOOKUP(A103,Languages!$C$4:$I$273,1+'Languages Available'!$D$1) -> 100
A104: 101 | B104: Ramped parking floor longitudinal gradient • <5%=3, 5-7 =1, >7%=0, no gradient=3 | C104: =VLOOKUP(A104,Languages!$C$4:$I$273,1+'Languages Available'!$D$1) -> 101
A105: 102 | B105: Pedestrian Access | C105: =VLOOKUP(A105,Languages!$C$4:$I$273,1+'Languages Available'!$D$1) -> 102
A106: 103 | B106: Item List | C106: =VLOOKUP(A106,Languages!$C$4:$I$273,1+'Languages Available'!$D$1) -> 103
A107: 104 | B107: Headroom for pedestrians - excluding doors • <2.00m = 0 • 2.00m – 2.10m = 1 • 2.10m – 2.20m = 2 • > 2.20m = 3 | C107: =VLOOKUP(A107,Languages!$C$4:$I$273,1+'Languages Available'!$D$1) -> 104
A108: 105 | B108: Separate walking route (i.e. heightened; zebra stripes or colours) (yes = 2, no = 0) | C108: =VLOOKUP(A108,Languages!$C$4:$I$273,1+'Languages Available'!$D$1) -> 105
A109: 106 | B109: Are pedestrian entrance doors easy to use? (Yes, automatic or open connection = 4, Easy to open = 2, No = 0) | C109: =VLOOKUP(A109,Languages!$C$4:$I$273,1+'Languages Available'!$D$1) -> 106
A110: 107 | B110: Pedestrian access controlled by ticket/pass card when car park open (Yes=1, No=0) | C110: =VLOOKUP(A110,Languages!$C$4:$I$273,1+'Languages Available'!$D$1) -> 107
A111: 108 | B111: City plan a central location in car park: (On Every pedestrian exit = 2, One location = 1, No = 0) | C111: =VLOOKUP(A111,Languages!$C$4:$I$273,1+'Languages Available'!$D$1) -> 108
A112: 109 | B112: Guidance: | C112: =VLOOKUP(A112,Languages!$C$4:$I$273,1+'Languages Available'!$D$1) -> 109
A113: 110 | B113: to key attractions around the car park at pedestrian exit (Yes=1, No=0): | C113: =VLOOKUP(A113,Languages!$C$4:$I$273,1+'Languages Available'!$D$1) -> 110
A114: 111 | B114: around the car park to pedestrian entrances (Yes=1, No=0): | C114: =VLOOKUP(A114,Languages!$C$4:$I$273,1+'Languages Available'!$D$1) -> 111
A115: 112 | B115: Is this a Single level car park at ground floor, (not open surface) ? | C115: =VLOOKUP(A115,Languages!$C$4:$I$273,1+'Languages Available'!$D$1) -> 112
A116: 113 | B116: Is there elevators serving street level? | C116: =VLOOKUP(A116,Languages!$C$4:$I$273,1+'Languages Available'!$D$1) -> 113
A117: 114 | B117: Number of Elevators at street level: (1 elevator = 1, 2 + elevators = 5) | C117: =VLOOKUP(A117,Languages!$C$4:$I$273,1+'Languages Available'!$D$1) -> 114
A118: 115 | B118: Size of elevators: (More Than 8 people = 3, 4-8 people = 1, less than 4 = 0) | C118: =VLOOKUP(A118,Languages!$C$4:$I$273,1+'Languages Available'!$D$1) -> 115
A119: 116 | B119: Visibility from elevator inside to hall/parking area (no visibility from elevator = 0, glazed doors/walls = 3, no elevator = 0) | C119: =VLOOKUP(A119,Languages!$C$4:$I$273,1+'Languages Available'!$D$1) -> 116
A120: 117 | B120: Level indication: | C120: =VLOOKUP(A120,Languages!$C$4:$I$273,1+'Languages Available'!$D$1) -> 117
A121: 118 | B121: in elevator: | C121: =VLOOKUP(A121,Languages!$C$4:$I$273,1+'Languages Available'!$D$1) -> 118
A122: 119 | B122: in elevator foyer: | C122: =VLOOKUP(A122,Languages!$C$4:$I$273,1+'Languages Available'!$D$1) -> 119
A123: 120 | B123: Elevator control buttons at wheelchair height • Yes = 1, Other = 0 | C123: =VLOOKUP(A123,Languages!$C$4:$I$273,1+'Languages Available'!$D$1) -> 120
A124: 121 | B124: Doors directly to parking area | C124: =VLOOKUP(A124,Languages!$C$4:$I$273,1+'Languages Available'!$D$1) -> 121
A125: 122 | B125: Width (<90 cm =0, >=90 cm = 2) | C125: =VLOOKUP(A125,Languages!$C$4:$I$273,1+'Languages Available'!$D$1) -> 122
A126: 123 | B126: Emergency door, standard open (Yes=2, No= 0) | C126: =VLOOKUP(A126,Languages!$C$4:$I$273,1+'Languages Available'!$D$1) -> 123
A127: 124 | B127: Visibility (Glazed door/wall = 3, No Glass = 0) | C127: =VLOOKUP(A127,Languages!$C$4:$I$273,1+'Languages Available'!$D$1) -> 124
A128: 125 | B128: Are elevators the main vertical connection? (stairs only secondary or escape) | C128: =VLOOKUP(A128,Languages!$C$4:$I$273,1+'Languages Available'!$D$1) -> 125
A129: 126 | B129: Stairwells (visibility and orientation) | C129: =VLOOKUP(A129,Languages!$C$4:$I$273,1+'Languages Available'!$D$1) -> 126
A130: 127 | B130: Clear View (Yes = 1, No = 0, Irrelevant = 1) | C130: =VLOOKUP(A130,Languages!$C$4:$I$273,1+'Languages Available'!$D$1) -> 127
A131: 128 | B131: Level Indication (Yes = 1, No = 0, Irrelevant = 1) | C131: =VLOOKUP(A131,Languages!$C$4:$I$273,1+'Languages Available'!$D$1) -> 128
A132: 129 | B132: Stairs (incl. heightened visibility of steps) | C132: =VLOOKUP(A132,Languages!$C$4:$I$273,1+'Languages Available'!$D$1) -> 129
A133: 130 | B133: Width (< 1.5 m = 0, > 1.5m = 2) | C133: =VLOOKUP(A133,Languages!$C$4:$I$273,1+'Languages Available'!$D$1) -> 130
A134: =A133+1 -> 131 | B134: Hand Rails (No hand rail =0, One Side = 1, Two sides=2) | C134: =VLOOKUP(A134,Languages!$C$4:$I$273,1+'Languages Available'!$D$1) -> 131
A135: 132 | B135: Heightened visibility of steps for people with poor eyesight (Yes = 2, No = 0) | C135: =VLOOKUP(A135,Languages!$C$4:$I$273,1+'Languages Available'!$D$1) -> 132
A136: 133 | B136: Anti-slip surfacing on stairs: (Yes = 2, No = 0) | C136: =VLOOKUP(A136,Languages!$C$4:$I$273,1+'Languages Available'!$D$1) -> 133
A137: 134 | B137: External openings in stairwell (window/grilled to outside or car park =2, none =0) | C137: =VLOOKUP(A137,Languages!$C$4:$I$273,1+'Languages Available'!$D$1) -> 134
A138: 135 | B138: Security Equipment | C138: =VLOOKUP(A138,Languages!$C$4:$I$273,1+'Languages Available'!$D$1) -> 135
A139: 136 | B139: Item List | C139: =VLOOKUP(A139,Languages!$C$4:$I$273,1+'Languages Available'!$D$1) -> 136
A140: 137 | B140: CCTV with notice at entrance = 3, No CCTV =0 | C140: =VLOOKUP(A140,Languages!$C$4:$I$273,1+'Languages Available'!$D$1) -> 137
A141: 138 | B141: Staff surveillance (on-site or remote) • Yes = 5, No = 0 | C141: =VLOOKUP(A141,Languages!$C$4:$I$273,1+'Languages Available'!$D$1) -> 138
A142: 139 | B142: CCTV at: | C142: =VLOOKUP(A142,Languages!$C$4:$I$273,1+'Languages Available'!$D$1) -> 139
A143: 140 | B143: Car Entry: Yes =1, No =0 | C143: =VLOOKUP(A143,Languages!$C$4:$I$273,1+'Languages Available'!$D$1) -> 140
A144: 141 | B144: Car Exit: Yes =1, No =0 | C144: =VLOOKUP(A144,Languages!$C$4:$I$273,1+'Languages Available'!$D$1) -> 141
A145: 142 | B145: Pay Machine: Yes =1, No =0 | C145: =VLOOKUP(A145,Languages!$C$4:$I$273,1+'Languages Available'!$D$1) -> 142
A146: 143 | B146: Elevator Hall, every level: Yes =1, No =0 | C146: =VLOOKUP(A146,Languages!$C$4:$I$273,1+'Languages Available'!$D$1) -> 143
A147: 144 | B147: Stairwells, every level: Yes =1, No =0 | C147: =VLOOKUP(A147,Languages!$C$4:$I$273,1+'Languages Available'!$D$1) -> 144
A148: 145 | B148: Pedestrian Entrances: Yes =1, No =0 | C148: =VLOOKUP(A148,Languages!$C$4:$I$273,1+'Languages Available'!$D$1) -> 145
A149: 146 | B149: Most of Parking Area (65%):Yes =3, No =0 | C149: =VLOOKUP(A149,Languages!$C$4:$I$273,1+'Languages Available'!$D$1) -> 146
A150: 147 | B150: Ramps: Yes = 1, No = 0 | C150: =VLOOKUP(A150,Languages!$C$4:$I$273,1+'Languages Available'!$D$1) -> 147
A151: 148 | B151: Staff contactable via: | C151: =VLOOKUP(A151,Languages!$C$4:$I$273,1+'Languages Available'!$D$1) -> 148
A152: 149 | B152: Intercom at pay machine and/or controlled entries (24/7=3, All access hours if not 24/7= 2, Part time/not available = 0) | C152: =VLOOKUP(A152,Languages!$C$4:$I$273,1+'Languages Available'!$D$1) -> 149
A153: 150 | B153: Emergency call system in parking area (24/7=3, All access hours if not 24/7= 2, Part time/not available = 0) | C153: =VLOOKUP(A153,Languages!$C$4:$I$273,1+'Languages Available'!$D$1) -> 150
A154: 151 | B154: Recognizable staff present and patrolling car park (24/7 = 3, During access Hours = 2, Less than access Hours = 1, No = 0) | C154: =VLOOKUP(A154,Languages!$C$4:$I$273,1+'Languages Available'!$D$1) -> 151
A155: 152 | B155: Lockable vehicle exit/entry: (Closed gate/rolling shutter after access hours = 2, Secured: fast opening gate during day = 4, Secured: slow opening gate during day = 2, No provisions = 0) | C155: =VLOOKUP(A155,Languages!$C$4:$I$273,1+'Languages Available'!$D$1) -> 152
A156: 153 | B156: Lockable pedestrian exit/entry (after opening hours). (Door/gate/rolling shutter <= 15cm maximum aperture = 2, over 15 cm = 0, no provisions = 0, Irrelevant (24 hours opening) = 2) | C156: =VLOOKUP(A156,Languages!$C$4:$I$273,1+'Languages Available'!$D$1) -> 153
A157: 154 | B157: Grilles on external openings & security grilles (<= 15 cm = 2, > 15 cm or no protection= 0, Irrelevant (no external openings) = 2) | C157: =VLOOKUP(A157,Languages!$C$4:$I$273,1+'Languages Available'!$D$1) -> 154
A158: 155 | B158: Wayfinding Inside and Outside | C158: =VLOOKUP(A158,Languages!$C$4:$I$273,1+'Languages Available'!$D$1) -> 155
A159: 156 | B159: Item List | C159: =VLOOKUP(A159,Languages!$C$4:$I$273,1+'Languages Available'!$D$1) -> 156
A160: 157 | B160: Identification of vacant parking spaces | C160: =VLOOKUP(A160,Languages!$C$4:$I$273,1+'Languages Available'!$D$1) -> 157
A161: 158 | B161: Parking floor level (yes/good = 2, no/bad = 0) | C161: =VLOOKUP(A161,Languages!$C$4:$I$273,1+'Languages Available'!$D$1) -> 158
A162: 159 | B162: Parking row (yes/good = 1, no/bad = 0) | C162: =VLOOKUP(A162,Languages!$C$4:$I$273,1+'Languages Available'!$D$1) -> 159
A163: 160 | B163: Individual stall indication (yes/good = 2, no/bad = 0) | C163: =VLOOKUP(A163,Languages!$C$4:$I$273,1+'Languages Available'!$D$1) -> 160
A164: 161 | B164: Way finding (vehicles) | C164: =VLOOKUP(A164,Languages!$C$4:$I$273,1+'Languages Available'!$D$1) -> 161
A165: 162 | B165: Are floors clearly and separately identified for drivers? (Good =3, Adequate =2, Poor =1, No =0) | C165: =VLOOKUP(A165,Languages!$C$4:$I$273,1+'Languages Available'!$D$1) -> 162
A166: 163 | B166: Are sub-areas of floors clearly identified for drivers? (Good =3, Adequate =2, Poor =1, No =0) | C166: =VLOOKUP(A166,Languages!$C$4:$I$273,1+'Languages Available'!$D$1) -> 163
A167: 164 | B167: Are fire escapes and escape routes clearly marked • Clear from all locations = 3 • most locations= 2 • some locations=1 • No marking of escape routes=0) | C167: =VLOOKUP(A167,Languages!$C$4:$I$273,1+'Languages Available'!$D$1) -> 164
A168: 165 | B168: Are floor levels clearly marked? (good =3, adequate=2, poor=1, none =0. Single level car parks = 3) | C168: =VLOOKUP(A168,Languages!$C$4:$I$273,1+'Languages Available'!$D$1) -> 165
A169: 166 | B169: Is there additional signing or prompts to orient the pedestrian on the parking deck (good =2, some =1, none = 0) | C169: =VLOOKUP(A169,Languages!$C$4:$I$273,1+'Languages Available'!$D$1) -> 166
A170: 167 | B170: Are parking spaces individually numbered (Numbered including floor identification =2, Just numbers =1, none =0) | C170: =VLOOKUP(A170,Languages!$C$4:$I$273,1+'Languages Available'!$D$1) -> 167
A171: 168 | B171: Use of colours for way finding (Yes= 1, No= 0) | C171: =VLOOKUP(A171,Languages!$C$4:$I$273,1+'Languages Available'!$D$1) -> 168
A172: 169 | B172: Guidance sign posting for cars on roads to car park | C172: =VLOOKUP(A172,Languages!$C$4:$I$273,1+'Languages Available'!$D$1) -> 169
A173: 170 | B173: Static sign system only (Yes = 1, No = 0) | C173: =VLOOKUP(A173,Languages!$C$4:$I$273,1+'Languages Available'!$D$1) -> 170
A174: 171 | B174: Dynamic sign system additionally (Yes = 1, No = 0) | C174: =VLOOKUP(A174,Languages!$C$4:$I$273,1+'Languages Available'!$D$1) -> 171
A175: 172 | B175: Illuminated signage at car park entrance | C175: =VLOOKUP(A175,Languages!$C$4:$I$273,1+'Languages Available'!$D$1) -> 172
A176: 173 | B176: Signal green arrow, red cross for direction (Yes = 1, No = 0) | C176: =VLOOKUP(A176,Languages!$C$4:$I$273,1+'Languages Available'!$D$1) -> 173
A177: 174 | B177: Signal full/free (Yes = 1, No = 0) | C177: =VLOOKUP(A177,Languages!$C$4:$I$273,1+'Languages Available'!$D$1) -> 174
A178: 175 | B178: Signage at pedestrian entrance (Yes = 1, No = 0) | C178: =VLOOKUP(A178,Languages!$C$4:$I$273,1+'Languages Available'!$D$1) -> 175
A179: 176 | B179: Comfort and Miscellaneous | C179: =VLOOKUP(A179,Languages!$C$4:$I$273,1+'Languages Available'!$D$1) -> 176
A180: 177 | B180: Notice-board at pedestrian entrance/exit showing: | C180: =VLOOKUP(A180,Languages!$C$4:$I$273,1+'Languages Available'!$D$1) -> 177
A181: 178 | B181: Access hours normal/special (yes = 1, no = 0) | C181: =VLOOKUP(A181,Languages!$C$4:$I$273,1+'Languages Available'!$D$1) -> 178
A182: 179 | B182: Readable & understandable tariff board (yes = 1, no = 0) | C182: =VLOOKUP(A182,Languages!$C$4:$I$273,1+'Languages Available'!$D$1) -> 179
A183: 180 | B183: Operators terms and conditions (yes = 1, no = 0) | C183: =VLOOKUP(A183,Languages!$C$4:$I$273,1+'Languages Available'!$D$1) -> 180
A184: 181 | B184: Payment options (pay at exit/pay at pay station): | C184: =VLOOKUP(A184,Languages!$C$4:$I$273,1+'Languages Available'!$D$1) -> 181
A185: 182 | B185: Accepts coins? (yes =1, no =0) | C185: =VLOOKUP(A185,Languages!$C$4:$I$273,1+'Languages Available'!$D$1) -> 182
A186: 183 | B186: Change given? (yes =1, no =0) | C186: =VLOOKUP(A186,Languages!$C$4:$I$273,1+'Languages Available'!$D$1) -> 183
A187: 184 | B187: Accepts banknotes? (yes =1, no =0) | C187: =VLOOKUP(A187,Languages!$C$4:$I$273,1+'Languages Available'!$D$1) -> 184
A188: 185 | B188: Accepts bank cards? (yes =1, no =0) | C188: =VLOOKUP(A188,Languages!$C$4:$I$273,1+'Languages Available'!$D$1) -> 185
A189: 186 | B189: Payment by smart phone? (yes =1, no =0) | C189: =VLOOKUP(A189,Languages!$C$4:$I$273,1+'Languages Available'!$D$1) -> 186
A190: 187 | B190: Payment by card/phone at exit? (yes =1, no =0) | C190: =VLOOKUP(A190,Languages!$C$4:$I$273,1+'Languages Available'!$D$1) -> 187
A191: 188 | B191: ID & payment by LPR? (yes =1, no =0) | C191: =VLOOKUP(A191,Languages!$C$4:$I$273,1+'Languages Available'!$D$1) -> 188
A192: 189 | B192: Accepts other cards: How many? (1 point per additional option up to 3) | C192: =VLOOKUP(A192,Languages!$C$4:$I$273,1+'Languages Available'!$D$1) -> 189
A193: 190 | B193: Payment at staffed desk: (yes = 1, no = 0) | C193: =VLOOKUP(A193,Languages!$C$4:$I$273,1+'Languages Available'!$D$1) -> 190
A194: 191 | B194: Is this a Pay and Display Car Park? | C194: =VLOOKUP(A194,Languages!$C$4:$I$273,1+'Languages Available'!$D$1) -> 191
A195: 192 | B195: Number of Pay points for Barrier controlled car parks: (One pay station = 0, More than one =1, One at each pedestrian entrance, excluding fire escapes =2, More than one at each pedestrian entrance =3) | C195: =VLOOKUP(A195,Languages!$C$4:$I$273,1+'Languages Available'!$D$1) -> 192
A196: 193 | B196: Number of Pay points for Pay and Display Car Parks (One =0, < 1 for every 50 spaces =2, >1 for every 50 spaces =3) | C196: =VLOOKUP(A196,Languages!$C$4:$I$273,1+'Languages Available'!$D$1) -> 193
A197: 194 | B197: Customer toilets: | C197: =VLOOKUP(A197,Languages!$C$4:$I$273,1+'Languages Available'!$D$1) -> 194
A198: =A197+1 -> 195 | B198: Exist? (yes= 2, no= 0) | C198: =VLOOKUP(A198,Languages!$C$4:$I$273,1+'Languages Available'!$D$1) -> 195
A199: 196 | B199: Disabled toilet? (yes=1, no= 0) | C199: =VLOOKUP(A199,Languages!$C$4:$I$273,1+'Languages Available'!$D$1) -> 196
A200: 197 | B200: unisex = 0, male/female separated = 1 | C200: =VLOOKUP(A200,Languages!$C$4:$I$273,1+'Languages Available'!$D$1) -> 197
A201: 198 | B201: attendant: yes=1, no= 0 | C201: =VLOOKUP(A201,Languages!$C$4:$I$273,1+'Languages Available'!$D$1) -> 198
... 382 more rows

Sheet Languages (2) (hidden)
A1: New Language
A2: 1 | B2: 2
A3: =VLOOKUP(A2,'Languages Available'!$A$3:$B$23,2) -> English | B3: =A1 -> New Language
A4: Mandatory Minimum Conditions
A5: Car park must be for public use
A6: Minimum headroom = 1.90 m, generally in the public areas. Incidental lower obstacles must be clearly marked.
A7: Minimum headroom = 2,00 m, generally in the public areas. Incidental lower obstacles must be clearly marked.
A8: There must be at least one dedicated entry and exit lane although additional tidal flow lanes are allowed.
A9: 70% of bays must be at least 2.30m wide. For renovated car parks, over ten years old, minimum bay width of 2.25m is allowed (in that case a penalty applies - check M8).
A10: 70% of bays must be at least 2.40m wide.
A11: All straight ramps for unidirectional traffic must be minimum 2.7 metres wide. Bidirectional ramps must be at least 6m wide with lane markings. Ramp width is measured between walls or pillars
A12: Curved ramps for single directional traffic must have an external radius of minimum 8.00 metres with lane width of minimum 3.5 metres. For bidirectional curved ramps this applies for the inner driving lane. The outside driving lane must be minimum 3.5 metres wide as well.
A13: Ramp gradients must not exceed 20% , to be measured at the middle of driving lane. At bidirectional curved ramps this applies for the inner (steepest) driving lane.
A14: If the car park has paid parking and access control by barriers or gates, staff must be contactable at the pay point/exit point and secured pedestrian entries.
A15: Receipt for payment must be provided when requested.
A16: All turning movements must be capable of being completed without reversing (moving in/out the parking bay and cul-de-sacs excluded)
A17: Average light levels on parking area at floor is at minimum 20 Lux
A18: Average light levels on parking area at floor is at minimum 50 Lux
A19: Lighting
A20: Item List (values in Lux, see user manual for measurement)
A21: Vehicular entry area; at floor level • Above 200 Lux = 5; • Between 75– 200 Lux: 0,04 pt per Lux over 75 • Below 75 Lux = 0
A22: Entry; at 1 m height near ticket-machine • Above 200 Lux = 3; • Between100– 200 Lux: 0,03 pt per Lux over 100 • Below 100 Lux = 0
A23: Exit; at 1 m height near barrier/ticket-machine • Above 200 Lux = 3; • Between100– 200 Lux: 0,03 pt per Lux over 100 • Below 100 Lux= 0
A24: At pay-machine; at 1 m height • Above 200 Lux =4; • Between100– 200 Lux: 0,04 pt per Lux over 100 • Below 100 Lux= 0; • No Pay Machines : same as exit (enter zero if this is the case)
A25: At cashier; at counter height • Above 200 Lux =4; • Between100– 200 Lux: 0,04 pt per Lux over 100 • Below 100 Lux= 0; • No cashier = 3 (enter zero if this is the case)
A26: In elevator; at floor level • Above 70 Lux = 4; • Between30– 70 Lux: 0,1 pt per Lux over 30 • Below 30 Lux = 0; • Single level without elevator = 3
A27: In staircases and all other exclusive pedestrian routes; at floor level • Above 90 Lux = 3; • Between30– 90 Lux: 0,05 pt per Lux over 30 • Below 30 Lux = 0;
A28: Light levels on parking area at floor level: (plesase fill grid below) Average light level of grid: • Above 100 Lux= 10; • Between20– 100 Lux: 0,125 pt per Lux over 20 • Below 20 Lux= 0
A29: Uniformity of light levels in grid as standard deviation • Under 25% of avg light level = 10; • Between25– 50%: 0,4 pt per % under 50% • Above 50% = 0
A30: Auxiliary Grid for 2.8
A31: end of parking space under/between light fitting
A32: halfway parking space under/between light fitting
A33: edge of driveway under/between light fitting
A34: center of driveway under/between light fitting
A35: other edge of driveway under/between light fitting
A36: Car Entry / Car Exit
A37: Car park headroom limit identified at entrance
A38: Correct sign at entrance
A39: Height barrier
A40: Rubber lip to prevent damage
A41: Height: (The car park should receive one point for each 10cm of height above 1.90m up to 2.20 m)
A42: Traffic signs to define limitations in use of facility. • Clear signing = 3 • Incomplete signing = 2 • No signing = 0)
A43: Information on:
A44: Operators terms & conditions within the car park:
A45: Daily opening hours:
A46: Scale of tariffs:
A47: Readibility of tariff system:
A48: Design entry/exit area
A49: Entry ticket- machine easy to reach:
A50: Exit ticket- machine easy to reach:
A51: Longitudinal slope at the ticket machines
A52: Entry lane: • 0-2% (car doesn’t move without brake) = 1 • 2-5% = 0 • Above 5% = -1
A53: Exit lane: • 0-2% (car doesn’t move without brake) = 1 • 2-5% = 0 • Above 5% = -1
A54: Kerb design to avoid damage to average vehicle’s wheels: (Yes = 2, No protection = 0, No kerbs in entry/exit area = 2)
A55: Anti slip surfaces access/egress ramps: (Anti slip = 1, Slippery when wet = 0)
A56: Access security
A57: Barrier
A58: Intercom
A59: CCTV
A60: Licence Plate Recognition
A61: Full height fast closing gates
A62: Staffed access(Entry or exit)
A63: Entry/Exit of the building: width between structure (per lane) (< 3 m =0, 3 – 3.3 m =1, > 3.3 m = 2)
A64: Exit: exit slope ends at least 5 meters before crossing traffic (pedestrians/cyclists):
A65: subtotal car entry/exit
A66: Parking Area
A67: Pillar placement for at least 85% of bays: • does not intrude into the parking area = 8 • at beginning of stall = 0 • next to car door = 0 • at back of stall but intrudes into the parking area = 4
A68: Visibility (many/few dead corners, walls in the car park etc.) Good=4, Medium=2 or Bad=0
A69: Signage for car driver:
A70: Do traffic signs conform to national road code?
A71: Routing and turn signs: Is signage clear, complete and unambiguous?
A72: Complete ?
A73: Easy to see ?
A74: Unambiguous ?
A75: Exit signs in the car park: Is signage clear, complete and unambiguous?
A76: Complete ?
A77: Easy to see ?
A78: Unambiguous ?
A79: Parking bay marks
A80: Parking bays are clearly marked ?
A81: Bay markings extend up walls to assist driver ?
A82: Are Road Markings:
A83: Complete ?
A84: Easy to see ?
A85: Unambiguous ?
A86: Availability of spaces for disabled with wheelchair access anounced at the entrance the car park:
A87: Accessible for wheelchair ?
A88: Bays minimum 3.5 m wide ?
A89: Close to pedestrian exit ?
A90: Guidance to disabled spaces ?
A91: Parking angle at 85 % of bays: (Angle 76-90° = 0, Angle 45-75° = 2)
A92: Width of bays (85 % of bays), A or B: A: Parking angle 76 – 90 degrees (2.25m = -5, 2.30m = 0, 2.35m = 2, 2.40m = 4, 2.45m = 6, 2.50m = 8) B: Parking angle 45-75 degrees (2.25m = -5, 2.30m = 1, 2.35m = 3, 2.40m = 5, 2.45m = 8) Width of 2.25m only applies for renovated car parks, new car parks must be minimum 2.30m
A93: Total unit measure of one way isle width and depth of two parking bays, depending on parking angle and bay width: Bay width: 2.50m / 2.45m / 2.40m / 2.35m / 2.30m 90° : 16.00 / 16.30 / 16.60 / 16.90 / 17.30 85° : 15.70 / 16.00 / 16.30 / 16.60 / 16.95 80° : 15.40 / 15.70 / 16.00 / 16.30 / 16.60 75° : 14.95 / 15.25 / 15.55 / 15.85 / 16.15 70° : 14.50 / 14.80 / 15.10 / 15.40 / 15.70 65° : 14.40 / 14.40 / 14.55 / 14.80 / 15.10 60° : 14.30 / 14.30 / 14.30 / 14.30 / 14.50 55° : 14.00 / 14.00 / 14.00 / 14.00 / 14.10 50° : 13.75 / 13.75 / 13.75 / 13.75 / 13.75 45° : 13.50 / 13.50 / 13.50 / 13.50 / 13.50 Total unit measure as above qualifies for 3 points. Up to 30 cm less qualifies for 2 points Up to 60 cm less qualifies for 1 point More than 60 cm less: no points given
A94: Kerb design to avoid damage to average vehicle’s wheels • Yes = 2, No protection = 0
A95: Vehicle Ramps
A96: Is this a Single level car park without vehicular ramps or ramper floor?
A97: Ramp surface between parking areas (Anti slip 1, Smooth 0, no ramps 1)
A98: Ramp longitudinal gradient connecting ramps (not used for parking) • <10%=3, 10-15%=1, >15%=0, no ramps=3
A99: Ramp width (between kerbs) all ramps measured at narrowest point
A100: Curved ramps must be 1 m wider for same score. Are the ramps curbed?
A101: =CONCATENATE("Please choose width. ",IF(B100=yes,"< 4m=0, 4-4.3m=1, >4.3m=2, no ramps=2","< 3m=0, 3-3.3m=1, >3.3m=2, no ramps=2")) -> Please choose width. < 3m=0, 3-3.3m=1, >3.3m=2, no ramps=2
A102: Ramp curvature (external radius) curved ramps • up to 9m=0, 9–10 m=1, >10m=2, no ramps=2 At dual way ramps this measure refers to the inner lane.
A103: Approach curve to straight ramps • <7.5m=0, 7.5–9m=1, >9m=2, no ramps=2
A104: Ramped parking floor longitudinal gradient • <5%=3, 5-7 =1, >7%=0, no gradient=3
A105: Pedestrian Access
A106: Item List
A107: Headroom for pedestrians - excluding doors • <2.00m = 0 • 2.00m – 2.10m = 1 • 2.10m – 2.20m = 2 • > 2.20m = 3
A108: Separate walking route (i.e. heightened; zebra stripes or colours) (yes = 2, no = 0)
A109: Are pedestrian entrance doors easy to use? (Yes, automatic or open connection = 4, Easy to open = 2, No = 0)
A110: Pedestrian access controlled by ticket/pass card when car park open (Yes=1, No=0)
A111: City plan a central location in car park: (On Every pedestrian exit = 2, One location = 1, No = 0)
A112: Guidance:
A113: to key attractions around the car park at pedestrian exit (Yes=1, No=0):
A114: around the car park to pedestrian entrances (Yes=1, No=0):
A115: Is this a Single level car park at ground floor, (not open surface) ?
A116: Is there elevators serving street level?
A117: Number of Elevators at street level: (1 elevator = 1, 2 + elevators = 5)
A118: Size of elevators: (More Than 8 people = 3, 4-8 people = 1, less than 4 = 0)
A119: Visibility from elevator inside to hall/parking area (no visibility from elevator = 0, glazed doors/walls = 3, no elevator = 0)
A120: Level indication:
A121: in elevator:
A122: in elevator foyer:
A123: Elevator control buttons at wheelchair height • Yes = 1, Other = 0
A124: Doors directly to parking area
A125: Width (<90 cm =0, >=90 cm = 2)
A126: Emergency door, standard open (Yes=2, No= 0)
A127: Visibility (Glazed door/wall = 3, No Glass = 0)
A128: Are elevators the main vertical connection? (stairs only secondary or escape)
A129: Stairwells (visibility and orientation)
A130: Clear View (Yes = 1, No = 0, Irrelevant = 1)
A131: Level Indication (Yes = 1, No = 0, Irrelevant = 1)
A132: Stairs (incl. heightened visibility of steps)
A133: Width (< 1.5 m = 0, > 1.5m = 2)
A134: Hand Rails (No hand rail =0, One Side = 1, Two sides=2)
A135: Heightened visibility of steps for people with poor eyesight (Yes = 2, No = 0)
A136: Anti-slip surfacing on stairs: (Yes = 2, No = 0)
A137: External openings in stairwell (window/grilled to outside or car park =2, none =0)
A138: Security Equipment
A139: Item List
A140: CCTV with notice at entrance = 3, No CCTV =0
A141: Staff surveillance (on-site or remote) • Yes = 5, No = 0
A142: CCTV at:
A143: Car Entry: Yes =1, No =0
A144: Car Exit: Yes =1, No =0
A145: Pay Machine: Yes =1, No =0
A146: Elevator Hall, every level: Yes =1, No =0
A147: Stairwells, every level: Yes =1, No =0
A148: Pedestrian Entrances: Yes =1, No =0
A149: Most of Parking Area (65%):Yes =3, No =0
A150: Ramps: Yes = 1, No = 0
A151: Staff contactable via:
A152: Intercom at pay machine and/or controlled entries (24/7=3, All access hours if not 24/7= 2, Part time/not available = 0)
A153: Emergency call system in parking area (24/7=3, All access hours if not 24/7= 2, Part time/not available = 0)
A154: Recognizable staff present and patrolling car park (24/7 = 3, During access Hours = 2, Less than access Hours = 1, No = 0)
A155: Lockable vehicle exit/entry: (Closed gate/rolling shutter after access hours = 2, Secured: fast opening gate during day = 4, Secured: slow opening gate during day = 2, No provisions = 0)
A156: Lockable pedestrian exit/entry (after opening hours). (Door/gate/rolling shutter <= 15cm maximum aperture = 2, over 15 cm = 0, no provisions = 0, Irrelevant (24 hours opening) = 2)
A157: Grilles on external openings & security grilles (<= 15 cm = 2, > 15 cm or no protection= 0, Irrelevant (no external openings) = 2)
A158: Wayfinding Inside and Outside
A159: Item List
A160: Identification of vacant parking spaces
A161: Parking floor level (yes/good = 2, no/bad = 0)
A162: Parking row (yes/good = 1, no/bad = 0)
A163: Individual stall indication (yes/good = 2, no/bad = 0)
A164: Way finding (vehicles)
A165: Are floors clearly and separately identified for drivers? (Good =3, Adequate =2, Poor =1, No =0)
A166: Are sub-areas of floors clearly identified for drivers? (Good =3, Adequate =2, Poor =1, No =0)
A167: Are fire escapes and escape routes clearly marked • Clear from all locations = 3 • most locations= 2 • some locations=1 • No marking of escape routes=0)
A168: Are floor levels clearly marked? (good =3, adequate=2, poor=1, none =0. Single level car parks = 3)
A169: Is there additional signing or prompts to orient the pedestrian on the parking deck (good =2, some =1, none = 0)
A170: Are parking spaces individually numbered (Numbered including floor identification =2, Just numbers =1, none =0)
A171: Use of colours for way finding (Yes= 1, No= 0)
A172: Guidance sign posting for cars on roads to car park
A173: Static sign system only (Yes = 1, No = 0)
A174: Dynamic sign system additionally (Yes = 1, No = 0)
A175: Illuminated signage at car park entrance
A176: Signal green arrow, red cross for direction (Yes = 1, No = 0)
A177: Signal full/free (Yes = 1, No = 0)
